Workbook

Sheet Проектирование АГК-ЭП(было) (hidden)
B1: Производственная программа ПРОЕКТИРОВАНИЕ (ТЗ АГК-ЭП) 2017 - 2028 гг.
A2: № п/п | B2: № п/п | C2: Код по 1C | D2: Наименование объектов | E2: Продаваемая площадь, м2 | F2: Площадь квартир, м2 | G2: Площадь коммерции, м2 | H2: Паркинги, маш/мест | I2: Кол-во квартир | J2: Кол-во домов | K2: Проноз на 23.11.2021 | O2: Программа на 09.09.21 | Q2: Программа на 10.01.22 | S2: 2017 | T2: 2018 | U2: 2019 | V2: 2020 | W2: 2021 | X2: 2022 | Y2: 2023 | Z2: 2024 | AA2: 2025 | AB2: 2026 | AC2: 2027 | AD2: 2028 | AF2: 2017 | AG2: 2018 | AH2: 2019 | AI2: 2020 | AJ2: 2021 | AK2: 2022 | AL2: 2023 | AM2: 2024 | AN2: 2025 | AO2: 2026 | AP2: 2027 | AQ2: 2028
K3: ТЗ на концепцию | L3: Согл. конц. в АБД | M3: Согл. конц. в УАиГ | N3: Согласование ЭП 1 этап | O3: Разрешение | P3: Ввод объекта | Q3: Разрешение | R3: Ввод объекта
A4: 1 | B4: 1 | C4: 2 | D4: 2 | E4: 3 | F4: 4 | G4: 5 | H4: 6 | I4: 7 | J4: 15 | K4: 38 | L4: 39 | M4: 40 | N4: 41
A5: 1 | B5: 1 | C5: СГ00.00.0.00.0 | D5: Жилой комплекс "Солнечный город" | E5: =SUM(E6,E12,E14) -> 54,978 | F5: =SUM(F6,F12,F14) -> 50,308 | G5: =SUM(G6,G12,G14) -> 4,670 | H5: =SUM(H6,H12,H14) -> 506 | I5: =SUM(I6,I12,I14) -> 1,016 | J5: =SUM(J6,J12,) -> 5 | O5: ='Производственная программа'!#REF! ->  | P5: ='Производственная программа'!#REF! ->  | Q5: ='Производственная программа'!#REF! ->  | R5: ='Производственная программа'!#REF! ->  | S5: =SUM(S6,S12,S14) -> 47,888 | T5: =SUM(T6,T12,T14) -> 1,288 | U5: 1,288 | V5: 7,090 | W5: 5,802 | X5: 0 | Y5: 0 | Z5: 0 | AA5: 0 | AB5: 0 | AC5: 0 | AD5: 0
A6: 2 | B6: 1.1 | C6: СГ00.16.0.00.0 | D6: Жилой комплекс "Солнечный город Супер" ПК-15,16 | E6: =SUM(E7:E11) -> 49,175 | F6: =SUM(F7:F11) -> 45,301 | G6: =SUM(G7:G11) -> 3,875 | H6: =H7+H8+H9+H10+H11 -> 506 | I6: =SUM(I7:I10) -> 908 | J6: =SUM(J7:J10) -> 4 | O6: ='Производственная программа'!#REF! ->  | P6: ='Производственная программа'!#REF! ->  | Q6: ='Производственная программа'!#REF! ->  | R6: ='Производственная программа'!#REF! ->  | S6: =SUM(S7:S11) -> 47,888 | T6: =SUM(T7:T11) -> 1,288 | U6: =SUM(U7:U11) -> 1,288 | V6: 1,288 | W6: 0 | X6: 0 | Y6: 0 | Z6: 0 | AA6: 0 | AB6: 0 | AC6: 0 | AD6: 0
A7: 3 | B7: 1.1.1 | C7: СГ00.16.1.01.1 | D7: Жилой комплекс "Солнечный город Супер" ПК-15,16 ж/д 1 корп. 1 | E7: =F7+G7 -> 9,971 | F7: 9,492 | G7: 479 | I7: 193 | J7: 1 | K7: 2016-10-28 | L7: 2017-02-05 | M7: 2017-05-16 | N7: 2017-12-12 | O7: ='Производственная программа'!#REF! ->  | P7: ='Производственная программа'!#REF! ->  | Q7: ='Производственная программа'!#REF! ->  | R7: ='Производственная программа'!#REF! ->  | S7: =IF(AND(YEAR($K7)<=S$2,YEAR($N7)>=S$2),$E7,0) -> 9,971 | T7: 0 | U7: 0 | V7: 0 | W7: 0 | X7: 0 | Y7: 0 | Z7: 0 | AA7: 0 | AB7: 0 | AC7: 0 | AD7: 0 | AF7: =IF(S7>1,$G7,0) -> 479 | AG7: =IF(T7>1,$G7,0) -> 0 | AH7: =IF(U7>1,$G7,0) -> 0 | AI7: 0 | AJ7: 0 | AK7: 0 | AL7: 0 | AM7: 0 | AN7: 0 | AO7: 0 | AP7: 0 | AQ7: 0
A8: 4 | B8: 1.1.2 | C8: СГ00.16.1.01.2 | D8: Жилой комплекс "Солнечный город Супер" ПК-15,16 ж/д 1 корп. 2 | E8: =F8+G8 -> 12,424 | F8: 11,945 | G8: 479 | I8: 232 | J8: 1 | K8: 2016-10-29 | L8: 2017-02-06 | M8: 2017-05-17 | N8: 2017-12-13 | O8: ='Производственная программа'!#REF! ->  | P8: ='Производственная программа'!#REF! ->  | Q8: ='Производственная программа'!#REF! ->  | R8: ='Производственная программа'!#REF! ->  | S8: 12,424 | T8: 0 | U8: 0 | V8: 0 | W8: 0 | X8: 0 | Y8: 0 | Z8: 0 | AA8: 0 | AB8: 0 | AC8: 0 | AD8: 0 | AF8: =IF(S8>1,$G8,0) -> 479 | AG8: 0 | AH8: 0 | AI8: 0 | AJ8: 0 | AK8: 0 | AL8: 0 | AM8: 0 | AN8: 0 | AO8: 0 | AP8: 0 | AQ8: 0
A9: 5 | B9: 1.1.3 | C9: СГ00.16.1.01.3 | D9: Жилой комплекс "Солнечный город Супер" ПК-15,16 ж/д 1 корп. 3 | E9: =F9+G9 -> 7,848 | F9: 7,367 | G9: 481 | I9: 153 | J9: 1 | K9: 2016-10-30 | L9: 2017-02-07 | M9: 2017-05-18 | N9: 2017-12-14 | O9: ='Производственная программа'!#REF! ->  | P9: ='Производственная программа'!#REF! ->  | Q9: ='Производственная программа'!#REF! ->  | R9: ='Производственная программа'!#REF! ->  | S9: 7,848 | T9: 0 | U9: 0 | V9: 0 | W9: 0 | X9: 0 | Y9: 0 | Z9: 0 | AA9: 0 | AB9: 0 | AC9: 0 | AD9: 0 | AF9: =IF(S9>1,$G9,0) -> 481 | AG9: 0 | AH9: 0 | AI9: 0 | AJ9: 0 | AK9: 0 | AL9: 0 | AM9: 0 | AN9: 0 | AO9: 0 | AP9: 0 | AQ9: 0
A10: 6 | B10: 1.1.4 | C10: СГ00.16.1.01.4 | D10: Жилой комплекс "Солнечный город Супер" ПК-15,16 ж/д 1 корп. 4 | E10: =F10+G10 -> 17,645 | F10: 16,497 | G10: 1,148 | I10: 330 | J10: 1 | K10: 2016-10-31 | L10: 2017-02-08 | M10: 2017-05-19 | N10: 2017-12-15 | O10: ='Производственная программа'!#REF! ->  | P10: ='Производственная программа'!#REF! ->  | Q10: ='Производственная программа'!#REF! ->  | R10: ='Производственная программа'!#REF! ->  | S10: 17,645 | T10: 0 | U10: 0 | V10: 0 | W10: 0 | X10: 0 | Y10: 0 | Z10: 0 | AA10: 0 | AB10: 0 | AC10: 0 | AD10: 0 | AF10: =IF(S10>1,$G10,0) -> 1148 | AG10: 0 | AH10: 0 | AI10: 0 | AJ10: 0 | AK10: 0 | AL10: 0 | AM10: 0 | AN10: 0 | AO10: 0 | AP10: 0 | AQ10: 0
A11: 7 | B11: 13.1 | C11: СГ00.16.3.01.0 | D11: Многоуровневая парковка ИК 15-16 на 506 м/м ж/к "Солнечный Город" | E11: =G11 -> 1,288 | G11: 1,288 | H11: 506 | K11: 2018-12-10 | L11: 2019-03-20 | M11: 2019-06-28 | N11: 2020-01-24 | O11: ='Производственная программа'!#REF! ->  | P11: ='Производственная программа'!#REF! ->  | Q11: ='Производственная программа'!#REF! ->  | R11: ='Производственная программа'!#REF! ->  | S11: 0 | T11: 1,288 | U11: 1,288 | V11: 1,288 | W11: 0 | X11: 0 | Y11: 0 | Z11: 0 | AA11: 0 | AB11: 0 | AC11: 0 | AD11: 0
A12: 8 | B12: 1.2 | C12: СГ00.14.0.00.0 | D12: Жилой комплекс "Солнечный город" ПК-14 | E12: =SUM(E13:E13) -> 5,802 | F12: =SUM(F13:F13) -> 5,008 | G12: =SUM(G13:G13) -> 795 | H12: =H13 -> 0 | I12: =SUM(I13:I13) -> 108 | J12: =SUM(J13:J13) -> 1 | O12: ='Производственная программа'!#REF! ->  | P12: ='Производственная программа'!#REF! ->  | Q12: ='Производственная программа'!#REF! ->  | R12: ='Производственная программа'!#REF! ->  | S12: =SUM(S13:S13) -> 0 | T12: =SUM(T13:T13) -> 0 | U12: 0 | V12: =SUM(V13:V13) -> 5,802 | W12: 5,802 | X12: 0 | Y12: 0 | Z12: 0 | AA12: 0 | AB12: 0 | AC12: 0 | AD12: 0
A13: 9 | B13: 1.2.1 | C13: СГ00.14.1.01.0 | D13: Жилой комплекс "Солнечный город" ПК-14 ж/д 1 | E13: =F13+G13 -> 5,802 | F13: 5,008 | G13: 795 | I13: 108 | J13: 1 | K13: 2020-09-07 | L13: 2020-12-16 | M13: 2021-03-26 | N13: 2021-10-22 | O13: ='Производственная программа'!#REF! ->  | P13: ='Производственная программа'!#REF! ->  | Q13: ='Производственная программа'!#REF! ->  | R13: ='Производственная программа'!#REF! ->  | S13: =IF(AND(YEAR($K13)<=S$2,YEAR($N13)>=S$2),$E13,0) -> 0 | T13: 0 | U13: 0 | V13: 5,802 | W13: 5,802 | X13: 0 | Y13: 0 | Z13: 0 | AA13: 0 | AB13: 0 | AC13: 0 | AD13: 0 | AF13: =IF(S13>1,$G13,0) -> 0 | AG13: 0 | AH13: 0 | AI13: 795 | AJ13: 795 | AK13: 0 | AL13: 0 | AM13: 0 | AN13: 0 | AO13: 0 | AP13: 0 | AQ13: 0
A14: 10 | B14: 1.3 | C14: СГ00.09.0.00.0 | D14: Жилой комплекс "Солнечный город" ПК-9 | F14: =SUM(F15:F15) -> 0 | H14: =SUM(H15:H15) -> 0 | I14: =SUM(I15:I15) -> 0 | J14: =SUM(J15:J15) -> 0 | O14: ='Производственная программа'!#REF! ->  | P14: ='Производственная программа'!#REF! ->  | Q14: ='Производственная программа'!#REF! ->  | R14: ='Производственная программа'!#REF! ->  | S14: =SUM(S15:S15) -> 0 | T14: =SUM(T15:T15) -> 0 | U14: 0 | V14: 0 | W14: 0 | X14: 0 | Y14: 0 | Z14: 0 | AA14: 0 | AB14: 0 | AC14: 0 | AD14: 0
A15: 11 | B15: 1.3.1 | C15: СГ00.09.2.00.0 | D15: Жилой комплекс "Солнечный город" ПК-9 Адм здание 17-3 | E15: =G15 -> 2100 | G15: 2,100 | O15: ='Производственная программа'!#REF! ->  | P15: ='Производственная программа'!#REF! ->  | Q15: ='Производственная программа'!#REF! ->  | R15: ='Производственная программа'!#REF! ->  | S15: =IF(AND(YEAR($K15)<=S$2,YEAR($N15)>=S$2),$E15,0) -> 0 | T15: 0 | U15: 0 | V15: 0 | W15: 0 | X15: 0 | Y15: 0 | Z15: 0 | AA15: 0 | AB15: 0 | AC15: 0 | AD15: 0
A16: 12 | B16: 2 | C16: СД00.00.0.00.0 | D16: Жилой комплекс "Светлая долина" | E16: =SUM(E17,E21,E27,E32,E37,E39) -> 201,707 | F16: =SUM(F17,F21,F27,F32,F37,F39) -> 192,301 | G16: =SUM(G17,G21,G27,G32,G37,G39) -> 9,406 | H16: =SUM(H17,H21,H27,H32,H37,H39) -> 1,012 | I16: =SUM(I17,I21,I27,I32,I37,I39) -> 3,932 | J16: =SUM(J17,J21,J27,J32) -> 16 | O16: ='Производственная программа'!#REF! ->  | P16: ='Производственная программа'!#REF! ->  | Q16: ='Производственная программа'!#REF! ->  | R16: ='Производственная программа'!#REF! ->  | S16: =SUM(S17,S21,S27,S32,S37,S39) -> 0 | T16: 41,434 | U16: 89,611 | V16: 112,097 | W16: 112,097 | X16: 0 | Y16: 0 | Z16: 0 | AA16: 0 | AB16: 0 | AC16: 0 | AD16: 0
A17: 13 | B17: 2.1 | C17: СД00.16.0.00.0 | D17: Жилой комплекс "Светлая Долина" ПК-16 | E17: =SUM(E18:E20) -> 40,146 | F17: 39,779 | G17: 368 | H17: 0 | I17: 878 | J17: 3 | O17: ='Производственная программа'!#REF! ->  | P17: ='Производственная программа'!#REF! ->  | Q17: ='Производственная программа'!#REF! ->  | R17: ='Производственная программа'!#REF! ->  | S17: =SUM(S18:S20) -> 0 | T17: 40,146 | U17: 40,146 | V17: 0 | W17: 0 | X17: 0 | Y17: 0 | Z17: 0 | AA17: 0 | AB17: 0 | AC17: 0 | AD17: 0
A18: 14 | B18: 2.1.1 | C18: СД00.16.1.16.1 | D18: Жилой комплекс "Светлая Долина" ПК-16 ж/д 1-16 корп.1 | E18: =F18+G18 -> 15,000 | F18: 15,000 | I18: 340 | J18: 1 | K18: 2018-09-27 | L18: 2019-01-05 | M18: 2019-04-15 | N18: 2019-11-11 | O18: ='Производственная программа'!#REF! ->  | P18: ='Производственная программа'!#REF! ->  | Q18: ='Производственная программа'!#REF! ->  | R18: ='Производственная программа'!#REF! ->  | S18: =IF(AND(YEAR($K18)<=S$2,YEAR($N18)>=S$2),$E18,0) -> 0 | T18: 15,000 | U18: 15,000 | V18: 0 | W18: 0 | X18: 0 | Y18: 0 | Z18: 0 | AA18: 0 | AB18: 0 | AC18: 0 | AD18: 0 | AF18: =IF(S18>1,$G18,0) -> 0 | AG18: 0 | AH18: 0 | AI18: 0 | AJ18: 0 | AK18: 0 | AL18: 0 | AM18: 0 | AN18: 0 | AO18: 0 | AP18: 0 | AQ18: 0
A19: 15 | B19: 2.1.2 | C19: СД00.16.1.16.2 | D19: Жилой комплекс "Светлая Долина" ПК-16 ж/д 1-16 корп.2 | E19: =F19+G19 -> 15,012 | F19: 15,012 | I19: 340 | J19: 1 | K19: 2018-09-27 | L19: 2019-01-05 | M19: 2019-04-15 | N19: 2019-11-11 | O19: ='Производственная программа'!#REF! ->  | P19: ='Производственная программа'!#REF! ->  | Q19: ='Производственная программа'!#REF! ->  | R19: ='Производственная программа'!#REF! ->  | S19: 0 | T19: 15,012 | U19: 15,012 | V19: 0 | W19: 0 | X19: 0 | Y19: 0 | Z19: 0 | AA19: 0 | AB19: 0 | AC19: 0 | AD19: 0 | AF19: 0 | AG19: 0 | AH19: 0 | AI19: 0 | AJ19: 0 | AK19: 0 | AL19: 0 | AM19: 0 | AN19: 0 | AO19: 0 | AP19: 0 | AQ19: 0
A20: 16 | B20: 2.1.3 | C20: СД00.16.1.16.3 | D20: Жилой комплекс "Светлая Долина" ПК-16 ж/д 1-16 корп.3 | E20: =F20+G20 -> 10,134 | F20: 9,767 | G20: 368 | I20: 198 | J20: 1 | K20: 2018-09-23 | L20: 2019-01-01 | M20: 2019-04-11 | N20: 2019-11-07 | O20: ='Производственная программа'!#REF! ->  | P20: ='Производственная программа'!#REF! ->  | Q20: ='Производственная программа'!#REF! ->  | R20: ='Производственная программа'!#REF! ->  | S20: 0 | T20: 10,134 | U20: 10,134 | V20: 0 | W20: 0 | X20: 0 | Y20: 0 | Z20: 0 | AA20: 0 | AB20: 0 | AC20: 0 | AD20: 0 | AF20: 0 | AG20: 368 | AH20: 368 | AI20: 0 | AJ20: 0 | AK20: 0 | AL20: 0 | AM20: 0 | AN20: 0 | AO20: 0 | AP20: 0 | AQ20: 0
A21: 17 | B21: 2.2 | C21: СД00.17.0.00.0 | D21: Жилой комплекс "Светлая Долина" ПК-17 | E21: =SUM(E22,E23,E24,E25,E26) -> 62,509 | F21: =SUM(F22:F26) -> 61,687 | G21: =SUM(G22:G26) -> 822 | H21: =SUM(H22:H26) -> 0 | I21: =SUM(I22:I26) -> 1,104 | J21: =SUM(J22:J26) -> 5 | O21: ='Производственная программа'!#REF! ->  | P21: ='Производственная программа'!#REF! ->  | Q21: ='Производственная программа'!#REF! ->  | R21: ='Производственная программа'!#REF! ->  | S21: =SUM(S22,S23,S24,S25,S26) -> 0 | T21: 0 | U21: 0 | V21: 62,509 | W21: 62,509 | X21: 0 | Y21: 0 | Z21: 0 | AA21: 0 | AB21: 0 | AC21: 0 | AD21: 0
A22: 18 | B22: 2.2.1 | C22: СД00.17.1.17.1 | D22: Жилой комплекс "Светлая Долина" ПК-17 ж/д 1-17 корп.1 | E22: =F22+G22 -> 5,327 | F22: 4,916 | G22: 411 | I22: 72 | J22: 1 | K22: 2020-04-15 | L22: 2020-06-30 | M22: 2020-10-08 | N22: 2021-05-12 | O22: ='Производственная программа'!#REF! ->  | P22: ='Производственная программа'!#REF! ->  | Q22: ='Производственная программа'!#REF! ->  | R22: ='Производственная программа'!#REF! ->  | S22: =IF(AND(YEAR($K22)<=S$2,YEAR($N22)>=S$2),$E22,0) -> 0 | T22: 0 | U22: 0 | V22: 5,327 | W22: 5,327 | X22: 0 | Y22: 0 | Z22: 0 | AA22: 0 | AB22: 0 | AC22: 0 | AD22: 0 | AF22: =IF(S22>1,$G22,0) -> 0 | AG22: 0 | AH22: 0 | AI22: 411 | AJ22: 411 | AK22: 0 | AL22: 0 | AM22: 0 | AN22: 0 | AO22: 0 | AP22: 0 | AQ22: 0
A23: 20 | B23: 2.2.2 | C23: СД00.17.1.17.2 | D23: Жилой комплекс "Светлая Долина" ПК-17 ж/д 1-17 корп.2 | E23: =F23+G23 -> 17,282 | F23: 17,282 | I23: 320 | J23: 1 | K23: 2020-04-15 | L23: 2020-06-30 | M23: 2020-10-08 | N23: 2021-05-12 | O23: ='Производственная программа'!#REF! ->  | P23: ='Производственная программа'!#REF! ->  | Q23: ='Производственная программа'!#REF! ->  | R23: ='Производственная программа'!#REF! ->  | S23: 0 | T23: 0 | U23: 0 | V23: 17,282 | W23: 17,282 | X23: 0 | Y23: 0 | Z23: 0 | AA23: 0 | AB23: 0 | AC23: 0 | AD23: 0 | AF23: 0 | AG23: 0 | AH23: 0 | AI23: 0 | AJ23: 0 | AK23: 0 | AL23: 0 | AM23: 0 | AN23: 0 | AO23: 0 | AP23: 0 | AQ23: 0
A24: 21 | B24: 2.2.3 | C24: СД00.17.1.17.3 | D24: Жилой комплекс "Светлая Долина" ПК-17 ж/д 1-17 корп.3 | E24: =F24+G24 -> 5,335 | F24: 4,924 | G24: 411 | I24: 72 | J24: 1 | K24: 2020-04-15 | L24: 2020-06-30 | M24: 2020-10-08 | N24: 2021-05-12 | O24: ='Производственная программа'!#REF! ->  | P24: ='Производственная программа'!#REF! ->  | Q24: ='Производственная программа'!#REF! ->  | R24: ='Производственная программа'!#REF! ->  | S24: 0 | T24: 0 | U24: 0 | V24: 5,335 | W24: 5,335 | X24: 0 | Y24: 0 | Z24: 0 | AA24: 0 | AB24: 0 | AC24: 0 | AD24: 0 | AF24: 0 | AG24: 0 | AH24: 0 | AI24: 411 | AJ24: 411 | AK24: 0 | AL24: 0 | AM24: 0 | AN24: 0 | AO24: 0 | AP24: 0 | AQ24: 0
A25: 23 | B25: 2.2.4 | C25: СД00.17.1.17.4 | D25: Жилой комплекс "Светлая Долина" ПК-17 ж/д 1-17 корп.4 | E25: =F25+G25 -> 17,282 | F25: 17,282 | I25: 320 | J25: 1 | K25: 2020-04-15 | L25: 2020-06-30 | M25: 2020-10-08 | N25: 2021-05-12 | O25: ='Производственная программа'!#REF! ->  | P25: ='Производственная программа'!#REF! ->  | Q25: ='Производственная программа'!#REF! ->  | R25: ='Производственная программа'!#REF! ->  | S25: 0 | T25: 0 | U25: 0 | V25: 17,282 | W25: 17,282 | X25: 0 | Y25: 0 | Z25: 0 | AA25: 0 | AB25: 0 | AC25: 0 | AD25: 0 | AF25: 0 | AG25: 0 | AH25: 0 | AI25: 0 | AJ25: 0 | AK25: 0 | AL25: 0 | AM25: 0 | AN25: 0 | AO25: 0 | AP25: 0 | AQ25: 0
A26: 24 | B26: 2.2.5 | C26: СД00.17.1.17.5 | D26: Жилой комплекс "Светлая Долина" ПК-17 ж/д 1-17 корп.5 | E26: =F26+G26 -> 17,282 | F26: 17,282 | I26: 320 | J26: 1 | K26: 2020-04-15 | L26: 2020-06-30 | M26: 2020-10-08 | N26: 2021-05-12 | O26: ='Производственная программа'!#REF! ->  | P26: ='Производственная программа'!#REF! ->  | Q26: ='Производственная программа'!#REF! ->  | R26: ='Производственная программа'!#REF! ->  | S26: 0 | T26: 0 | U26: 0 | V26: 17,282 | W26: 17,282 | X26: 0 | Y26: 0 | Z26: 0 | AA26: 0 | AB26: 0 | AC26: 0 | AD26: 0 | AF26: 0 | AG26: 0 | AH26: 0 | AI26: 0 | AJ26: 0 | AK26: 0 | AL26: 0 | AM26: 0 | AN26: 0 | AO26: 0 | AP26: 0 | AQ26: 0
A27: 25 | B27: 2.3 | C27: СД00.02.0.00.0 | D27: Жилой комплекс "Светлая Долина" ПК-02 | E27: =SUM(E28:E31) -> 48,177 | F27: 45,140 | G27: 3,037 | H27: 0 | I27: 1,050 | J27: 4 | O27: ='Производственная программа'!#REF! ->  | P27: ='Производственная программа'!#REF! ->  | Q27: ='Производственная программа'!#REF! ->  | R27: ='Производственная программа'!#REF! ->  | S27: =SUM(S28:S31) -> 0 | T27: 0 | U27: 48,177 | V27: 0 | W27: 0 | X27: 0 | Y27: 0 | Z27: 0 | AA27: 0 | AB27: 0 | AC27: 0 | AD27: 0
A28: 26 | B28: 2.3.1 | C28: СД00.02.1.02.1 | D28: Жилой комплекс "Светлая Долина" ПК-02 ж/д 2-1 | E28: =F28+G28 -> 20,730 | F28: 19,263 | G28: 1,467 | I28: 480 | J28: 1 | K28: 2019-04-15 | L28: 2019-07-24 | M28: 2019-11-01 | N28: 2019-09-30 | O28: ='Производственная программа'!#REF! ->  | P28: ='Производственная программа'!#REF! ->  | Q28: ='Производственная программа'!#REF! ->  | R28: ='Производственная программа'!#REF! ->  | S28: =IF(AND(YEAR($K28)<=S$2,YEAR($N28)>=S$2),$E28,0) -> 0 | T28: 0 | U28: 20,730 | V28: 0 | W28: 0 | X28: 0 | Y28: 0 | Z28: 0 | AA28: 0 | AB28: 0 | AC28: 0 | AD28: 0 | AF28: =IF(S28>1,$G28,0) -> 0 | AG28: 0 | AH28: 1467 | AI28: 0 | AJ28: 0 | AK28: 0 | AL28: 0 | AM28: 0 | AN28: 0 | AO28: 0 | AP28: 0 | AQ28: 0
A29: 27 | B29: 2.3.2 | C29: СД00.02.1.02.2 | D29: Жилой комплекс "Светлая Долина" ПК-02 ж/д 2-2 | E29: =F29+G29 -> 7,510 | F29: 7,081 | G29: 428 | I29: 160 | J29: 1 | K29: 2019-04-15 | L29: 2019-07-24 | M29: 2019-11-01 | N29: 2019-09-30 | O29: ='Производственная программа'!#REF! ->  | P29: ='Производственная программа'!#REF! ->  | Q29: ='Производственная программа'!#REF! ->  | R29: ='Производственная программа'!#REF! ->  | S29: 0 | T29: 0 | U29: 7,510 | V29: 0 | W29: 0 | X29: 0 | Y29: 0 | Z29: 0 | AA29: 0 | AB29: 0 | AC29: 0 | AD29: 0 | AF29: 0 | AG29: 0 | AH29: 428 | AI29: 0 | AJ29: 0 | AK29: 0 | AL29: 0 | AM29: 0 | AN29: 0 | AO29: 0 | AP29: 0 | AQ29: 0
A30: 28 | B30: 2.3.3 | C30: СД00.02.1.02.3 | D30: Жилой комплекс "Светлая Долина" ПК-02 ж/д 2-3 | E30: =F30+G30 -> 12,418 | F30: 11,715 | G30: 704 | I30: 250 | J30: 1 | K30: 2019-04-15 | L30: 2019-07-24 | M30: 2019-11-01 | N30: 2019-09-30 | O30: ='Производственная программа'!#REF! ->  | P30: ='Производственная программа'!#REF! ->  | Q30: ='Производственная программа'!#REF! ->  | R30: ='Производственная программа'!#REF! ->  | S30: 0 | T30: 0 | U30: 12,418 | V30: 0 | W30: 0 | X30: 0 | Y30: 0 | Z30: 0 | AA30: 0 | AB30: 0 | AC30: 0 | AD30: 0 | AF30: 0 | AG30: 0 | AH30: 704 | AI30: 0 | AJ30: 0 | AK30: 0 | AL30: 0 | AM30: 0 | AN30: 0 | AO30: 0 | AP30: 0 | AQ30: 0
A31: 29 | B31: 2.3.4 | C31: СД00.02.1.02.4 | D31: Жилой комплекс "Светлая Долина" ПК-02 ж/д 2-4 | E31: =F31+G31 -> 7,519 | F31: 7,081 | G31: 438 | I31: 160 | J31: 1 | K31: 2019-04-15 | L31: 2019-07-24 | M31: 2019-11-01 | N31: 2019-09-30 | O31: ='Производственная программа'!#REF! ->  | P31: ='Производственная программа'!#REF! ->  | Q31: ='Производственная программа'!#REF! ->  | R31: ='Производственная программа'!#REF! ->  | S31: 0 | T31: 0 | U31: 7,519 | V31: 0 | W31: 0 | X31: 0 | Y31: 0 | Z31: 0 | AA31: 0 | AB31: 0 | AC31: 0 | AD31: 0 | AF31: 0 | AG31: 0 | AH31: 438 | AI31: 0 | AJ31: 0 | AK31: 0 | AL31: 0 | AM31: 0 | AN31: 0 | AO31: 0 | AP31: 0 | AQ31: 0
A32: 30 | B32: 2.4 | C32: СД00.03.0.00.0 | D32: Жилой комплекс "Светлая Долина" ПК-03 | E32: =SUM(E33,E34,E35,E36) -> 48,303 | F32: =SUM(F33:F36) -> 45,695 | G32: =SUM(G33:G36) -> 2,608 | H32: =SUM(H33:H36) -> 0 | I32: =SUM(I33:I36) -> 900 | J32: =SUM(J33:J36) -> 4 | O32: ='Производственная программа'!#REF! ->  | P32: ='Производственная программа'!#REF! ->  | Q32: ='Производственная программа'!#REF! ->  | R32: ='Производственная программа'!#REF! ->  | S32: =SUM(S33,S34,S35,S36) -> 0 | T32: 0 | U32: 0 | V32: 48,303 | W32: 48,303 | X32: 0 | Y32: 0 | Z32: 0 | AA32: 0 | AB32: 0 | AC32: 0 | AD32: 0
A33: 31 | B33: 2.4.1 | C33: СД00.03.1.03.1 | D33: Жилой комплекс "Светлая Долина" ПК-03 ж/д 3-1 | E33: =F33+G33 -> 20,877 | F33: 19,417 | G33: 1,460 | I33: 480 | J33: 1 | K33: 2020-11-25 | L33: 2020-12-25 | M33: 2021-04-15 | N33: 2021-07-05 | O33: ='Производственная программа'!#REF! ->  | P33: ='Производственная программа'!#REF! ->  | Q33: ='Производственная программа'!#REF! ->  | R33: ='Производственная программа'!#REF! ->  | S33: =IF(AND(YEAR($K33)<=S$2,YEAR($N33)>=S$2),$E33,0) -> 0 | T33: 0 | U33: 0 | V33: 20,877 | W33: 20,877 | X33: 0 | Y33: 0 | Z33: 0 | AA33: 0 | AB33: 0 | AC33: 0 | AD33: 0 | AF33: =IF(S33>1,$G33,0) -> 0 | AG33: 0 | AH33: 0 | AI33: 1460 | AJ33: 1460 | AK33: 0 | AL33: 0 | AM33: 0 | AN33: 0 | AO33: 0 | AP33: 0 | AQ33: 0
A34: 32 | B34: 2.4.2 | C34: СД00.03.1.03.2 | D34: Жилой комплекс "Светлая Долина" ПК-03 ж/д 3-2 | E34: =F34+G34 -> 7,108 | F34: 6,795 | G34: 313 | I34: 100 | J34: 1 | K34: 2020-11-25 | L34: 2020-12-25 | M34: 2021-04-15 | N34: 2021-07-05 | O34: ='Производственная программа'!#REF! ->  | P34: ='Производственная программа'!#REF! ->  | Q34: ='Производственная программа'!#REF! ->  | R34: ='Производственная программа'!#REF! ->  | S34: 0 | T34: 0 | U34: 0 | V34: 7,108 | W34: 7,108 | X34: 0 | Y34: 0 | Z34: 0 | AA34: 0 | AB34: 0 | AC34: 0 | AD34: 0 | AF34: 0 | AG34: 0 | AH34: 0 | AI34: 313 | AJ34: 313 | AK34: 0 | AL34: 0 | AM34: 0 | AN34: 0 | AO34: 0 | AP34: 0 | AQ34: 0
A35: 34 | B35: 2.4.3 | C35: СД00.03.1.03.3 | D35: Жилой комплекс "Светлая Долина" ПК-03 ж/д 3-3 | E35: =F35+G35 -> 11,294 | F35: 10,786 | G35: 509 | I35: 192 | J35: 1 | K35: 2020-11-25 | L35: 2020-12-25 | M35: 2021-04-15 | N35: 2021-07-05 | O35: ='Производственная программа'!#REF! ->  | P35: ='Производственная программа'!#REF! ->  | Q35: ='Производственная программа'!#REF! ->  | R35: ='Производственная программа'!#REF! ->  | S35: 0 | T35: 0 | U35: 0 | V35: 11,294 | W35: 11,294 | X35: 0 | Y35: 0 | Z35: 0 | AA35: 0 | AB35: 0 | AC35: 0 | AD35: 0 | AF35: 0 | AG35: 0 | AH35: 0 | AI35: 509 | AJ35: 509 | AK35: 0 | AL35: 0 | AM35: 0 | AN35: 0 | AO35: 0 | AP35: 0 | AQ35: 0
A36: 36 | B36: 2.4.4 | C36: СД00.03.1.03.4 | D36: Жилой комплекс "Светлая Долина" ПК-03 ж/д 3-4 | E36: =F36+G36 -> 9,024 | F36: 8,698 | G36: 326 | I36: 128 | J36: 1 | K36: 2020-11-25 | L36: 2020-12-25 | M36: 2021-04-15 | N36: 2021-07-05 | O36: ='Производственная программа'!#REF! ->  | P36: ='Производственная программа'!#REF! ->  | Q36: ='Производственная программа'!#REF! ->  | R36: ='Производственная программа'!#REF! ->  | S36: 0 | T36: 0 | U36: 0 | V36: 9,024 | W36: 9,024 | X36: 0 | Y36: 0 | Z36: 0 | AA36: 0 | AB36: 0 | AC36: 0 | AD36: 0 | AF36: 0 | AG36: 0 | AH36: 0 | AI36: 326 | AJ36: 326 | AK36: 0 | AL36: 0 | AM36: 0 | AN36: 0 | AO36: 0 | AP36: 0 | AQ36: 0
A37: 38 | B37: 2.5 | C37: СД00.03.0.00.0 | D37: Жилой комплекс "Светлая Долина" ПК-04 | E37: =E38 -> 1,288 | F37: 0 | G37: 1,288 | H37: 506 | I37: 0 | J37: 0 | O37: ='Производственная программа'!#REF! ->  | P37: ='Производственная программа'!#REF! ->  | Q37: ='Производственная программа'!#REF! ->  | R37: ='Производственная программа'!#REF! ->  | S37: =S38 -> 0 | T37: 1,288 | U37: 1,288 | V37: 0 | W37: 0 | X37: 0 | Y37: 0 | Z37: 0 | AA37: 0 | AB37: 0 | AC37: 0 | AD37: 0
A38: 39 | B38: 2.5.1 | C38: СД00.04.3.01.0 | D38: Многоуровневая парковка ПК-4 на 506 м/м ж/к "Светлая Долина" | E38: =G38 -> 1,288 | G38: 1,288 | H38: 506 | K38: 2018-10-18 | L38: 2019-01-26 | M38: 2019-05-06 | N38: 2019-12-02 | O38: ='Производственная программа'!#REF! ->  | P38: ='Производственная программа'!#REF! ->  | Q38: ='Производственная программа'!#REF! ->  | R38: ='Производственная программа'!#REF! ->  | S38: =IF(AND(YEAR($K38)<=S$2,YEAR($N38)>=S$2),$E38,0) -> 0 | T38: 1,288 | U38: 1,288 | V38: 0 | W38: 0 | X38: 0 | Y38: 0 | Z38: 0 | AA38: 0 | AB38: 0 | AC38: 0 | AD38: 0
A39: 40 | B39: 2.6 | C39: СД00.03.0.00.0 | D39: Жилой комплекс "Светлая Долина" ПК-05 | E39: =E40 -> 1,285 | F39: 0 | G39: 1,285 | H39: 506 | I39: 0 | J39: 0 | O39: ='Производственная программа'!#REF! ->  | P39: ='Производственная программа'!#REF! ->  | Q39: ='Производственная программа'!#REF! ->  | R39: ='Производственная программа'!#REF! ->  | S39: =S40 -> 0 | T39: 0 | U39: 0 | V39: 1,285 | W39: 1,285 | X39: 0 | Y39: 0 | Z39: 0 | AA39: 0 | AB39: 0 | AC39: 0 | AD39: 0
A40: 41 | B40: 2.6.1 | C40: СД00.05.3.05.1 | D40: Многоуровневая парковка ПК-5.1 на 506 м/м ж/к "Светлая Долина" | E40: =G40+F40 -> 1,285 | G40: 1,285 | H40: 506 | K40: 2020-04-09 | L40: 2020-07-18 | M40: 2020-10-26 | N40: 2021-05-24 | O40: ='Производственная программа'!#REF! ->  | P40: ='Производственная программа'!#REF! ->  | Q40: ='Производственная программа'!#REF! ->  | R40: ='Производственная программа'!#REF! ->  | S40: =IF(AND(YEAR($K40)<=S$2,YEAR($N40)>=S$2),$E40,0) -> 0 | T40: 0 | U40: 0 | V40: 1,285 | W40: 1,285 | X40: 0 | Y40: 0 | Z40: 0 | AA40: 0 | AB40: 0 | AC40: 0 | AD40: 0
A41: 43 | B41: 2.6.2 | C41: СД00.05.3.05.2 | D41: Многоуровневая парковка ПК-5.2 на 506 м/м ж/к "Светлая Долина" | E41: =G41+F41 -> 1,965 | G41: 1,965 | H41: 506 | O41: ='Производственная программа'!#REF! ->  | P41: ='Производственная программа'!#REF! ->  | Q41: ='Производственная программа'!#REF! ->  | R41: ='Производственная программа'!#REF! ->  | S41: 0 | T41: 0 | U41: 0 | V41: 0 | W41: 0 | X41: 0 | Y41: 0 | Z41: 0 | AA41: 0 | AB41: 0 | AC41: 0 | AD41: 0
A42: 44 | B42: 2.7 | C42: СД00.03.0.00.0 | D42: Жилой комплекс "Светлая Долина" ПК-06 | O42: ='Производственная программа'!#REF! ->  | P42: ='Производственная программа'!#REF! ->  | Q42: ='Производственная программа'!#REF! ->  | R42: ='Производственная программа'!#REF! -> 
A43: 45 | B43: 2.7.1 | C43: СД00.06.3.00.0 | D43: Многоуровневая парковка ПК-6 на 506 м/м ж/к "Светлая Долина" | E43: 1,288 | G43: 1,965 | H43: 506 | O43: ='Производственная программа'!#REF! ->  | P43: ='Производственная программа'!#REF! ->  | Q43: ='Производственная программа'!#REF! ->  | R43: ='Производственная программа'!#REF! ->  | S43: =IF(AND(YEAR($K43)<=S$2,YEAR($N43)>=S$2),$E43,0) -> 0 | T43: 0 | U43: 0 | V43: 0 | W43: 0 | X43: 0 | Y43: 0 | Z43: 0 | AA43: 0 | AB43: 0 | AC43: 0 | AD43: 0
A44: 46 | B44: 2.8 | C44: СД00.03.0.00.0 | D44: Жилой комплекс "Светлая Долина" ПК-09 | O44: ='Производственная программа'!#REF! ->  | P44: ='Производственная программа'!#REF! ->  | Q44: ='Производственная программа'!#REF! ->  | R44: ='Производственная программа'!#REF! -> 
A45: 47 | B45: 2.8.1 | C45: СД00.09.3.01.0 | D45: Многоуровневая парковка ПК-9.1 на 999 м/м ж/к "Светлая Долина" | E45: 2,594 | G45: 3,267 | H45: 999 | O45: ='Производственная программа'!#REF! ->  | P45: ='Производственная программа'!#REF! ->  | Q45: ='Производственная программа'!#REF! ->  | R45: ='Производственная программа'!#REF! ->  | S45: =IF(AND(YEAR($K45)<=S$2,YEAR($N45)>=S$2),$E45,0) -> 0 | T45: 0 | U45: 0 | V45: 0 | W45: 0 | X45: 0 | Y45: 0 | Z45: 0 | AA45: 0 | AB45: 0 | AC45: 0 | AD45: 0
A46: 48 | B46: 2.8.2 | C46: СД00.09.3.02.0 | D46: Многоуровневая парковка ПК-9.2 на 999 м/м ж/к "Светлая Долина" | E46: =G46 -> 2,502 | G46: 2,502 | H46: 999 | O46: ='Производственная программа'!#REF! ->  | P46: ='Производственная программа'!#REF! ->  | Q46: ='Производственная программа'!#REF! ->  | R46: ='Производственная программа'!#REF! ->  | S46: 0 | T46: 0 | U46: 0 | V46: 0 | W46: 0 | X46: 0 | Y46: 0 | Z46: 0 | AA46: 0 | AB46: 0 | AC46: 0 | AD46: 0
A47: 49 | B47: 3 | C47: СН00.00.0.00.0 | D47: Жилой район "Седьмое небо" | E47: =SUM(E48,E50,E52,E66,E98,E103,E112,E110) -> 1,130,882 | F47: 816,303 | G47: 315,081 | H47: 10,718 | I47: 14,714 | J47: 63 | O47: ='Производственная программа'!#REF! ->  | P47: ='Производственная программа'!#REF! ->  | Q47: ='Производственная программа'!#REF! ->  | R47: ='Производственная программа'!#REF! ->  | S47: =SUM(S48,S50,S52,S66,S98,S103,S112,S110) -> 402,318 | T47: 457,952 | U47: 581,796 | V47: 772,124 | W47: 864,197 | X47: 910,825 | Y47: 321,889 | Z47: 73,685 | AA47: 0 | AB47: 0 | AC47: 0 | AD47: 0
A48: 50 | B48: 3.1 | C48: СН6А.00.0.00.0 | D48: Микрорайон 6А | E48: =E49 -> 8,135 | F48: 7,497 | G48: 638 | H48: 0 | I48: 162 | J48: 1 | O48: ='Производственная программа'!#REF! ->  | P48: ='Производственная программа'!#REF! ->  | Q48: ='Производственная программа'!#REF! ->  | R48: ='Производственная программа'!#REF! ->  | S48: =S49 -> 0 | T48: =T49 -> 0 | U48: 8,135 | V48: 8,135 | W48: 0 | X48: 0 | Y48: 0 | Z48: 0 | AA48: 0 | AB48: 0 | AC48: 0 | AD48: 0
A49: 51 | B49: 3.1.1 | C49: СН6А.00.1.01.0 | D49: Жилой дом по ул. А. Кутуя ЖК «Казань ХХI век» | E49: =F49+G49 -> 8,135 | F49: 7,497 | G49: 638 | I49: 162 | J49: 1 | K49: 2019-07-24 | L49: 2019-11-01 | M49: 2020-02-09 | N49: 2020-09-06 | O49: ='Производственная программа'!#REF! ->  | P49: ='Производственная программа'!#REF! ->  | Q49: ='Производственная программа'!#REF! ->  | R49: ='Производственная программа'!#REF! ->  | S49: =IF(AND(YEAR($K49)<=S$2,YEAR($N49)>=S$2),$E49,0) -> 0 | T49: 0 | U49: 8,135 | V49: 8,135 | W49: 0 | X49: 0 | Y49: 0 | Z49: 0 | AA49: 0 | AB49: 0 | AC49: 0 | AD49: 0 | AF49: =IF(S49>1,$G49,0) -> 0 | AG49: 0 | AH49: 638 | AI49: 638 | AJ49: 0 | AK49: 0 | AL49: 0 | AM49: 0 | AN49: 0 | AO49: 0 | AP49: 0 | AQ49: 0
A50: 52 | B50: 3.2 | C50: СН7А.00.0.00.0 | D50: Микрорайон 7А | E50: =E51 -> 10,958 | F50: 10,396 | G50: 563 | H50: 0 | I50: 91 | J50: 1 | O50: ='Производственная программа'!#REF! ->  | P50: ='Производственная программа'!#REF! ->  | Q50: ='Производственная программа'!#REF! ->  | R50: ='Производственная программа'!#REF! ->  | S50: =S51 -> 0 | T50: 0 | U50: 0 | V50: 10,958 | W50: 0 | X50: 0 | Y50: 0 | Z50: 0 | AA50: 0 | AB50: 0 | AC50: 0 | AD50: 0
A51: 53 | B51: 3.2.1 | C51: СН7А.00.1.01.0 | D51: Жилой дом по ул. П.Лумумбы | E51: =F51+G51 -> 10,958 | F51: 10,396 | G51: 563 | I51: 91 | J51: 1 | K51: 2020-07-20 | L51: 2020-07-20 | M51: 2020-09-10 | N51: 2020-12-04 | O51: ='Производственная программа'!#REF! ->  | P51: ='Производственная программа'!#REF! ->  | Q51: ='Производственная программа'!#REF! ->  | R51: ='Производственная программа'!#REF! ->  | S51: =IF(AND(YEAR($K51)<=S$2,YEAR($N51)>=S$2),$E51,0) -> 0 | T51: 0 | U51: 0 | V51: 10,958 | W51: 0 | X51: 0 | Y51: 0 | Z51: 0 | AA51: 0 | AB51: 0 | AC51: 0 | AD51: 0 | AF51: =IF(S51>1,$G51,0) -> 0 | AG51: 0 | AH51: 0 | AI51: 563 | AJ51: 0 | AK51: 0 | AL51: 0 | AM51: 0 | AN51: 0 | AO51: 0 | AP51: 0 | AQ51: 0
A52: 54 | B52: 3.3 | C52: СНМ2.00.0.00.0 | D52: Жилой район "Седьмое Небо" Жилой комплекс "Мой Ритм" | E52: =E53+E56+E62+E59 -> 105,849 | F52: 73,625 | G52: 32,224 | H52: 1,200 | I52: 1,613 | J52: 3 | O52: ='Производственная программа'!#REF! ->  | P52: ='Производственная программа'!#REF! ->  | Q52: ='Производственная программа'!#REF! ->  | R52: ='Производственная программа'!#REF! ->  | S52: =S53+S56+S62+S59 -> 2,295 | T52: 57,929 | U52: 57,077 | V52: 2,901 | W52: 0 | X52: 46,628 | Y52: 0 | Z52: 0 | AA52: 0 | AB52: 0 | AC52: 0 | AD52: 0
A53: 55 | B53: 3.3.1 | C53: СНМ2.03.0.00.0 | D53: Жилой район "Седьмое Небо" Жилой комплекс "Мой Ритм" ПК-3 | E53: =SUM(E54:E55) -> 27,548 | F53: =SUM(F54:F55) -> 24,542 | G53: =SUM(G54:G55) -> 3,006 | H53: =SUM(H54:H55) -> 300 | I53: =SUM(I54:I55) -> 490 | J53: =J54 -> 1 | O53: ='Производственная программа'!#REF! ->  | P53: ='Производственная программа'!#REF! ->  | Q53: ='Производственная программа'!#REF! ->  | R53: ='Производственная программа'!#REF! ->  | S53: =SUM(S54:S55) -> 0 | T53: =SUM(T54:T55) -> 27,548 | U53: 27,548 | V53: 0 | W53: 0 | X53: 0 | Y53: 0 | Z53: 0 | AA53: 0 | AB53: 0 | AC53: 0 | AD53: 0
A54: 56 | B54: 3.3.1.1 | C54: СНМ2.03.1.03.1 | D54: Жилой район "Седьмое Небо" Жилой комплекс "Мой Ритм" ПК-3 ж/д 3-1 | E54: =F54+G54 -> 26,110 | F54: =13482.98+11058.53 -> 24,542 | G54: =894.12+674.57 -> 1,569 | I54: 490 | J54: 1 | K54: 2018-08-24 | L54: 2018-12-02 | M54: 2019-03-12 | N54: 2019-10-08 | O54: ='Производственная программа'!#REF! ->  | P54: ='Производственная программа'!#REF! ->  | Q54: ='Производственная программа'!#REF! ->  | R54: ='Производственная программа'!#REF! ->  | S54: =IF(AND(YEAR($K54)<=S$2,YEAR($N54)>=S$2),$E54,0) -> 0 | T54: 26,110 | U54: 26,110 | V54: 0 | W54: 0 | X54: 0 | Y54: 0 | Z54: 0 | AA54: 0 | AB54: 0 | AC54: 0 | AD54: 0 | AF54: =IF(S54>1,$G54,0) -> 0 | AG54: 1569 | AH54: 1569 | AI54: 0 | AJ54: 0 | AK54: 0 | AL54: 0 | AM54: 0 | AN54: 0 | AO54: 0 | AP54: 0 | AQ54: 0
A55: 57 | B55: 3.3.1.2 | C55: СНМ2.03.3.02.0 | D55: Многоуровневая парковка на 300 м/м ПК-3, М-2 "Мой Ритм" | E55: =G55 -> 1,438 | G55: 1,438 | H55: 300 | K55: 2018-08-24 | L55: 2018-12-02 | M55: 2019-03-12 | N55: 2019-10-08 | O55: ='Производственная программа'!#REF! ->  | P55: ='Производственная программа'!#REF! ->  | Q55: ='Производственная программа'!#REF! ->  | R55: ='Производственная программа'!#REF! ->  | S55: 0 | T55: 1,438 | U55: 1,438 | V55: 0 | W55: 0 | X55: 0 | Y55: 0 | Z55: 0 | AA55: 0 | AB55: 0 | AC55: 0 | AD55: 0
A56: 59 | B56: 3.3.2 | C56: СНМ2.02.0.00.0 | D56: Жилой район "Седьмое Небо" Жилой комплекс "Мой Ритм" ПК-2 | E56: =SUM(E57:E58) -> 28,087 | F56: =SUM(F57:F58) -> 24,542 | G56: =SUM(G57:G58) -> 3,545 | H56: =SUM(H57:H58) -> 300 | I56: =SUM(I57:I58) -> 490 | J56: =J57 -> 1 | O56: ='Производственная программа'!#REF! ->  | P56: ='Производственная программа'!#REF! ->  | Q56: ='Производственная программа'!#REF! ->  | R56: ='Производственная программа'!#REF! ->  | S56: =SUM(S57:S58) -> 0 | T56: =SUM(T57:T58) -> 28,087 | U56: 28,087 | V56: 1,458 | W56: 0 | X56: 0 | Y56: 0 | Z56: 0 | AA56: 0 | AB56: 0 | AC56: 0 | AD56: 0
A57: 60 | B57: 3.3.2.1 | C57: СНМ2.02.1.02.1 | D57: Жилой район "Седьмое Небо" Жилой комплекс "Мой Ритм" ПК-2 ж/д 2-1 | E57: =F57+G57 -> 26,628 | F57: =13482.98+11058.78 -> 24,542 | G57: =1184.41+901.95 -> 2,086 | I57: 490 | J57: 1 | K57: 2018-11-25 | L57: 2019-03-05 | M57: 2019-03-12 | N57: 2019-10-08 | O57: ='Производственная программа'!#REF! ->  | P57: ='Производственная программа'!#REF! ->  | Q57: ='Производственная программа'!#REF! ->  | R57: ='Производственная программа'!#REF! ->  | S57: =IF(AND(YEAR($K57)<=S$2,YEAR($N57)>=S$2),$E57,0) -> 0 | T57: 26,628 | U57: 26,628 | V57: 0 | W57: 0 | X57: 0 | Y57: 0 | Z57: 0 | AA57: 0 | AB57: 0 | AC57: 0 | AD57: 0 | AF57: =IF(S57>1,$G57,0) -> 0 | AG57: 2086 | AH57: 2086 | AI57: 0 | AJ57: 0 | AK57: 0 | AL57: 0 | AM57: 0 | AN57: 0 | AO57: 0 | AP57: 0 | AQ57: 0
A58: 61 | B58: 3.3.2.2 | C58: СНМ2.02.3.02.0 | D58: Многоуровневая парковка на 300 м/м ПК-2, М-2 "Мой Ритм" | E58: =G58 -> 1,458 | G58: 1,458 | H58: 300 | K58: 2018-11-25 | L58: 2019-03-05 | M58: 2019-03-12 | N58: 2020-11-12 | O58: ='Производственная программа'!#REF! ->  | P58: ='Производственная программа'!#REF! ->  | Q58: ='Производственная программа'!#REF! ->  | R58: ='Производственная программа'!#REF! ->  | S58: 0 | T58: 1,458 | U58: 1,458 | V58: 1,458 | W58: 0 | X58: 0 | Y58: 0 | Z58: 0 | AA58: 0 | AB58: 0 | AC58: 0 | AD58: 0
A59: 63 | B59: 3.3.3 | C59: СНМ2.05.0.00.0 | D59: Жилой район "Седьмое Небо" Жилой комплекс "Мой Ритм" ПК-5 | E59: =SUM(E60:E61) -> 2,295 | F59: =SUM(F60:F61) -> 0 | G59: =SUM(G60:G61) -> 2,295 | H59: =SUM(H60:H61) -> 300 | I59: =SUM(I60:I61) -> 0 | J59: =J60 -> 0 | O59: ='Производственная программа'!#REF! ->  | P59: ='Производственная программа'!#REF! ->  | Q59: ='Производственная программа'!#REF! ->  | R59: ='Производственная программа'!#REF! ->  | S59: =SUM(S60:S61) -> 2,295 | T59: 2,295 | U59: 1,443 | V59: 1,443 | W59: 0 | X59: 0 | Y59: 0 | Z59: 0 | AA59: 0 | AB59: 0 | AC59: 0 | AD59: 0
A60: 64 | B60: 3.3.3.1 | C60: СНМ2.05.2.00.0 | D60: Жилой район "Седьмое Небо" Жилой комплекс "Мой Ритм" ПК-5 торгово-офисное здание | E60: =F60+G60 -> 852 | G60: 852 | K60: 2017-05-15 | L60: 2017-08-23 | M60: 2017-12-01 | N60: 2018-06-29 | O60: ='Производственная программа'!#REF! ->  | P60: ='Производственная программа'!#REF! ->  | Q60: ='Производственная программа'!#REF! ->  | R60: ='Производственная программа'!#REF! ->  | S60: =IF(AND(YEAR($K60)<=S$2,YEAR($N60)>=S$2),$E60,0) -> 852 | T60: 852 | U60: 0 | V60: 0 | W60: 0 | X60: 0 | Y60: 0 | Z60: 0 | AA60: 0 | AB60: 0 | AC60: 0 | AD60: 0
A61: 65 | B61: 3.3.3.2 | C61: СНМ2.05.3.04.0 | D61: Многоуровневая парковка на 300 м/м ПК-5, М-2 "Мой Ритм" | E61: =G61 -> 1,443 | G61: 1,443 | H61: 300 | K61: 2017-05-15 | L61: 2017-08-23 | M61: 2017-12-01 | N61: 2020-11-12 | O61: ='Производственная программа'!#REF! ->  | P61: ='Производственная программа'!#REF! ->  | Q61: ='Производственная программа'!#REF! ->  | R61: ='Производственная программа'!#REF! ->  | S61: 1,443 | T61: 1,443 | U61: 1,443 | V61: 1,443 | W61: 0 | X61: 0 | Y61: 0 | Z61: 0 | AA61: 0 | AB61: 0 | AC61: 0 | AD61: 0
A62: 66 | B62: 3.3.4 | C62: СНМ2.01.0.00.0 | D62: Жилой район "Седьмое Небо" Жилой комплекс "Мой Ритм" ПК-1 | E62: =SUM(E63:E65) -> 47,920 | F62: =SUM(F63:F65) -> 24,542 | G62: =SUM(G63:G65) -> 23,378 | H62: =SUM(H63:H65) -> 300 | I62: =SUM(I63:I65) -> 633 | J62: =J64 -> 1 | O62: ='Производственная программа'!#REF! ->  | P62: ='Производственная программа'!#REF! ->  | Q62: ='Производственная программа'!#REF! ->  | R62: ='Производственная программа'!#REF! ->  | S62: =SUM(S63:S65) -> 0 | T62: =SUM(T63:T65) -> 0 | U62: 0 | V62: 0 | W62: 0 | X62: 46,628 | Y62: 0 | Z62: 0 | AA62: 0 | AB62: 0 | AC62: 0 | AD62: 0
A63: 67 | B63: 3.3.4.1 | C63: СНМ2.01.2.01.0 | D63: Жилой район "Седьмое Небо" Жилой комплекс "Мой Ритм" ПК-1 бизнес-центр | E63: =F63+G63 -> 20,000 | F63: 0 | G63: 20,000 | N63: 2022-10-01 | O63: ='Производственная программа'!#REF! ->  | P63: ='Производственная программа'!#REF! ->  | Q63: ='Производственная программа'!#REF! ->  | R63: ='Производственная программа'!#REF! ->  | X63: =IF(AND(YEAR($K63)<=X$2,YEAR($N63)>=X$2),$E63,0) -> 20,000 | Y63: 0 | Z63: 0 | AA63: 0 | AB63: 0 | AC63: 0 | AD63: 0
A64: 68 | B64: 3.3.4.2 | C64: СНМ2.01.1.01.2 | D64: Жилой район "Седьмое Небо" Жилой комплекс "Мой Ритм" ПК-1 ж/д 1-2 | E64: =F64+G64 -> 26,628 | F64: 24,542 | G64: 2,086 | I64: 633 | J64: 1 | N64: 2022-04-01 | O64: ='Производственная программа'!#REF! ->  | P64: ='Производственная программа'!#REF! ->  | Q64: ='Производственная программа'!#REF! ->  | R64: ='Производственная программа'!#REF! ->  | X64: 26,628 | Y64: 0 | Z64: 0 | AA64: 0 | AB64: 0 | AC64: 0 | AD64: 0 | AF64: =IF(S64>1,$G64,0) -> 0 | AG64: 0 | AH64: 0 | AI64: 0 | AJ64: 0 | AK64: 2086 | AL64: 0 | AM64: 0 | AN64: 0 | AO64: 0 | AP64: 0 | AQ64: 0
A65: 69 | B65: 3.3.4.3 | C65: СНМ2.01.3.01.0 | D65: Многоуровневая парковка на 300 м/м ПК-1, М-2 "Мой Ритм" | E65: =G65 -> 1,292 | G65: 1,292 | H65: 300 | O65: ='Производственная программа'!#REF! ->  | P65: ='Производственная программа'!#REF! ->  | Q65: ='Производственная программа'!#REF! ->  | R65: ='Производственная программа'!#REF! ->  | S65: =IF(AND(YEAR($K65)<=S$2,YEAR($N65)>=S$2),$E65,0) -> 0 | T65: =IF(AND(YEAR($K65)<=T$2,YEAR($N65)>=T$2),$E65,0) -> 0 | U65: =IF(AND(YEAR($K65)<=U$2,YEAR($N65)>=U$2),$E65,0) -> 0 | V65: =IF(AND(YEAR($K65)<=V$2,YEAR($N65)>=V$2),$E65,0) -> 0 | W65: =IF(AND(YEAR($K65)<=W$2,YEAR($N65)>=W$2),$E65,0) -> 0 | X65: 0 | Y65: 0 | Z65: 0 | AA65: 0 | AB65: 0 | AC65: 0 | AD65: 0
A66: 70 | B66: 3.4 | C66: СНМ1.00.0.00.0 | D66: Жилой район "Седьмое Небо" Жилой комплекс Микрорайон М-1 | E66: =SUM(E67,E70,E73,E76,E80,E84,E88,E92,E94,E96) -> 348,819 | F66: 315,975 | G66: 33,346 | H66: 3,647 | I66: 5,608 | J66: 21 | O66: ='Производственная программа'!#REF! ->  | P66: ='Производственная программа'!#REF! ->  | Q66: ='Производственная программа'!#REF! ->  | R66: ='Производственная программа'!#REF! ->  | S66: =SUM(S67,S70,S73,S76,S80,S84,S88,S92,S94,S96) -> 0 | T66: 0 | U66: 116,560 | V66: 348,819 | W66: 232,258 | X66: 232,258 | Y66: 0 | Z66: 0 | AA66: 0 | AB66: 0 | AC66: 0 | AD66: 0
A67: 71 | B67: 3.4.1 | C67: СНМ1.01.0.00.0 | D67: Жилой район "Седьмое Небо" Жилой комплекс Микрорайон М-1 ПК-01 | E67: =SUM(E68:E69) -> 57,365 | F67: 50,463 | G67: 6,902 | H67: 335 | I67: 1,061 | J67: 2 | O67: ='Производственная программа'!#REF! ->  | P67: ='Производственная программа'!#REF! ->  | Q67: ='Производственная программа'!#REF! ->  | R67: ='Производственная программа'!#REF! ->  | S67: =SUM(S68:S69) -> 0 | T67: 0 | U67: 57,365 | V67: 57,365 | W67: 0 | X67: 0 | Y67: 0 | Z67: 0 | AA67: 0 | AB67: 0 | AC67: 0 | AD67: 0
A68: 72 | B68: 3.4.1.1 | C68: СНМ1.01.1.01.0 | D68: Жилой район "Седьмое Небо" Жилой комплекс Микрорайон М-1 ПК-01 ЖД №1 | E68: =F68+G68 -> 30,244 | F68: 25,747 | G68: 4,496 | H68: 335 | I68: 590 | J68: 1 | L68: 2019-08-10 | M68: 2019-09-12 | N68: 2020-05-13 | O68: ='Производственная программа'!#REF! ->  | P68: ='Производственная программа'!#REF! ->  | Q68: ='Производственная программа'!#REF! ->  | R68: ='Производственная программа'!#REF! ->  | U68: =IF(AND(YEAR($K68)<=U$2,YEAR($N68)>=U$2),$E68,0) -> 30,244 | V68: 30,244 | W68: 0 | X68: 0 | Y68: 0 | Z68: 0 | AA68: 0 | AB68: 0 | AC68: 0 | AD68: 0 | AF68: =IF(S68>1,$G68,0) -> 0 | AG68: 0 | AH68: 4496 | AI68: 4496 | AJ68: 0 | AK68: 0 | AL68: 0 | AM68: 0 | AN68: 0 | AO68: 0 | AP68: 0 | AQ68: 0
A69: 73 | B69: 3.4.1.2 | C69: СНМ1.01.1.02.0 | D69: Жилой район "Седьмое Небо" Жилой комплекс Микрорайон М-1 ПК-01 ЖД №2 | E69: =F69+G69 -> 27,122 | F69: 24,716 | G69: 2,406 | I69: 471 | J69: 1 | L69: 2019-08-10 | M69: 2019-09-12 | N69: 2020-05-13 | O69: ='Производственная программа'!#REF! ->  | P69: ='Производственная программа'!#REF! ->  | Q69: ='Производственная программа'!#REF! ->  | R69: ='Производственная программа'!#REF! ->  | U69: 27,122 | V69: 27,122 | W69: 0 | X69: 0 | Y69: 0 | Z69: 0 | AA69: 0 | AB69: 0 | AC69: 0 | AD69: 0 | AF69: 0 | AG69: 0 | AH69: 2406 | AI69: 2406 | AJ69: 0 | AK69: 0 | AL69: 0 | AM69: 0 | AN69: 0 | AO69: 0 | AP69: 0 | AQ69: 0
A70: 74 | B70: 3.4.2 | C70: СНМ1.05.1.00.0 | D70: Жилой район "Седьмое Небо" Жилой комплекс Микрорайон М-1 ПК-05 | E70: =SUM(E71:E72) -> 27,036 | F70: 22,867 | G70: 4,170 | H70: 209 | I70: 472 | J70: 2 | O70: ='Производственная программа'!#REF! ->  | P70: ='Производственная программа'!#REF! ->  | Q70: ='Производственная программа'!#REF! ->  | R70: ='Производственная программа'!#REF! ->  | S70: =SUM(S71:S72) -> 0 | T70: 0 | U70: 27,036 | V70: 27,036 | W70: 0 | X70: 0 | Y70: 0 | Z70: 0 | AA70: 0 | AB70: 0 | AC70: 0 | AD70: 0
A71: 75 | B71: 3.4.2.1 | C71: СНМ1.05.1.01.0 | D71: Жилой район "Седьмое Небо" Жилой комплекс Микрорайон М-1 ПК-05 ЖД №1 | E71: =F71+G71 -> 13,164 | F71: 10,480 | G71: 2,684 | H71: 209 | I71: 216 | J71: 1 | L71: 2019-08-10 | M71: 2019-09-12 | N71: 2020-05-13 | O71: ='Производственная программа'!#REF! ->  | P71: ='Производственная программа'!#REF! ->  | Q71: ='Производственная программа'!#REF! ->  | R71: ='Производственная программа'!#REF! ->  | U71: =IF(AND(YEAR($K71)<=U$2,YEAR($N71)>=U$2),$E71,0) -> 13,164 | V71: 13,164 | W71: 0 | X71: 0 | Y71: 0 | Z71: 0 | AA71: 0 | AB71: 0 | AC71: 0 | AD71: 0 | AF71: =IF(S71>1,$G71,0) -> 0 | AG71: 0 | AH71: 2684 | AI71: 2684 | AJ71: 0 | AK71: 0 | AL71: 0 | AM71: 0 | AN71: 0 | AO71: 0 | AP71: 0 | AQ71: 0
A72: 76 | B72: 3.4.2.2 | C72: СНМ1.05.1.02.0 | D72: Жилой район "Седьмое Небо" Жилой комплекс Микрорайон М-1 ПК-05 ЖД №2 | E72: =F72+G72 -> 13,872 | F72: 12,387 | G72: 1,485 | I72: 256 | J72: 1 | L72: 2019-08-10 | M72: 2019-09-12 | N72: 2020-05-13 | O72: ='Производственная программа'!#REF! ->  | P72: ='Производственная программа'!#REF! ->  | Q72: ='Производственная программа'!#REF! ->  | R72: ='Производственная программа'!#REF! ->  | U72: 13,872 | V72: 13,872 | W72: 0 | X72: 0 | Y72: 0 | Z72: 0 | AA72: 0 | AB72: 0 | AC72: 0 | AD72: 0 | AF72: 0 | AG72: 0 | AH72: 1485 | AI72: 1485 | AJ72: 0 | AK72: 0 | AL72: 0 | AM72: 0 | AN72: 0 | AO72: 0 | AP72: 0 | AQ72: 0
A73: 77 | B73: 3.4.3 | C73: СНМ1.10.1.00.0 | D73: Жилой район "Седьмое Небо" Жилой комплекс Микрорайон М-1 ПК-10 | E73: =SUM(E74:E75) -> 32,159 | F73: 27,728 | G73: 4,431 | H73: 222 | I73: 546 | J73: 2 | O73: ='Производственная программа'!#REF! ->  | P73: ='Производственная программа'!#REF! ->  | Q73: ='Производственная программа'!#REF! ->  | R73: ='Производственная программа'!#REF! ->  | S73: =SUM(S74:S75) -> 0 | T73: 0 | U73: 32,159 | V73: 32,159 | W73: 0 | X73: 0 | Y73: 0 | Z73: 0 | AA73: 0 | AB73: 0 | AC73: 0 | AD73: 0
A74: 78 | B74: 3.4.3.1 | C74: СНМ1.10.1.01.0 | D74: Жилой район "Седьмое Небо" Жилой комплекс Микрорайон М-1 ПК-10 ЖД №1 | E74: =F74+G74 -> 18,970 | F74: 15,690 | G74: 3,281 | H74: 222 | I74: 330 | J74: 1 | L74: 2019-08-10 | M74: 2019-09-12 | N74: 2020-05-13 | O74: ='Производственная программа'!#REF! ->  | P74: ='Производственная программа'!#REF! ->  | Q74: ='Производственная программа'!#REF! ->  | R74: ='Производственная программа'!#REF! ->  | U74: =IF(AND(YEAR($K74)<=U$2,YEAR($N74)>=U$2),$E74,0) -> 18,970 | V74: 18,970 | W74: 0 | X74: 0 | Y74: 0 | Z74: 0 | AA74: 0 | AB74: 0 | AC74: 0 | AD74: 0 | AF74: =IF(S74>1,$G74,0) -> 0 | AG74: 0 | AH74: 3281 | AI74: 3281 | AJ74: 0 | AK74: 0 | AL74: 0 | AM74: 0 | AN74: 0 | AO74: 0 | AP74: 0 | AQ74: 0
A75: 79 | B75: 3.4.3.2 | C75: СНМ1.10.1.02.0 | D75: Жилой район "Седьмое Небо" Жилой комплекс Микрорайон М-1 ПК-10 ЖД №2 | E75: =F75+G75 -> 13,189 | F75: 12,039 | G75: 1,150 | I75: 216 | J75: 1 | L75: 2019-08-10 | M75: 2019-09-12 | N75: 2020-05-13 | O75: ='Производственная программа'!#REF! ->  | P75: ='Производственная программа'!#REF! ->  | Q75: ='Производственная программа'!#REF! ->  | R75: ='Производственная программа'!#REF! ->  | U75: 13,189 | V75: 13,189 | W75: 0 | X75: 0 | Y75: 0 | Z75: 0 | AA75: 0 | AB75: 0 | AC75: 0 | AD75: 0 | AF75: 0 | AG75: 0 | AH75: 1150 | AI75: 1150 | AJ75: 0 | AK75: 0 | AL75: 0 | AM75: 0 | AN75: 0 | AO75: 0 | AP75: 0 | AQ75: 0
A76: 80 | B76: 3.4.4 | C76: СНМ1.03.0.00.0 | D76: Жилой район "Седьмое Небо" Жилой комплекс Микрорайон М-1 ПК-03 | E76: =SUM(E77,E78,E79) -> 32,394 | F76: =SUM(F77:F79) -> 29,886 | G76: =SUM(G77:G79) -> 2,508 | H76: =SUM(H77:H79) -> 349 | I76: =SUM(I77:I79) -> 443 | J76: =SUM(J77:J79) -> 3 | O76: ='Производственная программа'!#REF! ->  | P76: ='Производственная программа'!#REF! ->  | Q76: ='Производственная программа'!#REF! ->  | R76: ='Производственная программа'!#REF! ->  | S76: =SUM(S77,S78,S79) -> 0 | T76: =SUM(T77,T78,T79) -> 0 | U76: =SUM(U77,U78,U79) -> 0 | V76: =SUM(V77,V78,V79) -> 32,394 | W76: =SUM(W77,W78,W79) -> 32,394 | X76: =SUM(X77,X78,X79) -> 32,394 | Y76: 0 | Z76: 0 | AA76: 0 | AB76: 0 | AC76: 0 | AD76: 0
A77: 81 | B77: 3.4.4.1 | C77: СНМ1.03.1.01.0 | D77: Жилой район "Седьмое Небо" Жилой комплекс Микрорайон М-1 ПК-03 ЖД №1 | E77: =F77+G77 -> 18,315 | F77: 16,985 | G77: 1,330 | H77: 349 | I77: 251 | J77: 1 | L77: 2020-02-01 | M77: 2020-03-11 | N77: 2022-05-10 | O77: ='Производственная программа'!#REF! ->  | P77: ='Производственная программа'!#REF! ->  | Q77: ='Производственная программа'!#REF! ->  | R77: ='Производственная программа'!#REF! ->  | V77: =IF(AND(YEAR($K77)<=V$2,YEAR($N77)>=V$2),$E77,0) -> 18,315 | W77: 18,315 | X77: 18,315 | Y77: 0 | Z77: 0 | AA77: 0 | AB77: 0 | AC77: 0 | AD77: 0 | AF77: =IF(S77>1,$G77,0) -> 0 | AG77: 0 | AH77: 0 | AI77: 1330 | AJ77: 1330 | AK77: 1330 | AL77: 0 | AM77: 0 | AN77: 0 | AO77: 0 | AP77: 0 | AQ77: 0
A78: 82 | B78: 3.4.4.2 | C78: СНМ1.03.1.02.0 | D78: Жилой район "Седьмое Небо" Жилой комплекс Микрорайон М-1 ПК-03 ЖД №2 | E78: =F78+G78 -> 7,047 | F78: 6,450 | G78: 597 | I78: 96 | J78: 1 | L78: 2020-02-01 | M78: 2020-03-11 | N78: 2022-05-10 | O78: ='Производственная программа'!#REF! ->  | P78: ='Производственная программа'!#REF! ->  | Q78: ='Производственная программа'!#REF! ->  | R78: ='Производственная программа'!#REF! ->  | V78: 7,047 | W78: 7,047 | X78: 7,047 | Y78: 0 | Z78: 0 | AA78: 0 | AB78: 0 | AC78: 0 | AD78: 0 | AF78: 0 | AG78: 0 | AH78: 0 | AI78: 597 | AJ78: 597 | AK78: 597 | AL78: 0 | AM78: 0 | AN78: 0 | AO78: 0 | AP78: 0 | AQ78: 0
A79: 84 | B79: 3.4.4.3 | C79: СНМ1.03.1.03.0 | D79: Жилой район "Седьмое Небо" Жилой комплекс Микрорайон М-1 ПК-03 ЖД №3 | E79: =F79+G79 -> 7,032 | F79: 6,450 | G79: 582 | I79: 96 | J79: 1 | L79: 2020-02-01 | M79: 2020-03-11 | N79: 2022-05-10 | O79: ='Производственная программа'!#REF! ->  | P79: ='Производственная программа'!#REF! ->  | Q79: ='Производственная программа'!#REF! ->  | R79: ='Производственная программа'!#REF! ->  | V79: 7,032 | W79: 7,032 | X79: 7,032 | Y79: 0 | Z79: 0 | AA79: 0 | AB79: 0 | AC79: 0 | AD79: 0 | AF79: 0 | AG79: 0 | AH79: 0 | AI79: 582 | AJ79: 582 | AK79: 582 | AL79: 0 | AM79: 0 | AN79: 0 | AO79: 0 | AP79: 0 | AQ79: 0
A80: 86 | B80: 3.4.5 | C80: СНМ1.11.0.00.0 | D80: Жилой район "Седьмое Небо" Жилой комплекс Микрорайон М-1 ПК-11 | E80: =SUM(E81,E82,E83) -> 32,394 | F80: =SUM(F81:F83) -> 29,886 | G80: =SUM(G81:G83) -> 2,508 | H80: =SUM(H81:H83) -> 349 | I80: =SUM(I81:I83) -> 443 | J80: =SUM(J81:J83) -> 3 | O80: ='Производственная программа'!#REF! ->  | P80: ='Производственная программа'!#REF! ->  | Q80: ='Производственная программа'!#REF! ->  | R80: ='Производственная программа'!#REF! ->  | S80: =SUM(S81,S82,S83) -> 0 | T80: =SUM(T81,T82,T83) -> 0 | U80: =SUM(U81,U82,U83) -> 0 | V80: =SUM(V81,V82,V83) -> 32,394 | W80: =SUM(W81,W82,W83) -> 32,394 | X80: =SUM(X81,X82,X83) -> 32,394 | Y80: 0 | Z80: 0 | AA80: 0 | AB80: 0 | AC80: 0 | AD80: 0
A81: 87 | B81: 3.4.5.1 | C81: СНМ1.11.1.01.0 | D81: Жилой район "Седьмое Небо" Жилой комплекс Микрорайон М-1 ПК-11 ЖД №1 | E81: =F81+G81 -> 18,315 | F81: 16,985 | G81: 1,330 | H81: 349 | I81: 251 | J81: 1 | L81: 2020-02-01 | M81: 2020-03-11 | N81: 2022-05-10 | O81: ='Производственная программа'!#REF! ->  | P81: ='Производственная программа'!#REF! ->  | Q81: ='Производственная программа'!#REF! ->  | R81: ='Производственная программа'!#REF! ->  | V81: =IF(AND(YEAR($K81)<=V$2,YEAR($N81)>=V$2),$E81,0) -> 18,315 | W81: 18,315 | X81: 18,315 | Y81: 0 | Z81: 0 | AA81: 0 | AB81: 0 | AC81: 0 | AD81: 0 | AF81: =IF(S81>1,$G81,0) -> 0 | AG81: 0 | AH81: 0 | AI81: 1330 | AJ81: 1330 | AK81: 1330 | AL81: 0 | AM81: 0 | AN81: 0 | AO81: 0 | AP81: 0 | AQ81: 0
A82: 88 | B82: 3.4.5.2 | C82: СНМ1.11.1.02.0 | D82: Жилой район "Седьмое Небо" Жилой комплекс Микрорайон М-1 ПК-11 ЖД №2 | E82: =F82+G82 -> 7,047 | F82: 6,450 | G82: 597 | I82: 96 | J82: 1 | L82: 2020-02-01 | M82: 2020-03-11 | N82: 2022-05-10 | O82: ='Производственная программа'!#REF! ->  | P82: ='Производственная программа'!#REF! ->  | Q82: ='Производственная программа'!#REF! ->  | R82: ='Производственная программа'!#REF! ->  | V82: 7,047 | W82: 7,047 | X82: 7,047 | Y82: 0 | Z82: 0 | AA82: 0 | AB82: 0 | AC82: 0 | AD82: 0 | AF82: 0 | AG82: 0 | AH82: 0 | AI82: 597 | AJ82: 597 | AK82: 597 | AL82: 0 | AM82: 0 | AN82: 0 | AO82: 0 | AP82: 0 | AQ82: 0
A83: 90 | B83: 3.4.5.3 | C83: СНМ1.11.1.03.0 | D83: Жилой район "Седьмое Небо" Жилой комплекс Микрорайон М-1 ПК-11 ЖД №3 | E83: =F83+G83 -> 7,032 | F83: 6,450 | G83: 582 | I83: 96 | J83: 1 | L83: 2020-02-01 | M83: 2020-03-11 | N83: 2022-05-10 | O83: ='Производственная программа'!#REF! ->  | P83: ='Производственная программа'!#REF! ->  | Q83: ='Производственная программа'!#REF! ->  | R83: ='Производственная программа'!#REF! ->  | V83: 7,032 | W83: 7,032 | X83: 7,032 | Y83: 0 | Z83: 0 | AA83: 0 | AB83: 0 | AC83: 0 | AD83: 0 | AF83: 0 | AG83: 0 | AH83: 0 | AI83: 582 | AJ83: 582 | AK83: 582 | AL83: 0 | AM83: 0 | AN83: 0 | AO83: 0 | AP83: 0 | AQ83: 0
A84: 92 | B84: 3.4.6 | C84: СНМ1.12.0.00.0 | D84: Жилой район "Седьмое Небо" Жилой комплекс Микрорайон М-1 ПК-12 | E84: =SUM(E85,E86,E87) -> 32,394 | F84: =SUM(F85:F87) -> 29,886 | G84: =SUM(G85:G87) -> 2,508 | H84: =SUM(H85:H87) -> 349 | I84: =SUM(I85:I87) -> 443 | J84: =SUM(J85:J87) -> 3 | O84: ='Производственная программа'!#REF! ->  | P84: ='Производственная программа'!#REF! ->  | Q84: ='Производственная программа'!#REF! ->  | R84: ='Производственная программа'!#REF! ->  | S84: =SUM(S85,S86,S87) -> 0 | T84: =SUM(T85,T86,T87) -> 0 | U84: =SUM(U85,U86,U87) -> 0 | V84: =SUM(V85,V86,V87) -> 32,394 | W84: =SUM(W85,W86,W87) -> 32,394 | X84: =SUM(X85,X86,X87) -> 32,394 | Y84: 0 | Z84: 0 | AA84: 0 | AB84: 0 | AC84: 0 | AD84: 0
A85: 93 | B85: 3.4.6.1 | C85: СНМ1.12.1.01.0 | D85: Жилой район "Седьмое Небо" Жилой комплекс Микрорайон М-1 ПК-12 ЖД №1 | E85: =F85+G85 -> 18,315 | F85: 16,985 | G85: 1,330 | H85: 349 | I85: 251 | J85: 1 | L85: 2020-02-01 | M85: 2020-03-11 | N85: 2022-05-10 | O85: ='Производственная программа'!#REF! ->  | P85: ='Производственная программа'!#REF! ->  | Q85: ='Производственная программа'!#REF! ->  | R85: ='Производственная программа'!#REF! ->  | V85: =IF(AND(YEAR($K85)<=V$2,YEAR($N85)>=V$2),$E85,0) -> 18,315 | W85: 18,315 | X85: 18,315 | Y85: 0 | Z85: 0 | AA85: 0 | AB85: 0 | AC85: 0 | AD85: 0 | AF85: =IF(S85>1,$G85,0) -> 0 | AG85: 0 | AH85: 0 | AI85: 1330 | AJ85: 1330 | AK85: 1330 | AL85: 0 | AM85: 0 | AN85: 0 | AO85: 0 | AP85: 0 | AQ85: 0
A86: 94 | B86: 3.4.6.2 | C86: СНМ1.12.1.02.0 | D86: Жилой район "Седьмое Небо" Жилой комплекс Микрорайон М-1 ПК-12 ЖД №2 | E86: =F86+G86 -> 7,047 | F86: 6,450 | G86: 597 | I86: 96 | J86: 1 | L86: 2020-02-01 | M86: 2020-03-11 | N86: 2022-05-10 | O86: ='Производственная программа'!#REF! ->  | P86: ='Производственная программа'!#REF! ->  | Q86: ='Производственная программа'!#REF! ->  | R86: ='Производственная программа'!#REF! ->  | V86: 7,047 | W86: 7,047 | X86: 7,047 | Y86: 0 | Z86: 0 | AA86: 0 | AB86: 0 | AC86: 0 | AD86: 0 | AF86: 0 | AG86: 0 | AH86: 0 | AI86: 597 | AJ86: 597 | AK86: 597 | AL86: 0 | AM86: 0 | AN86: 0 | AO86: 0 | AP86: 0 | AQ86: 0
A87: 96 | B87: 3.4.6.3 | C87: СНМ1.12.1.03.0 | D87: Жилой район "Седьмое Небо" Жилой комплекс Микрорайон М-1 ПК-12 ЖД №3 | E87: =F87+G87 -> 7,032 | F87: 6,450 | G87: 582 | I87: 96 | J87: 1 | L87: 2020-02-01 | M87: 2020-03-11 | N87: 2022-05-10 | O87: ='Производственная программа'!#REF! ->  | P87: ='Производственная программа'!#REF! ->  | Q87: ='Производственная программа'!#REF! ->  | R87: ='Производственная программа'!#REF! ->  | V87: 7,032 | W87: 7,032 | X87: 7,032 | Y87: 0 | Z87: 0 | AA87: 0 | AB87: 0 | AC87: 0 | AD87: 0 | AF87: 0 | AG87: 0 | AH87: 0 | AI87: 582 | AJ87: 582 | AK87: 582 | AL87: 0 | AM87: 0 | AN87: 0 | AO87: 0 | AP87: 0 | AQ87: 0
A88: 98 | B88: 3.4.7 | C88: СНМ1.13.0.00.0 | D88: Жилой район "Седьмое Небо" Жилой комплекс Микрорайон М-1 ПК-13 | E88: =SUM(E89,E90,E91) -> 26,933 | F88: =SUM(F89:F91) -> 24,375 | G88: =SUM(G89:G91) -> 2,558 | H88: =SUM(H89:H91) -> 349 | I88: =SUM(I89:I91) -> 365 | J88: =SUM(J89:J91) -> 3 | O88: ='Производственная программа'!#REF! ->  | P88: ='Производственная программа'!#REF! ->  | Q88: ='Производственная программа'!#REF! ->  | R88: ='Производственная программа'!#REF! ->  | S88: =SUM(S89,S90,S91) -> 0 | T88: =SUM(T89,T90,T91) -> 0 | U88: =SUM(U89,U90,U91) -> 0 | V88: =SUM(V89,V90,V91) -> 26,933 | W88: =SUM(W89,W90,W91) -> 26,933 | X88: =SUM(X89,X90,X91) -> 26,933 | Y88: 0 | Z88: 0 | AA88: 0 | AB88: 0 | AC88: 0 | AD88: 0
A89: 99 | B89: 3.4.7.1 | C89: СНМ1.13.1.01.0 | D89: Жилой район "Седьмое Небо" Жилой комплекс Микрорайон М-1 ПК-13 ЖД №1 | E89: =F89+G89 -> 12,853 | F89: 11,474 | G89: 1,379 | H89: 349 | I89: 173 | J89: 1 | L89: 2020-02-01 | M89: 2020-03-11 | N89: 2022-05-10 | O89: ='Производственная программа'!#REF! ->  | P89: ='Производственная программа'!#REF! ->  | Q89: ='Производственная программа'!#REF! ->  | R89: ='Производственная программа'!#REF! ->  | V89: =IF(AND(YEAR($K89)<=V$2,YEAR($N89)>=V$2),$E89,0) -> 12,853 | W89: 12,853 | X89: 12,853 | Y89: 0 | Z89: 0 | AA89: 0 | AB89: 0 | AC89: 0 | AD89: 0 | AF89: =IF(S89>1,$G89,0) -> 0 | AG89: 0 | AH89: 0 | AI89: 1379 | AJ89: 1379 | AK89: 1379 | AL89: 0 | AM89: 0 | AN89: 0 | AO89: 0 | AP89: 0 | AQ89: 0
A90: 100 | B90: 3.4.7.2 | C90: СНМ1.13.1.02.0 | D90: Жилой район "Седьмое Небо" Жилой комплекс Микрорайон М-1 ПК-13 ЖД №2 | E90: =F90+G90 -> 7,047 | F90: 6,450 | G90: 597 | I90: 96 | J90: 1 | L90: 2020-02-01 | M90: 2020-03-11 | N90: 2022-05-10 | O90: ='Производственная программа'!#REF! ->  | P90: ='Производственная программа'!#REF! ->  | Q90: ='Производственная программа'!#REF! ->  | R90: ='Производственная программа'!#REF! ->  | V90: 7,047 | W90: 7,047 | X90: 7,047 | Y90: 0 | Z90: 0 | AA90: 0 | AB90: 0 | AC90: 0 | AD90: 0 | AF90: 0 | AG90: 0 | AH90: 0 | AI90: 597 | AJ90: 597 | AK90: 597 | AL90: 0 | AM90: 0 | AN90: 0 | AO90: 0 | AP90: 0 | AQ90: 0
A91: 102 | B91: 3.4.7.3 | C91: СНМ1.13.1.03.0 | D91: Жилой район "Седьмое Небо" Жилой комплекс Микрорайон М-1 ПК-13 ЖД №3 | E91: =F91+G91 -> 7,032 | F91: 6,450 | G91: 582 | I91: 96 | J91: 1 | L91: 2020-02-01 | M91: 2020-03-11 | N91: 2022-05-10 | O91: ='Производственная программа'!#REF! ->  | P91: ='Производственная программа'!#REF! ->  | Q91: ='Производственная программа'!#REF! ->  | R91: ='Производственная программа'!#REF! ->  | V91: 7,032 | W91: 7,032 | X91: 7,032 | Y91: 0 | Z91: 0 | AA91: 0 | AB91: 0 | AC91: 0 | AD91: 0 | AF91: 0 | AG91: 0 | AH91: 0 | AI91: 582 | AJ91: 582 | AK91: 582 | AL91: 0 | AM91: 0 | AN91: 0 | AO91: 0 | AP91: 0 | AQ91: 0
A92: 104 | B92: 3.4.8 | C92: СНМ1.04.0.00.0 | D92: Жилой район "Седьмое Небо" Жилой комплекс Микрорайон М-1 ПК-04 | E92: =SUM(E93:E93) -> 49,087 | F92: 45,979 | G92: 3,251 | H92: =SUM(H93:H93) -> 668 | I92: =SUM(I93:I93) -> 849 | J92: =SUM(J93:J93) -> 1 | O92: ='Производственная программа'!#REF! ->  | P92: ='Производственная программа'!#REF! ->  | Q92: ='Производственная программа'!#REF! ->  | R92: ='Производственная программа'!#REF! ->  | S92: =SUM(S93:S93) -> 0 | T92: =SUM(T93:T93) -> 0 | U92: 0 | V92: 49,087 | W92: 49,087 | X92: 49,087 | Y92: 0 | Z92: 0 | AA92: 0 | AB92: 0 | AC92: 0 | AD92: 0
A93: 105 | B93: 3.4.8.1 | C93: СНМ1.04.1.01.0 | D93: Жилой район "Седьмое Небо" Жилой комплекс Микрорайон М-1 ПК-04 ЖД №1 | E93: =F93+G93 -> 49,087 | F93: 45,937 | G93: 3,150 | H93: 668 | I93: 849 | J93: 1 | K93: 2020-12-17 | L93: 2021-06-30 | M93: 2021-10-18 | N93: 2022-05-10 | O93: ='Производственная программа'!#REF! ->  | P93: ='Производственная программа'!#REF! ->  | Q93: ='Производственная программа'!#REF! ->  | R93: ='Производственная программа'!#REF! ->  | S93: =IF(AND(YEAR($K93)<=S$2,YEAR($N93)>=S$2),$E93,0) -> 0 | T93: 0 | U93: 0 | V93: 49,087 | W93: 49,087 | X93: 49,087 | Y93: 0 | Z93: 0 | AA93: 0 | AB93: 0 | AC93: 0 | AD93: 0 | AF93: =IF(S93>1,$G93,0) -> 0 | AG93: 0 | AH93: 0 | AI93: 3150 | AJ93: 3150 | AK93: 3150 | AL93: 0 | AM93: 0 | AN93: 0 | AO93: 0 | AP93: 0 | AQ93: 0
A94: 107 | B94: 3.4.9 | C94: СНМ1.09.0.00.0 | D94: Жилой район "Седьмое Небо" Жилой комплекс Микрорайон М-1 ПК-09 | E94: =E95 -> 9,960 | F94: 8,926 | G94: 1,259 | H94: =H95 -> 149 | I94: =I95 -> 137 | J94: =J95 -> 1 | O94: ='Производственная программа'!#REF! ->  | P94: ='Производственная программа'!#REF! ->  | Q94: ='Производственная программа'!#REF! ->  | R94: ='Производственная программа'!#REF! ->  | S94: =S95 -> 0 | T94: =T95 -> 0 | U94: 0 | V94: 9,960 | W94: 9,960 | X94: 9,960 | Y94: 0 | Z94: 0 | AA94: 0 | AB94: 0 | AC94: 0 | AD94: 0
A95: 108 | B95: 3.4.9.1 | C95: СНМ1.09.1.01.0 | D95: Жилой район "Седьмое Небо" Жилой комплекс Микрорайон М-1 ПК-09 ЖД №1 | E95: =F95+G95 -> 9,960 | F95: 8,865 | G95: 1,094 | H95: 149 | I95: 137 | J95: 1 | K95: 2020-12-17 | L95: 2021-06-30 | M95: 2021-10-18 | N95: 2022-05-10 | O95: ='Производственная программа'!#REF! ->  | P95: ='Производственная программа'!#REF! ->  | Q95: ='Производственная программа'!#REF! ->  | R95: ='Производственная программа'!#REF! ->  | S95: =IF(AND(YEAR($K95)<=S$2,YEAR($N95)>=S$2),$E95,0) -> 0 | T95: 0 | U95: 0 | V95: 9,960 | W95: 9,960 | X95: 9,960 | Y95: 0 | Z95: 0 | AA95: 0 | AB95: 0 | AC95: 0 | AD95: 0 | AF95: =IF(S95>1,$G95,0) -> 0 | AG95: 0 | AH95: 0 | AI95: 1094 | AJ95: 1094 | AK95: 1094 | AL95: 0 | AM95: 0 | AN95: 0 | AO95: 0 | AP95: 0 | AQ95: 0
A96: 110 | B96: 3.4.10 | C96: СНМ1.14.0.00.0 | D96: Жилой район "Седьмое Небо" Жилой комплекс Микрорайон М-1 ПК-14 | E96: =SUM(E97,) -> 49,096 | F96: 45,979 | G96: 3,251 | H96: =SUM(H97:H97) -> 668 | I96: =SUM(I97:I97) -> 849 | J96: =SUM(J97:J97) -> 1 | O96: ='Производственная программа'!#REF! ->  | P96: ='Производственная программа'!#REF! ->  | Q96: ='Производственная программа'!#REF! ->  | R96: ='Производственная программа'!#REF! ->  | S96: =SUM(S97,) -> 0 | T96: =SUM(T97,) -> 0 | U96: 0 | V96: 49,096 | W96: 49,096 | X96: 49,096 | Y96: 0 | Z96: 0 | AA96: 0 | AB96: 0 | AC96: 0 | AD96: 0
A97: 111 | B97: 3.4.10.1 | C97: СНМ1.14.1.01.0 | D97: Жилой район "Седьмое Небо" Жилой комплекс Микрорайон М-1 ПК-14 ЖД №1 | E97: =F97+G97 -> 49,096 | F97: 45,937 | G97: 3,159 | H97: 668 | I97: 849 | J97: 1 | K97: 2020-12-17 | L97: 2021-06-30 | M97: 2021-10-18 | N97: 2022-05-10 | O97: ='Производственная программа'!#REF! ->  | P97: ='Производственная программа'!#REF! ->  | Q97: ='Производственная программа'!#REF! ->  | R97: ='Производственная программа'!#REF! ->  | S97: =IF(AND(YEAR($K97)<=S$2,YEAR($N97)>=S$2),$E97,0) -> 0 | T97: 0 | U97: 0 | V97: 49,096 | W97: 49,096 | X97: 49,096 | Y97: 0 | Z97: 0 | AA97: 0 | AB97: 0 | AC97: 0 | AD97: 0 | AF97: =IF(S97>1,$G97,0) -> 0 | AG97: 0 | AH97: 0 | AI97: 3159 | AJ97: 3159 | AK97: 3159 | AL97: 0 | AM97: 0 | AN97: 0 | AO97: 0 | AP97: 0 | AQ97: 0
A98: 113 | B98: 3.5 | C98: СНМ3.00.0.00.0 | D98: Жилой район "Седьмое Небо" Жилой комплекс Микрорайон М-3 | E98: =SUM(E99:E100,E101,E102) -> 112,263 | F98: 87,449 | G98: 24,814 | H98: 1,674 | I98: 1,816 | J98: 5 | O98: ='Производственная программа'!#REF! ->  | P98: ='Производственная программа'!#REF! ->  | Q98: ='Производственная программа'!#REF! ->  | R98: ='Производственная программа'!#REF! ->  | S98: =SUM(S99:S100,S101,S102) -> 0 | T98: 0 | U98: 0 | V98: 0 | W98: 95,971 | X98: 95,971 | Y98: 0 | Z98: 0 | AA98: 0 | AB98: 0 | AC98: 0 | AD98: 0
A99: 114 | B99: 3.5.1 | C99: СНМ3.01.0.00.0 | D99: Жилой район "Седьмое Небо" Жилой комплекс Микрорайон М-3 ПК-01 | E99: =F99+G99 -> 49,003 | F99: 43,426 | G99: 5,577 | H99: 551 | I99: 892 | J99: 2 | K99: 2021-03-30 | M99: 01.11.221 | N99: 2022-05-01 | O99: ='Производственная программа'!#REF! ->  | P99: ='Производственная программа'!#REF! ->  | Q99: ='Производственная программа'!#REF! ->  | R99: ='Производственная программа'!#REF! ->  | S99: =IF(AND(YEAR($K99)<=S$2,YEAR($N99)>=S$2),$E99,0) -> 0 | T99: 0 | U99: 0 | V99: 0 | W99: 49,003 | X99: 49,003 | Y99: 0 | Z99: 0 | AA99: 0 | AB99: 0 | AC99: 0 | AD99: 0 | AF99: =IF(S99>1,$G99,0) -> 0 | AG99: 0 | AH99: 0 | AI99: 0 | AJ99: 5577 | AK99: 5577 | AL99: 0 | AM99: 0 | AN99: 0 | AO99: 0 | AP99: 0 | AQ99: 0
A100: 115 | B100: 3.5.2 | C100: СНМ3.03.0.00.0 | D100: Жилой район "Седьмое Небо" Жилой комплекс Микрорайон М-3 ПК-03 | E100: =F100+G100 -> 46,967 | F100: 44,023 | G100: 2,945 | H100: 551 | I100: 924 | J100: 3 | K100: 2021-03-30 | M100: 2021-11-01 | N100: 2022-05-01 | O100: ='Производственная программа'!#REF! ->  | P100: ='Производственная программа'!#REF! ->  | Q100: ='Производственная программа'!#REF! ->  | R100: ='Производственная программа'!#REF! ->  | S100: 0 | T100: 0 | U100: 0 | V100: 0 | W100: 46,967 | X100: 46,967 | Y100: 0 | Z100: 0 | AA100: 0 | AB100: 0 | AC100: 0 | AD100: 0 | AF100: 0 | AG100: 0 | AH100: 0 | AI100: 0 | AJ100: 2945 | AK100: 2945 | AL100: 0 | AM100: 0 | AN100: 0 | AO100: 0 | AP100: 0 | AQ100: 0
A101: 117 | B101: 3.5.3 | C101: СНМ3.00.2.01.0 | D101: Жилой район "Седьмое Небо" Жилой комплекс Микрорайон М-3 бизнес-центр | E101: =F101+G101 -> 15,000 | F101: 0 | G101: 15,000 | H101: 272 | O101: ='Производственная программа'!#REF! ->  | P101: ='Производственная программа'!#REF! ->  | Q101: ='Производственная программа'!#REF! ->  | R101: ='Производственная программа'!#REF! ->  | S101: 0 | T101: 0 | U101: 0 | V101: 0 | W101: 0 | X101: 0 | Y101: 0 | Z101: 0 | AA101: 0 | AB101: 0 | AC101: 0 | AD101: 0
A102: 118 | B102: 3.5.4 | C102: СНМ3.03.3.01.0 | D102: Многоуровневая парковка на 300 м/м ПК-3, М-3 | E102: =G102 -> 1,292 | G102: 1,292 | H102: 300 | O102: ='Производственная программа'!#REF! ->  | P102: ='Производственная программа'!#REF! ->  | Q102: ='Производственная программа'!#REF! ->  | R102: ='Производственная программа'!#REF! ->  | S102: 0 | T102: 0 | U102: 0 | V102: 0 | W102: 0 | X102: 0 | Y102: 0 | Z102: 0 | AA102: 0 | AB102: 0 | AC102: 0 | AD102: 0
A103: 119 | B103: 3.6 | C103: СНМ4.00.0.00.0 | D103: Жилой район "Седьмое Небо" Жилой комплекс Микрорайон М-4 | E103: =SUM(E104,E105:E107,E108,E109) -> 143,547 | F103: 66,339 | G103: 77,208 | H103: 3,698 | I103: 1,501 | J103: 2 | O103: ='Производственная программа'!#REF! ->  | P103: ='Производственная программа'!#REF! ->  | Q103: ='Производственная программа'!#REF! ->  | R103: ='Производственная программа'!#REF! ->  | S103: =SUM(S104,S105:S107,S108,S109) -> 0 | T103: =SUM(T104,T105:T107,T108,T109) -> 0 | U103: 0 | V103: 0 | W103: 135,945 | X103: 135,945 | Y103: 0 | Z103: 0 | AA103: 0 | AB103: 0 | AC103: 0 | AD103: 0
A104: 120 | B104: 3.6.1 | C104: СНМ4.02.0.00.0 | D104: Жилой район "Седьмое Небо" Жилой комплекс Микрорайон М-4 ПК-6 | E104: =F104+G104 -> 33,207 | F104: 30,995 | G104: 2,212 | H104: 349 | I104: 708 | J104: 1 | K104: 2021-11-19 | L104: 2022-04-25 | M104: 2022-06-24 | N104: 2022-09-26 | O104: ='Производственная программа'!#REF! ->  | P104: ='Производственная программа'!#REF! ->  | Q104: ='Производственная программа'!#REF! ->  | R104: ='Производственная программа'!#REF! ->  | S104: =IF(AND(YEAR($K104)<=S$2,YEAR($N104)>=S$2),$E104,0) -> 0 | T104: 0 | U104: 0 | V104: 0 | W104: 33,207 | X104: 33,207 | Y104: 0 | Z104: 0 | AA104: 0 | AB104: 0 | AC104: 0 | AD104: 0 | AF104: =IF(S104>1,$G104,0) -> 0 | AG104: 0 | AH104: 0 | AI104: 0 | AJ104: 2212 | AK104: 2212 | AL104: 0 | AM104: 0 | AN104: 0 | AO104: 0 | AP104: 0 | AQ104: 0
A105: 122 | B105: 3.6.2 | C105: СНМ4.04.0.00.0 | D105: Жилой район "Седьмое Небо" Жилой комплекс Микрорайон М-4 ПК-7 | E105: 37,738 | F105: 35,344 | G105: 2,394 | H105: 349 | I105: 793 | J105: 1 | K105: 2021-11-19 | L105: 2022-04-25 | M105: 2022-06-24 | N105: 2022-09-26 | O105: ='Производственная программа'!#REF! ->  | P105: ='Производственная программа'!#REF! ->  | Q105: ='Производственная программа'!#REF! ->  | R105: ='Производственная программа'!#REF! ->  | S105: 0 | T105: 0 | U105: 0 | V105: 0 | W105: 37,738 | X105: 37,738 | Y105: 0 | Z105: 0 | AA105: 0 | AB105: 0 | AC105: 0 | AD105: 0 | AF105: 0 | AG105: 0 | AH105: 0 | AI105: 0 | AJ105: 2394 | AK105: 2394 | AL105: 0 | AM105: 0 | AN105: 0 | AO105: 0 | AP105: 0 | AQ105: 0
A106: 123 | B106: 3.6.3 | C106: СНМ4.06.0.00.0 | D106: Жилой район "Седьмое Небо" Жилой комплекс Микрорайон М-4 Технопарк | E106: 65,000 | F106: 0 | G106: 65,000 | K106: 2021-11-19 | L106: 2022-04-25 | M106: 2022-06-24 | N106: 2022-09-26 | O106: ='Производственная программа'!#REF! ->  | P106: ='Производственная программа'!#REF! ->  | Q106: ='Производственная программа'!#REF! ->  | R106: ='Производственная программа'!#REF! ->  | S106: 0 | T106: 0 | U106: 0 | V106: 0 | W106: 65,000 | X106: 65,000 | Y106: 0 | Z106: 0 | AA106: 0 | AB106: 0 | AC106: 0 | AD106: 0
A107: 124 | B107: 3.6.4 | C107: СНМ4.01.3.01.0 | D107: Многоуровневая парковка на 1000 м/м М-4, ПК-1-1 | E107: 2,534 | G107: 2,534 | H107: 1,000 | O107: ='Производственная программа'!#REF! ->  | P107: ='Производственная программа'!#REF! ->  | Q107: ='Производственная программа'!#REF! ->  | R107: ='Производственная программа'!#REF! ->  | S107: 0 | T107: 0 | U107: 0 | V107: 0 | W107: 0 | X107: 0 | Y107: 0 | Z107: 0 | AA107: 0 | AB107: 0 | AC107: 0 | AD107: 0
A108: 126 | B108: 3.6.5 | C108: СНМ4.02.3.01.0 | D108: Многоуровневая парковка на 1000 м/м М-4, ПК-1-2 | E108: 2,534 | G108: 2,534 | H108: 1,000 | O108: ='Производственная программа'!#REF! ->  | P108: ='Производственная программа'!#REF! ->  | Q108: ='Производственная программа'!#REF! ->  | R108: ='Производственная программа'!#REF! ->  | S108: 0 | T108: 0 | U108: 0 | V108: 0 | W108: 0 | X108: 0 | Y108: 0 | Z108: 0 | AA108: 0 | AB108: 0 | AC108: 0 | AD108: 0
A109: 128 | B109: 3.6.6 | C109: СНМ4.03.3.01.0 | D109: Многоуровневая парковка на 1000 м/м М-4, ПК-1-3 | E109: 2,534 | G109: 2,534 | H109: 1,000 | O109: ='Производственная программа'!#REF! ->  | P109: ='Производственная программа'!#REF! ->  | Q109: ='Производственная программа'!#REF! ->  | R109: ='Производственная программа'!#REF! ->  | S109: 0 | T109: 0 | U109: 0 | V109: 0 | W109: 0 | X109: 0 | Y109: 0 | Z109: 0 | AA109: 0 | AB109: 0 | AC109: 0 | AD109: 0
A110: 130 | B110: 3.7 | C110: СНМ4.00.0.00.0 | D110: Жилой район "Седьмое Небо" Жилой комплекс Микрорайон М-5 | E110: =E111 -> 1,288 | G110: =G111 -> 1,288 | H110: =H111 -> 499 | I110: =I111 -> 0 | J110: =J111 -> 0 | O110: ='Производственная программа'!#REF! ->  | P110: ='Производственная программа'!#REF! ->  | Q110: ='Производственная программа'!#REF! ->  | R110: ='Производственная программа'!#REF! ->  | S110: =S111 -> 0 | T110: 0 | U110: 0 | V110: 1,288 | W110: 0 | X110: 0 | Y110: 0 | Z110: 0 | AA110: 0 | AB110: 0 | AC110: 0 | AD110: 0
A111: 131 | B111: 3.7.1 | C111: СНМ5.00.3.01.0 | D111: Многоуровневая парковка на 499 м/м М-5 | E111: =G111 -> 1,288 | G111: 1,288 | H111: 499 | N111: 2020-01-01 | O111: ='Производственная программа'!#REF! ->  | P111: ='Производственная программа'!#REF! ->  | Q111: ='Производственная программа'!#REF! ->  | R111: ='Производственная программа'!#REF! ->  | V111: =IF(AND(YEAR($K111)<=V$2,YEAR($N111)>=V$2),$E111,0) -> 1,288 | W111: 0 | X111: 0 | Y111: 0 | Z111: 0 | AA111: 0 | AB111: 0 | AC111: 0 | AD111: 0
A112: 132 | B112: 3.8 | C112: СНМ8.00.0.00.0 | D112: Жилой район "Седьмое Небо" Жилой комплекс Микрорайон М-8 | E112: =SUM(E113:E117) -> 400,023 | F112: 255,023 | G112: 145,000 | H112: 0 | I112: 3,923 | J112: 30 | O112: ='Производственная программа'!#REF! ->  | P112: ='Производственная программа'!#REF! ->  | Q112: ='Производственная программа'!#REF! ->  | R112: ='Производственная программа'!#REF! ->  | S112: =SUM(S113:S117) -> 400,023 | T112: =SUM(T113:T117) -> 400,023 | U112: 400,023 | V112: 400,023 | W112: 400,023 | X112: 400,023 | Y112: 321,889 | Z112: 73,685 | AA112: 0 | AB112: 0 | AC112: 0 | AD112: 0
A113: 133 | B113: 3.8.1 | C113: СНМ8.01.0.00.0 | D113: ПК-1 Микрорайон М-8, Седьмое небо (2,3,4) | E113: =F113+G113 -> 78,134 | F113: 49,134 | G113: 29,000 | I113: 993 | J113: 6 | K113: 2013-01-01 | L113: 2021-04-01 | N113: 2022-10-05 | O113: ='Производственная программа'!#REF! ->  | P113: ='Производственная программа'!#REF! ->  | Q113: ='Производственная программа'!#REF! ->  | R113: ='Производственная программа'!#REF! ->  | S113: =IF(AND(YEAR($K113)<=S$2,YEAR($N113)>=S$2),$E113,0) -> 78,134 | T113: 78,134 | U113: 78,134 | V113: 78,134 | W113: 78,134 | X113: 78,134 | Y113: 0 | Z113: =IF(AND(YEAR($K113)<=Z$2,YEAR($N113)>=Z$2),$E113,0) -> 0 | AA113: =IF(AND(YEAR($K113)<=AA$2,YEAR($N113)>=AA$2),$E113,0) -> 0 | AB113: =IF(AND(YEAR($K113)<=AB$2,YEAR($N113)>=AB$2),$E113,0) -> 0 | AC113: =IF(AND(YEAR($K113)<=AC$2,YEAR($N113)>=AC$2),$E113,0) -> 0 | AD113: =IF(AND(YEAR($K113)<=AD$2,YEAR($N113)>=AD$2),$E113,0) -> 0 | AF113: =IF(S113>1,$G113,0) -> 29000 | AG113: 29000 | AH113: 29000 | AI113: 29000 | AJ113: 29000 | AK113: 29000 | AL113: 0 | AM113: 0 | AN113: 0 | AO113: 0 | AP113: 0 | AQ113: 0
A114: 134 | B114: 3.8.2 | C114: СНМ8.02.0.00.0 | D114: ПК-2 Микрорайон М-8, Седьмое небо (5,6,8) | E114: =F114+G114 -> 85,079 | F114: 56,079 | G114: 29,000 | I114: 863 | J114: 5 | K114: 2013-01-02 | L114: 2021-04-01 | N114: 2023-01-05 | O114: ='Производственная программа'!#REF! ->  | P114: ='Производственная программа'!#REF! ->  | Q114: ='Производственная программа'!#REF! ->  | R114: ='Производственная программа'!#REF! ->  | S114: 85,079 | T114: 85,079 | U114: 85,079 | V114: 85,079 | W114: 85,079 | X114: 85,079 | Y114: 85,079 | Z114: =IF(AND(YEAR($K114)<=Z$2,YEAR($N114)>=Z$2),$E114,0) -> 0 | AA114: 0 | AB114: 0 | AC114: 0 | AD114: 0 | AF114: 29000 | AG114: 29000 | AH114: 29000 | AI114: 29000 | AJ114: 29000 | AK114: 29000 | AL114: 29000 | AM114: 0 | AN114: 0 | AO114: 0 | AP114: 0 | AQ114: 0
A115: 135 | B115: 3.8.3 | C115: СНМ8.03.0.00.0 | D115: ПК-3 Микрорайон М-8, Седьмое небо (11,12,13) | E115: =F115+G115 -> 75,499 | F115: 46,499 | G115: 29,000 | I115: 552 | J115: 12 | K115: 2013-01-03 | L115: 2021-04-01 | N115: 2023-04-01 | O115: ='Производственная программа'!#REF! ->  | P115: ='Производственная программа'!#REF! ->  | Q115: ='Производственная программа'!#REF! ->  | R115: ='Производственная программа'!#REF! ->  | S115: 75,499 | T115: 75,499 | U115: 75,499 | V115: 75,499 | W115: 75,499 | X115: 75,499 | Y115: 75,499 | Z115: 0 | AA115: 0 | AB115: 0 | AC115: 0 | AD115: 0 | AF115: 29000 | AG115: 29000 | AH115: 29000 | AI115: 29000 | AJ115: 29000 | AK115: 29000 | AL115: 29000 | AM115: 0 | AN115: 0 | AO115: 0 | AP115: 0 | AQ115: 0
A116: 136 | B116: 3.8.4 | C116: СНМ8.04.0.00.0 | D116: ПК-4 Микрорайон М-8, Седьмое небо (14,16,17) | E116: =F116+G116 -> 87,626 | F116: 58,626 | G116: 29,000 | I116: 828 | J116: 4 | K116: 2013-01-04 | L116: 2021-04-01 | N116: 2023-11-01 | O116: ='Производственная программа'!#REF! ->  | P116: ='Производственная программа'!#REF! ->  | Q116: ='Производственная программа'!#REF! ->  | R116: ='Производственная программа'!#REF! ->  | S116: 87,626 | T116: 87,626 | U116: 87,626 | V116: 87,626 | W116: 87,626 | X116: 87,626 | Y116: 87,626 | Z116: 0 | AA116: 0 | AB116: 0 | AC116: 0 | AD116: 0 | AF116: 29000 | AG116: 29000 | AH116: 29000 | AI116: 29000 | AJ116: 29000 | AK116: 29000 | AL116: 29000 | AM116: 0 | AN116: 0 | AO116: 0 | AP116: 0 | AQ116: 0
A117: 137 | B117: 3.8.5 | C117: СНМ8.05.0.00.0 | D117: ПК-5 Микрорайон М-8, Седьмое небо (18,19) | E117: =F117+G117 -> 73,685 | F117: 44,685 | G117: 29,000 | I117: 687 | J117: 3 | K117: 2013-01-05 | L117: 2021-04-01 | N117: 2024-02-01 | O117: ='Производственная программа'!#REF! ->  | P117: ='Производственная программа'!#REF! ->  | Q117: ='Производственная программа'!#REF! ->  | R117: ='Производственная программа'!#REF! ->  | S117: 73,685 | T117: 73,685 | U117: 73,685 | V117: 73,685 | W117: 73,685 | X117: 73,685 | Y117: 73,685 | Z117: =IF(AND(YEAR($K117)<=Z$2,YEAR($N117)>=Z$2),$E117,0) -> 73,685 | AA117: =IF(AND(YEAR($K117)<=AA$2,YEAR($N117)>=AA$2),$E117,0) -> 0 | AB117: =IF(AND(YEAR($K117)<=AB$2,YEAR($N117)>=AB$2),$E117,0) -> 0 | AC117: =IF(AND(YEAR($K117)<=AC$2,YEAR($N117)>=AC$2),$E117,0) -> 0 | AD117: =IF(AND(YEAR($K117)<=AD$2,YEAR($N117)>=AD$2),$E117,0) -> 0 | AF117: 29000 | AG117: 29000 | AH117: 29000 | AI117: 29000 | AJ117: 29000 | AK117: 29000 | AL117: 29000 | AM117: 29000 | AN117: 0 | AO117: 0 | AP117: 0 | AQ117: 0
A118: 138 | B118: 4 | C118: НБ00.00.0.00.0 | D118: Жилой комплекс "Нобелевский" | E118: =SUM(E119:E122) -> 23,703 | F118: =SUM(F119:F122) -> 22,137 | G118: =SUM(G119:G122) -> 1,566 | H118: =SUM(H119:H122) -> 362 | I118: =SUM(I119:I122) -> 486 | J118: =SUM(J119:J121) -> 3 | O118: ='Производственная программа'!#REF! ->  | P118: ='Производственная программа'!#REF! ->  | Q118: ='Производственная программа'!#REF! ->  | R118: ='Производственная программа'!#REF! ->  | S118: =SUM(S119:S122) -> 0 | T118: =SUM(T119:T122) -> 0 | U118: 0 | V118: 0 | W118: 0 | X118: 0 | Y118: 0 | Z118: 0 | AA118: 0 | AB118: 0 | AC118: 0 | AD118: 0
A119: 139 | B119: 4.1 | C119: НБ00.00.1.01.1 | D119: Жилой комплекс "Нобелевский" ж/д 1 корп.1 | E119: =F119+G119 -> 7,811 | F119: 7,374 | G119: 437 | I119: 162 | J119: 1 | K119: 2015-05-09 | L119: 2015-08-17 | M119: 2015-11-25 | N119: 2016-06-22 | O119: ='Производственная программа'!#REF! ->  | P119: ='Производственная программа'!#REF! ->  | Q119: ='Производственная программа'!#REF! ->  | R119: ='Производственная программа'!#REF! ->  | S119: =IF(AND(YEAR($K119)<=S$2,YEAR($N119)>=S$2),$E119,0) -> 0 | T119: 0 | U119: 0 | V119: 0 | W119: 0 | X119: 0 | Y119: 0 | Z119: 0 | AA119: 0 | AB119: 0 | AC119: 0 | AD119: 0 | AF119: =IF(S119>1,$G119,0) -> 0 | AG119: 0 | AH119: 0 | AI119: 0 | AJ119: 0 | AK119: 0 | AL119: 0 | AM119: 0 | AN119: 0 | AO119: 0 | AP119: 0 | AQ119: 0
A120: 140 | B120: 4.2 | C120: НБ00.00.1.01.2 | D120: Жилой комплекс "Нобелевский" ж/д 1 корп.2 | E120: =F120+G120 -> 7,835 | F120: 7,396 | G120: 439 | I120: 162 | J120: 1 | K120: 2015-05-09 | L120: 2015-08-17 | M120: 2015-11-25 | N120: 2016-06-22 | O120: ='Производственная программа'!#REF! ->  | P120: ='Производственная программа'!#REF! ->  | Q120: ='Производственная программа'!#REF! ->  | R120: ='Производственная программа'!#REF! ->  | S120: 0 | T120: 0 | U120: 0 | V120: 0 | W120: 0 | X120: 0 | Y120: 0 | Z120: 0 | AA120: 0 | AB120: 0 | AC120: 0 | AD120: 0 | AF120: 0 | AG120: 0 | AH120: 0 | AI120: 0 | AJ120: 0 | AK120: 0 | AL120: 0 | AM120: 0 | AN120: 0 | AO120: 0 | AP120: 0 | AQ120: 0
A121: 141 | B121: 4.3 | C121: НБ00.00.1.01.3 | D121: Жилой комплекс "Нобелевский" ж/д 1 корп.3 | E121: =F121+G121 -> 8,058 | F121: 7,367 | G121: 691 | I121: 162 | J121: 1 | K121: 2015-05-09 | L121: 2015-08-17 | M121: 2015-11-25 | N121: 2016-06-22 | O121: ='Производственная программа'!#REF! ->  | P121: ='Производственная программа'!#REF! ->  | Q121: ='Производственная программа'!#REF! ->  | R121: ='Производственная программа'!#REF! ->  | S121: 0 | T121: 0 | U121: 0 | V121: 0 | W121: 0 | X121: 0 | Y121: 0 | Z121: 0 | AA121: 0 | AB121: 0 | AC121: 0 | AD121: 0 | AF121: 0 | AG121: 0 | AH121: 0 | AI121: 0 | AJ121: 0 | AK121: 0 | AL121: 0 | AM121: 0 | AN121: 0 | AO121: 0 | AP121: 0 | AQ121: 0
A122: 142 | B122: 4.4 | C122: НБ00.00.3.01.0 | D122: Многоуровневая парковка на 362 м/м ж/к "Нобелевский" | E122: =G122 -> 0 | G122: 0 | H122: 362 | K122: 2015-05-09 | L122: 2015-08-17 | M122: 2015-11-25 | N122: 2016-06-22 | O122: ='Производственная программа'!#REF! ->  | P122: ='Производственная программа'!#REF! ->  | Q122: ='Производственная программа'!#REF! ->  | R122: ='Производственная программа'!#REF! ->  | S122: 0 | T122: 0 | U122: 0 | V122: 0 | W122: 0 | X122: 0 | Y122: 0 | Z122: 0 | AA122: 0 | AB122: 0 | AC122: 0 | AD122: 0
A123: 143 | B123: 5 | C123: ИКРП.00.0.00.0 | D123: Исторический квартал по ул.Рахматуллина, Профсоюзная | E123: =SUM(E124:E128) -> 13,870 | F123: =SUM(F124:F128) -> 6,249 | G123: =SUM(G124:G128) -> 7,621 | H123: =SUM(H124:H127) -> 0 | J123: =SUM(J124:J128) -> 3 | O123: ='Производственная программа'!#REF! ->  | P123: ='Производственная программа'!#REF! ->  | Q123: ='Производственная программа'!#REF! ->  | R123: ='Производственная программа'!#REF! ->  | S123: =SUM(S124:S128) -> 0 | T123: =SUM(T124:T128) -> 0 | U123: 0 | V123: 0 | W123: 0 | X123: 0 | Y123: 0 | Z123: 0 | AA123: 0 | AB123: 0 | AC123: 0 | AD123: 0
A124: 144 | B124: 5.1 | C124: ИКПР.00.1.05.0 | D124: Исторический квартал по ул. Профсоюзная ж/д 5/16 | E124: =F124+G124 -> 2,262 | F124: 0 | G124: 2,262 | O124: ='Производственная программа'!#REF! ->  | P124: ='Производственная программа'!#REF! ->  | Q124: ='Производственная программа'!#REF! ->  | R124: ='Производственная программа'!#REF! ->  | S124: =IF(AND(YEAR($K124)<=S$2,YEAR($N124)>=S$2),$E124,0) -> 0 | T124: 0 | U124: 0 | V124: 0 | W124: 0 | X124: 0 | Y124: 0 | Z124: 0 | AA124: 0 | AB124: 0 | AC124: 0 | AD124: 0
A125: 145 | B125: 5.2 | C125: ИКРП.00.1.08.0 | D125: Исторический квартал по ул. Рахматуллина ж/д 8/11 | E125: =F125+G125 -> 850 | F125: 433 | G125: 417 | J125: 1 | O125: ='Производственная программа'!#REF! ->  | P125: ='Производственная программа'!#REF! ->  | Q125: ='Производственная программа'!#REF! ->  | R125: ='Производственная программа'!#REF! ->  | S125: 0 | T125: 0 | U125: 0 | V125: 0 | W125: 0 | X125: 0 | Y125: 0 | Z125: 0 | AA125: 0 | AB125: 0 | AC125: 0 | AD125: 0 | AF125: =IF(S125>1,$G125,0) -> 0 | AG125: 0 | AH125: 0 | AI125: 0 | AJ125: 0 | AK125: 0 | AL125: 0 | AM125: 0 | AN125: 0 | AO125: 0 | AP125: 0 | AQ125: 0
A126: 146 | B126: 5.3 | C126: ИКРП.00.1.06.0 | D126: Исторический квартал по ул. Рахматуллина ж/д 6/9 | E126: =F126+G126 -> 3,147 | F126: 3,147 | G126: 0 | J126: 1 | O126: ='Производственная программа'!#REF! ->  | P126: ='Производственная программа'!#REF! ->  | Q126: ='Производственная программа'!#REF! ->  | R126: ='Производственная программа'!#REF! ->  | S126: 0 | T126: 0 | U126: 0 | V126: 0 | W126: 0 | X126: 0 | Y126: 0 | Z126: 0 | AA126: 0 | AB126: 0 | AC126: 0 | AD126: 0 | AF126: 0 | AG126: 0 | AH126: 0 | AI126: 0 | AJ126: 0 | AK126: 0 | AL126: 0 | AM126: 0 | AN126: 0 | AO126: 0 | AP126: 0 | AQ126: 0
A127: 147 | B127: 5.4 | C127: ИКРП.00.1.04.0 | D127: Исторический квартал по ул. Рахматуллина ж/д 4/7 | E127: =F127+G127 -> 2,919 | F127: 2,669 | G127: 250 | J127: 1 | O127: ='Производственная программа'!#REF! ->  | P127: ='Производственная программа'!#REF! ->  | Q127: ='Производственная программа'!#REF! ->  | R127: ='Производственная программа'!#REF! ->  | S127: 0 | T127: 0 | U127: 0 | V127: 0 | W127: 0 | X127: 0 | Y127: 0 | Z127: 0 | AA127: 0 | AB127: 0 | AC127: 0 | AD127: 0 | AF127: 0 | AG127: 0 | AH127: 0 | AI127: 0 | AJ127: 0 | AK127: 0 | AL127: 0 | AM127: 0 | AN127: 0 | AO127: 0 | AP127: 0 | AQ127: 0
A128: 148 | B128: 5.5 | C128: ИКРП.00.2.07.0 | D128: Исторический квартал по ул.Рахматуллина Административное здание с МУПг | E128: =F128+G128 -> 4,692 | F128: 0 | G128: 4,692 | O128: ='Производственная программа'!#REF! ->  | P128: ='Производственная программа'!#REF! ->  | Q128: ='Производственная программа'!#REF! ->  | R128: ='Производственная программа'!#REF! ->  | S128: 0 | T128: 0 | U128: 0 | V128: 0 | W128: 0 | X128: 0 | Y128: 0 | Z128: 0 | AA128: 0 | AB128: 0 | AC128: 0 | AD128: 0
A129: 149 | B129: 6 | C129: АВ00.00.0.00.0 | D129: Жилой комплекс на Айвазовского | E129: =SUM(E130:E131) -> 7,391 | F129: =F130+F131 -> 5,113 | G129: =G130+G131 -> 2,278 | I129: =SUM(I130:I131) -> 43 | J129: =J130+J131 -> 1 | O129: ='Производственная программа'!#REF! ->  | P129: ='Производственная программа'!#REF! ->  | Q129: ='Производственная программа'!#REF! ->  | R129: ='Производственная программа'!#REF! ->  | S129: =SUM(S130:S131) -> 0 | T129: =SUM(T130:T131) -> 0 | U129: 0 | V129: 0 | W129: 7,391 | X129: 0 | Y129: 0 | Z129: 0 | AA129: 0 | AB129: 0 | AC129: 0 | AD129: 0
A130: 150 | B130: 6.1 | C130: АВ00.01.0.00.0 | D130: Жилой комплекс на Айвазовского. 1 очередь | E130: =F130+G130 -> 7,391 | F130: 5,113 | G130: 2,278 | I130: 43 | J130: 1 | N130: 2021-01-01 | O130: ='Производственная программа'!#REF! ->  | P130: ='Производственная программа'!#REF! ->  | Q130: ='Производственная программа'!#REF! ->  | R130: ='Производственная программа'!#REF! ->  | W130: =IF(AND(YEAR($K130)<=W$2,YEAR($N130)>=W$2),$E130,0) -> 7,391 | X130: 0 | Y130: 0 | Z130: 0 | AA130: 0 | AB130: 0 | AC130: 0 | AD130: 0 | AF130: =IF(S130>1,$G130,0) -> 0 | AG130: 0 | AH130: 0 | AI130: 0 | AJ130: 2278 | AK130: 0 | AL130: 0 | AM130: 0 | AN130: 0 | AO130: 0 | AP130: 0 | AQ130: 0
A131: 151 | B131: 6.2 | C131: АВ00.02.0.00.0 | D131: Жилой комплекс на Айвазовского. 2 очередь | E131: =F131+G131 -> 0 | O131: ='Производственная программа'!#REF! ->  | P131: ='Производственная программа'!#REF! ->  | Q131: ='Производственная программа'!#REF! ->  | R131: ='Производственная программа'!#REF! ->  | S131: 0 | T131: 0 | U131: 0 | V131: 0 | W131: 0 | X131: 0 | Y131: 0 | Z131: 0 | AA131: 0 | AB131: 0 | AC131: 0 | AD131: 0 | AF131: 0 | AG131: 0 | AH131: 0 | AI131: 0 | AJ131: 0 | AK131: 0 | AL131: 0 | AM131: 0 | AN131: 0 | AO131: 0 | AP131: 0 | AQ131: 0
A132: 152 | B132: 7 | D132: Газовая, Красносельская, Сыртланова, Шмидта, ЖД КазаньМедТехника, ЖД Исхаки | E132: =SUM(E133:E134,E135:E136,E137,E138) -> 31,233 | F132: =SUM(F133:F138) -> 26,854 | G132: =SUM(G133:G138) -> 4,379 | H132: =SUM(H133:H136) -> 150 | I132: =SUM(I133:I136) -> 177 | J132: =SUM(J133:J138) -> 4 | O132: ='Производственная программа'!#REF! ->  | P132: ='Производственная программа'!#REF! ->  | Q132: ='Производственная программа'!#REF! ->  | R132: ='Производственная программа'!#REF! ->  | S132: =SUM(S133:S134,S135:S136,S137,S138) -> 0 | T132: 0 | U132: 0 | V132: 2,444 | W132: 12,840 | X132: 15,950 | Y132: 0 | Z132: 0 | AA132: 0 | AB132: 0 | AC132: 0 | AD132: 0
A133: 153 | B133: 7.1 | C133: ИС00.00.0.00.0 | D133: Жилой дом Исхаки | E133: =F133+G133 -> 3,978 | F133: 3,267 | G133: 711 | H133: 47 | I133: 56 | J133: 1 | K133: 2021-01-30 | L133: 2021-02-15 | M133: 2021-03-20 | N133: 2021-04-16 | O133: ='Производственная программа'!#REF! ->  | P133: ='Производственная программа'!#REF! ->  | Q133: ='Производственная программа'!#REF! ->  | R133: ='Производственная программа'!#REF! ->  | S133: =IF(AND(YEAR($K133)<=S$2,YEAR($N133)>=S$2),$E133,0) -> 0 | T133: 0 | U133: 0 | V133: 0 | W133: 3,978 | X133: 0 | Y133: 0 | Z133: 0 | AA133: 0 | AB133: 0 | AC133: 0 | AD133: 0 | AF133: =IF(S133>1,$G133,0) -> 0 | AG133: 0 | AH133: 0 | AI133: 0 | AJ133: 711 | AK133: 0 | AL133: 0 | AM133: 0 | AN133: 0 | AO133: 0 | AP133: 0 | AQ133: 0
A134: 154 | B134: 7.2 | C134: КЗ00.00.0.00.0 | D134: Жилой дом КазаньМедТехника | E134: =F134+G134 -> 15,950 | F134: 15,950 | J134: 1 | L134: 2021-10-30 | M134: 2021-11-30 | N134: 2022-07-01 | O134: ='Производственная программа'!#REF! ->  | P134: ='Производственная программа'!#REF! ->  | Q134: ='Производственная программа'!#REF! ->  | R134: ='Производственная программа'!#REF! ->  | X134: =IF(AND(YEAR($K134)<=X$2,YEAR($N134)>=X$2),$E134,0) -> 15,950 | Y134: 0 | Z134: 0 | AA134: 0 | AB134: 0 | AC134: 0 | AD134: 0 | AF134: 0 | AG134: 0 | AH134: 0 | AI134: 0 | AJ134: 0 | AK134: 0 | AL134: 0 | AM134: 0 | AN134: 0 | AO134: 0 | AP134: 0 | AQ134: 0
A135: 156 | B135: 7.3 | C135: ГЗ00.00.0.00.0 | D135: Жилой комплекс по ул. Газовая | E135: =F135+G135 -> 8,862 | F135: 7,637 | G135: 1,225 | H135: 103 | I135: 121 | J135: 1 | L135: 2021-02-15 | M135: 2021-02-15 | N135: 2021-09-10 | O135: ='Производственная программа'!#REF! ->  | P135: ='Производственная программа'!#REF! ->  | Q135: ='Производственная программа'!#REF! ->  | R135: ='Производственная программа'!#REF! ->  | W135: =IF(AND(YEAR($K135)<=W$2,YEAR($N135)>=W$2),$E135,0) -> 8,862 | X135: 0 | Y135: 0 | Z135: 0 | AA135: 0 | AB135: 0 | AC135: 0 | AD135: 0 | AF135: 0 | AG135: 0 | AH135: 0 | AI135: 0 | AJ135: 1225 | AK135: 0 | AL135: 0 | AM135: 0 | AN135: 0 | AO135: 0 | AP135: 0 | AQ135: 0
A136: 157 | B136: 7.4 | C136: КР00.00.0.00.0 | D136: Жилой комплекс по ул. Красносельская | E136: =F136+G136 -> 0 | J136: 1 | O136: ='Производственная программа'!#REF! ->  | P136: ='Производственная программа'!#REF! ->  | Q136: ='Производственная программа'!#REF! ->  | R136: ='Производственная программа'!#REF! ->  | S136: =IF(AND(YEAR($K136)<=S$2,YEAR($N136)>=S$2),$E136,0) -> 0 | T136: 0 | U136: 0 | V136: 0 | W136: =IF(AND(YEAR($K136)<=W$2,YEAR($N136)>=W$2),$E136,0) -> 0 | X136: 0 | Y136: 0 | Z136: 0 | AA136: 0 | AB136: 0 | AC136: 0 | AD136: 0
A137: 158 | B137: 7.5 | C137: СР00.00.0.00.0 | D137: Здание по ул.Сыртлановой 2 | E137: 0 | O137: ='Производственная программа'!#REF! ->  | P137: ='Производственная программа'!#REF! ->  | Q137: ='Производственная программа'!#REF! ->  | R137: ='Производственная программа'!#REF! ->  | S137: 0 | T137: 0 | U137: 0 | V137: 0 | W137: =IF(AND(YEAR($K137)<=W$2,YEAR($N137)>=W$2),$E137,0) -> 0 | X137: 0 | Y137: 0 | Z137: 0 | AA137: 0 | AB137: 0 | AC137: 0 | AD137: 0
A138: 159 | B138: 7.6 | C138: ШМ00.01.2.35.0 | D138: Административно-офисное здание по ул.Шмидта 35Б | E138: =F138+G138 -> 2,444 | G138: 2,444 | L138: нет | M138: нет | N138: 2020-09-02 | O138: ='Производственная программа'!#REF! ->  | P138: ='Производственная программа'!#REF! ->  | Q138: ='Производственная программа'!#REF! ->  | R138: ='Производственная программа'!#REF! ->  | V138: =IF(AND(YEAR($K138)<=V$2,YEAR($N138)>=V$2),$E138,0) -> 2,444 | W138: =IF(AND(YEAR($K138)<=W$2,YEAR($N138)>=W$2),$E138,0) -> 0 | X138: 0 | Y138: 0 | Z138: 0 | AA138: 0 | AB138: 0 | AC138: 0 | AD138: 0
A139: 160 | B139: 8 | C139: УС00.00.0.00.0 | D139: Жилой комплекс с.Усады | E139: =SUM(E140,E175,E180,E182,E184) -> 294,642 | F139: 272,506 | G139: 22,136 | H139: 2,358 | I139: 608 | J139: 40 | O139: ='Производственная программа'!#REF! ->  | P139: ='Производственная программа'!#REF! ->  | Q139: ='Производственная программа'!#REF! ->  | R139: ='Производственная программа'!#REF! ->  | S139: =SUM(S140,S175,S180,S182,S184) -> 0 | T139: 0 | U139: 0 | V139: 0 | W139: 294,642 | X139: 260,849 | Y139: 0 | Z139: 0 | AA139: 0 | AB139: 0 | AC139: 0 | AD139: 0
A140: 161 | B140: 8.1 | C140: УС52.00.0.00.0 | D140: Жилой комплекс с. Усады 52 га (140 тысяч) | E140: =SUM(E157,E160,E141,E145,E163,E166,E151,E148,E154,E170,E174) -> 260,849 | F140: 240,261 | G140: 20,588 | H140: 2,358 | I140: 0 | J140: 36 | O140: ='Производственная программа'!#REF! ->  | P140: ='Производственная программа'!#REF! ->  | Q140: ='Производственная программа'!#REF! ->  | R140: ='Производственная программа'!#REF! ->  | S140: =SUM(S157,S160,S141,S145,S163,S166,S151,S148,S154,S170,S174) -> 0 | T140: 0 | U140: 0 | V140: 0 | W140: 260,849 | X140: 260,849 | Y140: 0 | Z140: 0 | AA140: 0 | AB140: 0 | AC140: 0 | AD140: 0
A141: 162 | B141: 8.1.1 | C141: УС52.01.0.00.0 | D141: Жилой комплекс с. Усады 52 га ПК-1 (2 очередь) | E141: =F141+G141 -> 32,512 | F141: 28,343 | G141: 4,169 | H141: 206 | I141: =SUM(I142:I144) -> 0 | J141: =SUM(J142:J144) -> 3 | O141: ='Производственная программа'!#REF! ->  | P141: ='Производственная программа'!#REF! ->  | Q141: ='Производственная программа'!#REF! ->  | R141: ='Производственная программа'!#REF! ->  | S141: =SUM(S142,S143,S144) -> 0 | T141: 0 | U141: 0 | V141: 0 | W141: =IF(AND(YEAR($K142)<=W$2,YEAR($N142)>=W$2),$E$141,0) -> 32,512 | X141: =IF(AND(YEAR($K142)<=X$2,YEAR($N142)>=X$2),$E$141,0) -> 32,512 | Y141: 0 | Z141: 0 | AA141: 0 | AB141: 0 | AC141: 0 | AD141: 0 | AF141: =IF(S141>1,$G141,0) -> 0 | AG141: 0 | AH141: 0 | AI141: 0 | AJ141: 4169 | AK141: 4169 | AL141: 0 | AM141: 0 | AN141: 0 | AO141: 0 | AP141: 0 | AQ141: 0
A142: 163 | B142: 8.1.1.1 | C142: УС52.01.1.01.0 | D142: Жилой комплекс с. Усады 52 га ПК-1 ж/д 1 корп.1 | J142: 1 | K142: 2021-07-20 | L142: 2021-09-01 | M142: 2022-09-27 | N142: 2022-09-27 | S142: =IF(AND(YEAR($K142)<=S$2,YEAR($N142)>=S$2),$E$141,0) -> 0 | T142: 0 | U142: 0 | V142: 0 | Y142: =IF(AND(YEAR($K142)<=Y$2,YEAR($N142)>=Y$2),$E$141,0) -> 0 | Z142: 0 | AA142: 0 | AB142: 0 | AC142: 0 | AD142: 0 | AF142: =IF(S142>1,$G142,0) -> 0 | AG142: =IF(T142>1,$G142,0) -> 0 | AH142: =IF(U142>1,$G142,0) -> 0 | AI142: =IF(V142>1,$G142,0) -> 0 | AJ142: =IF(W142>1,$G142,0) -> 0 | AK142: =IF(X142>1,$G142,0) -> 0 | AL142: =IF(Y142>1,$G142,0) -> 0 | AM142: =IF(Z142>1,$G142,0) -> 0 | AN142: =IF(AA142>1,$G142,0) -> 0 | AO142: =IF(AB142>1,$G142,0) -> 0 | AP142: =IF(AC142>1,$G142,0) -> 0 | AQ142: =IF(AD142>1,$G142,0) -> 0
A143: 165 | B143: 8.1.1.2 | C143: УС52.01.1.02.0 | D143: Жилой комплекс с. Усады 52 га ПК-1 ж/д 1 корп.2 | J143: 1 | K143: 2021-07-20 | L143: 2021-09-01 | M143: 2022-09-27 | N143: 2022-09-27 | S143: 0 | T143: 0 | U143: 0 | V143: 0 | Y143: 0 | Z143: 0 | AA143: 0 | AB143: 0 | AC143: 0 | AD143: 0 | AF143: 0 | AG143: 0 | AH143: 0 | AI143: 0 | AJ143: 0 | AK143: 0 | AL143: 0 | AM143: 0 | AN143: 0 | AO143: 0 | AP143: 0 | AQ143: 0
A144: 167 | B144: 8.1.1.3 | C144: УС52.02.1.03.0 | D144: Жилой комплекс с. Усады 52 га ПК-1 ж/д 1 корп.3 | J144: 1 | K144: 2021-07-20 | L144: 2021-09-01 | M144: 2022-09-27 | N144: 2022-09-27 | S144: 0 | T144: 0 | U144: 0 | V144: 0 | Y144: 0 | Z144: 0 | AA144: 0 | AB144: 0 | AC144: 0 | AD144: 0 | AF144: 0 | AG144: 0 | AH144: 0 | AI144: 0 | AJ144: 0 | AK144: 0 | AL144: 0 | AM144: 0 | AN144: 0 | AO144: 0 | AP144: 0 | AQ144: 0
A145: 169 | B145: 8.1.2 | C145: УС52.02.0.00.0 | D145: Жилой комплекс с. Усады 52 га ПК-2 (1 очередь) | E145: =F145+G145 -> 11,975 | F145: 10,844 | G145: 1,131 | H145: 150 | I145: =SUM(I146:I147) -> 0 | J145: 2 | O145: ='Производственная программа'!#REF! ->  | P145: ='Производственная программа'!#REF! ->  | Q145: ='Производственная программа'!#REF! ->  | R145: ='Производственная программа'!#REF! ->  | S145: =SUM(S146,S147) -> 0 | T145: 0 | U145: 0 | V145: 0 | W145: =IF(AND(YEAR($K146)<=W$2,YEAR($N146)>=W$2),$E$145,0) -> 11,975 | X145: =IF(AND(YEAR($K146)<=X$2,YEAR($N146)>=X$2),$E$145,0) -> 11,975 | Y145: 0 | Z145: 0 | AA145: 0 | AB145: 0 | AC145: 0 | AD145: 0 | AF145: 0 | AG145: 0 | AH145: 0 | AI145: 0 | AJ145: 1131 | AK145: 1131 | AL145: 0 | AM145: 0 | AN145: 0 | AO145: 0 | AP145: 0 | AQ145: 0
A146: 170 | B146: 8.1.2.1 | C146: УС52.02.1.01.0 | D146: Жилой комплекс с. Усады 52 га ПК-2 ж/д 2 корп.1 | E146: 0 | K146: 2021-07-20 | L146: 2021-09-01 | M146: 2022-09-27 | N146: 2022-09-27 | S146: =IF(AND(YEAR($K146)<=S$2,YEAR($N146)>=S$2),$E$145,0) -> 0 | T146: 0 | U146: 0 | V146: 0 | Y146: =IF(AND(YEAR($K146)<=Y$2,YEAR($N146)>=Y$2),$E$145,0) -> 0 | Z146: 0 | AA146: 0 | AB146: 0 | AC146: 0 | AD146: 0 | AF146: 0 | AG146: 0 | AH146: 0 | AI146: 0 | AJ146: 0 | AK146: 0 | AL146: 0 | AM146: 0 | AN146: 0 | AO146: 0 | AP146: 0 | AQ146: 0
A147: 172 | B147: 8.1.2.2 | C147: УС52.02.1.02.0 | D147: Жилой комплекс с. Усады 52 га ПК-2 ж/д 2 корп.2 | E147: 0 | K147: 2021-07-20 | L147: 2021-09-01 | M147: 2022-09-27 | N147: 2022-09-27 | S147: 0 | T147: 0 | U147: 0 | V147: 0 | Y147: 0 | Z147: 0 | AA147: 0 | AB147: 0 | AC147: 0 | AD147: 0 | AF147: 0 | AG147: 0 | AH147: 0 | AI147: 0 | AJ147: 0 | AK147: 0 | AL147: 0 | AM147: 0 | AN147: 0 | AO147: 0 | AP147: 0 | AQ147: 0
A148: 174 | B148: 8.1.3 | C148: УС52.03.0.00.0 | D148: Жилой комплекс с. Усады 52 га ПК-3 (1 очередь) | E148: 21,761 | F148: 19,810 | G148: 1,951 | H148: 173 | I148: =SUM(I149:I150) -> 0 | J148: 2 | O148: ='Производственная программа'!#REF! ->  | P148: ='Производственная программа'!#REF! ->  | Q148: ='Производственная программа'!#REF! ->  | R148: ='Производственная программа'!#REF! ->  | S148: =SUM(S149,S150) -> 0 | T148: 0 | U148: 0 | V148: 0 | W148: =IF(AND(YEAR($K149)<=W$2,YEAR($N149)>=W$2),$E$148,0) -> 21,761 | X148: =IF(AND(YEAR($K149)<=X$2,YEAR($N149)>=X$2),$E$148,0) -> 21,761 | Y148: 0 | Z148: 0 | AA148: 0 | AB148: 0 | AC148: 0 | AD148: 0 | AF148: 0 | AG148: 0 | AH148: 0 | AI148: 0 | AJ148: 1951 | AK148: 1951 | AL148: 0 | AM148: 0 | AN148: 0 | AO148: 0 | AP148: 0 | AQ148: 0
A149: 175 | B149: 8.1.3.1 | C149: УС52.03.1.01.0 | D149: Жилой комплекс с. Усады 52 га ПК-3 ж/д 3 корп.1 | E149: 0 | K149: 2021-07-20 | L149: 2021-09-01 | M149: 2022-09-27 | N149: 2022-09-27 | S149: =IF(AND(YEAR($K149)<=S$2,YEAR($N149)>=S$2),$E$148,0) -> 0 | T149: 0 | U149: 0 | V149: 0 | Y149: =IF(AND(YEAR($K149)<=Y$2,YEAR($N149)>=Y$2),$E$148,0) -> 0 | Z149: 0 | AA149: 0 | AB149: 0 | AC149: 0 | AD149: 0 | AF149: 0 | AG149: 0 | AH149: 0 | AI149: 0 | AJ149: 0 | AK149: 0 | AL149: 0 | AM149: 0 | AN149: 0 | AO149: 0 | AP149: 0 | AQ149: 0
A150: 177 | B150: 8.1.3.2 | C150: УС52.03.1.02.0 | D150: Жилой комплекс с. Усады 52 га ПК-3 ж/д 3 корп.2 | E150: 0 | K150: 2021-07-20 | L150: 2021-09-01 | M150: 2022-09-27 | N150: 2022-09-27 | S150: 0 | T150: 0 | U150: 0 | V150: 0 | Y150: 0 | Z150: 0 | AA150: 0 | AB150: 0 | AC150: 0 | AD150: 0 | AF150: 0 | AG150: 0 | AH150: 0 | AI150: 0 | AJ150: 0 | AK150: 0 | AL150: 0 | AM150: 0 | AN150: 0 | AO150: 0 | AP150: 0 | AQ150: 0
A151: 181 | B151: 8.1.4 | C151: УС52.04.0.00.0 | D151: Жилой комплекс с. Усады 52 га ПК-4 (1 очередь) | E151: 11,975 | F151: 10,844 | G151: 1,131 | H151: 150 | I151: =SUM(I152:I153) -> 0 | J151: 2 | O151: ='Производственная программа'!#REF! ->  | P151: ='Производственная программа'!#REF! ->  | Q151: ='Производственная программа'!#REF! ->  | R151: ='Производственная программа'!#REF! ->  | S151: =SUM(S152,S153) -> 0 | T151: 0 | U151: 0 | V151: 0 | W151: =IF(AND(YEAR($K152)<=W$2,YEAR($N152)>=W$2),$E$151,0) -> 11,975 | X151: =IF(AND(YEAR($K152)<=X$2,YEAR($N152)>=X$2),$E$151,0) -> 11,975 | Y151: 0 | Z151: 0 | AA151: 0 | AB151: 0 | AC151: 0 | AD151: 0 | AF151: 0 | AG151: 0 | AH151: 0 | AI151: 0 | AJ151: 1131 | AK151: 1131 | AL151: 0 | AM151: 0 | AN151: 0 | AO151: 0 | AP151: 0 | AQ151: 0
A152: 182 | B152: 8.1.4.1 | C152: УС52.04.1.01.0 | D152: Жилой комплекс с. Усады 52 га ПК-4 ж/д 4 корп.1 | E152: 0 | K152: 2021-07-20 | L152: 2021-09-01 | M152: 2022-09-27 | N152: 2022-09-27 | S152: =IF(AND(YEAR($K152)<=S$2,YEAR($N152)>=S$2),$E$151,0) -> 0 | T152: 0 | U152: 0 | V152: 0 | Y152: =IF(AND(YEAR($K152)<=Y$2,YEAR($N152)>=Y$2),$E$151,0) -> 0 | Z152: 0 | AA152: 0 | AB152: 0 | AC152: 0 | AD152: 0 | AF152: 0 | AG152: 0 | AH152: 0 | AI152: 0 | AJ152: 0 | AK152: 0 | AL152: 0 | AM152: 0 | AN152: 0 | AO152: 0 | AP152: 0 | AQ152: 0
A153: 184 | B153: 8.1.4.2 | C153: УС52.04.1.02.0 | D153: Жилой комплекс с. Усады 52 га ПК-4 ж/д 4 корп.2 | E153: 0 | K153: 2021-07-20 | L153: 2021-09-01 | M153: 2022-09-27 | N153: 2022-09-27 | S153: 0 | T153: 0 | U153: 0 | V153: 0 | Y153: 0 | Z153: 0 | AA153: 0 | AB153: 0 | AC153: 0 | AD153: 0 | AF153: 0 | AG153: 0 | AH153: 0 | AI153: 0 | AJ153: 0 | AK153: 0 | AL153: 0 | AM153: 0 | AN153: 0 | AO153: 0 | AP153: 0 | AQ153: 0
A154: 186 | B154: 8.1.5 | C154: УС52.05.0.00.0 | D154: Жилой комплекс с. Усады 52 га ПК-5 (1 очередь) | E154: 21,761 | F154: 19,810 | G154: 1,951 | H154: 173 | I154: =SUM(I155:I156) -> 0 | J154: 2 | O154: ='Производственная программа'!#REF! ->  | P154: ='Производственная программа'!#REF! ->  | Q154: ='Производственная программа'!#REF! ->  | R154: ='Производственная программа'!#REF! ->  | S154: =SUM(S155,S156) -> 0 | T154: 0 | U154: 0 | V154: 0 | W154: =IF(AND(YEAR($K155)<=W$2,YEAR($N155)>=W$2),$E$154,0) -> 21,761 | X154: =IF(AND(YEAR($K155)<=X$2,YEAR($N155)>=X$2),$E$154,0) -> 21,761 | Y154: 0 | Z154: 0 | AA154: 0 | AB154: 0 | AC154: 0 | AD154: 0 | AF154: 0 | AG154: 0 | AH154: 0 | AI154: 0 | AJ154: 1951 | AK154: 1951 | AL154: 0 | AM154: 0 | AN154: 0 | AO154: 0 | AP154: 0 | AQ154: 0
A155: 187 | B155: 8.1.5.1 | C155: УС52.05.1.01.0 | D155: Жилой комплекс с. Усады 52 га ПК-5 ж/д 5 корп.1 | E155: 0 | K155: 2021-07-20 | L155: 2021-09-01 | M155: 2022-09-27 | N155: 2022-09-27 | S155: =IF(AND(YEAR($K155)<=S$2,YEAR($N155)>=S$2),$E$154,0) -> 0 | T155: 0 | U155: 0 | V155: 0 | Y155: =IF(AND(YEAR($K155)<=Y$2,YEAR($N155)>=Y$2),$E$154,0) -> 0 | Z155: 0 | AA155: 0 | AB155: 0 | AC155: 0 | AD155: 0 | AF155: 0 | AG155: 0 | AH155: 0 | AI155: 0 | AJ155: 0 | AK155: 0 | AL155: 0 | AM155: 0 | AN155: 0 | AO155: 0 | AP155: 0 | AQ155: 0
A156: 189 | B156: 8.1.5.2 | C156: УС52.05.1.02.0 | D156: Жилой комплекс с. Усады 52 га ПК-5 ж/д 5 корп.2 | E156: 0 | K156: 2021-07-20 | L156: 2021-09-01 | M156: 2022-09-27 | N156: 2022-09-27 | S156: 0 | T156: 0 | U156: 0 | V156: 0 | Y156: 0 | Z156: 0 | AA156: 0 | AB156: 0 | AC156: 0 | AD156: 0 | AF156: 0 | AG156: 0 | AH156: 0 | AI156: 0 | AJ156: 0 | AK156: 0 | AL156: 0 | AM156: 0 | AN156: 0 | AO156: 0 | AP156: 0 | AQ156: 0
A157: 193 | B157: 8.1.6 | C157: УС52.08.0.00.0 | D157: Жилой комплекс с. Усады 52 га ПК-8 (1 очередь) | E157: 21,761 | F157: 19,810 | G157: 1,951 | H157: 192 | I157: =SUM(I158:I159) -> 0 | J157: 2 | O157: ='Производственная программа'!#REF! ->  | P157: ='Производственная программа'!#REF! ->  | Q157: ='Производственная программа'!#REF! ->  | R157: ='Производственная программа'!#REF! ->  | S157: =SUM(S158,S159) -> 0 | T157: 0 | U157: 0 | V157: 0 | W157: =IF(AND(YEAR($K158)<=W$2,YEAR($N158)>=W$2),$E$157,0) -> 21,761 | X157: =IF(AND(YEAR($K158)<=X$2,YEAR($N158)>=X$2),$E$157,0) -> 21,761 | Y157: 0 | Z157: 0 | AA157: 0 | AB157: 0 | AC157: 0 | AD157: 0 | AF157: 0 | AG157: 0 | AH157: 0 | AI157: 0 | AJ157: 1951 | AK157: 1951 | AL157: 0 | AM157: 0 | AN157: 0 | AO157: 0 | AP157: 0 | AQ157: 0
A158: 194 | B158: 8.1.6.1 | C158: УС52.08.1.01.0 | D158: Жилой комплекс с. Усады 52 га ПК-8 ж/д 8 корп.1 | E158: 0 | K158: 2021-07-20 | L158: 2021-09-01 | M158: 2022-09-27 | N158: 2022-09-27 | S158: =IF(AND(YEAR($K158)<=S$2,YEAR($N158)>=S$2),$E$157,0) -> 0 | T158: 0 | U158: 0 | V158: 0 | Y158: =IF(AND(YEAR($K158)<=Y$2,YEAR($N158)>=Y$2),$E$157,0) -> 0 | Z158: 0 | AA158: 0 | AB158: 0 | AC158: 0 | AD158: 0 | AF158: 0 | AG158: 0 | AH158: 0 | AI158: 0 | AJ158: 0 | AK158: 0 | AL158: 0 | AM158: 0 | AN158: 0 | AO158: 0 | AP158: 0 | AQ158: 0
A159: 196 | B159: 8.1.6.2 | C159: УС52.08.1.02.0 | D159: Жилой комплекс с. Усады 52 га ПК-8 ж/д 8 корп.2 | E159: 0 | K159: 2021-07-20 | L159: 2021-09-01 | M159: 2022-09-27 | N159: 2022-09-27 | S159: 0 | T159: 0 | U159: 0 | V159: 0 | Y159: 0 | Z159: 0 | AA159: 0 | AB159: 0 | AC159: 0 | AD159: 0 | AF159: 0 | AG159: 0 | AH159: 0 | AI159: 0 | AJ159: 0 | AK159: 0 | AL159: 0 | AM159: 0 | AN159: 0 | AO159: 0 | AP159: 0 | AQ159: 0
A160: 198 | B160: 8.1.7 | C160: УС52.09.0.00.0 | D160: Жилой комплекс с. Усады 52 га ПК-9 (1 очередь) | E160: 21,761 | F160: 19,810 | G160: 1,951 | H160: 195 | I160: =SUM(I161:I162) -> 0 | J160: 2 | O160: ='Производственная программа'!#REF! ->  | P160: ='Производственная программа'!#REF! ->  | Q160: ='Производственная программа'!#REF! ->  | R160: ='Производственная программа'!#REF! ->  | S160: =SUM(S161,S162) -> 0 | T160: 0 | U160: 0 | V160: 0 | W160: =IF(AND(YEAR($K161)<=W$2,YEAR($N161)>=W$2),$E$160,0) -> 21,761 | X160: =IF(AND(YEAR($K161)<=X$2,YEAR($N161)>=X$2),$E$160,0) -> 21,761 | Y160: 0 | Z160: 0 | AA160: 0 | AB160: 0 | AC160: 0 | AD160: 0 | AF160: 0 | AG160: 0 | AH160: 0 | AI160: 0 | AJ160: 1951 | AK160: 1951 | AL160: 0 | AM160: 0 | AN160: 0 | AO160: 0 | AP160: 0 | AQ160: 0
A161: 199 | B161: 8.1.7.1 | C161: УС52.09.1.01.0 | D161: Жилой комплекс с. Усады 52 га ПК-9 ж/д 9 корп.1 | E161: 0 | K161: 2021-07-20 | L161: 2021-09-01 | M161: 2022-09-27 | N161: 2022-09-27 | S161: =IF(AND(YEAR($K161)<=S$2,YEAR($N161)>=S$2),$E$160,0) -> 0 | T161: 0 | U161: 0 | V161: 0 | Y161: =IF(AND(YEAR($K161)<=Y$2,YEAR($N161)>=Y$2),$E$160,0) -> 0 | Z161: 0 | AA161: 0 | AB161: 0 | AC161: 0 | AD161: 0 | AF161: 0 | AG161: 0 | AH161: 0 | AI161: 0 | AJ161: 0 | AK161: 0 | AL161: 0 | AM161: 0 | AN161: 0 | AO161: 0 | AP161: 0 | AQ161: 0
A162: 201 | B162: 8.1.7.2 | C162: УС52.09.1.02.0 | D162: Жилой комплекс с. Усады 52 га ПК-9 ж/д 9 корп.2 | E162: 0 | K162: 2021-07-20 | L162: 2021-09-01 | M162: 2022-09-27 | N162: 2022-09-27 | S162: 0 | T162: 0 | U162: 0 | V162: 0 | Y162: 0 | Z162: 0 | AA162: 0 | AB162: 0 | AC162: 0 | AD162: 0 | AF162: 0 | AG162: 0 | AH162: 0 | AI162: 0 | AJ162: 0 | AK162: 0 | AL162: 0 | AM162: 0 | AN162: 0 | AO162: 0 | AP162: 0 | AQ162: 0
A163: 205 | B163: 8.1.8 | C163: УС52.10.0.00.0 | D163: Жилой комплекс с. Усады 52 га ПК-10 (3 очередь) | E163: 21,761 | F163: 19,810 | G163: 1,951 | H163: 131 | I163: =SUM(I164:I165) -> 0 | J163: 2 | O163: ='Производственная программа'!#REF! ->  | P163: ='Производственная программа'!#REF! ->  | Q163: ='Производственная программа'!#REF! ->  | R163: ='Производственная программа'!#REF! ->  | S163: =SUM(S164,S165) -> 0 | T163: 0 | U163: 0 | V163: 0 | W163: =IF(AND(YEAR($K164)<=W$2,YEAR($N164)>=W$2),$E$163,0) -> 21,761 | X163: =IF(AND(YEAR($K164)<=X$2,YEAR($N164)>=X$2),$E$163,0) -> 21,761 | Y163: 0 | Z163: 0 | AA163: 0 | AB163: 0 | AC163: 0 | AD163: 0 | AF163: 0 | AG163: 0 | AH163: 0 | AI163: 0 | AJ163: 1951 | AK163: 1951 | AL163: 0 | AM163: 0 | AN163: 0 | AO163: 0 | AP163: 0 | AQ163: 0
A164: 206 | B164: 8.1.8.1 | C164: УС52.10.1.01.0 | D164: Жилой комплекс с. Усады 52 га ПК-10 ж/д 10 корп.1 | E164: 0 | K164: 2021-07-20 | L164: 2021-09-01 | M164: 2022-09-27 | N164: 2022-09-27 | S164: =IF(AND(YEAR($K164)<=S$2,YEAR($N164)>=S$2),$E$163,0) -> 0 | T164: 0 | U164: 0 | V164: 0 | Y164: =IF(AND(YEAR($K164)<=Y$2,YEAR($N164)>=Y$2),$E$163,0) -> 0 | Z164: 0 | AA164: 0 | AB164: 0 | AC164: 0 | AD164: 0 | AF164: 0 | AG164: 0 | AH164: 0 | AI164: 0 | AJ164: 0 | AK164: 0 | AL164: 0 | AM164: 0 | AN164: 0 | AO164: 0 | AP164: 0 | AQ164: 0
A165: 208 | B165: 8.1.8.2 | C165: УС52.10.1.02.0 | D165: Жилой комплекс с. Усады 52 га ПК-10 ж/д 10 корп.2 | E165: 0 | K165: 2021-07-20 | L165: 2021-09-01 | M165: 2022-09-27 | N165: 2022-09-27 | S165: 0 | T165: 0 | U165: 0 | V165: 0 | Y165: 0 | Z165: 0 | AA165: 0 | AB165: 0 | AC165: 0 | AD165: 0 | AF165: 0 | AG165: 0 | AH165: 0 | AI165: 0 | AJ165: 0 | AK165: 0 | AL165: 0 | AM165: 0 | AN165: 0 | AO165: 0 | AP165: 0 | AQ165: 0
A166: 213 | B166: 8.1.10 | C166: УС52.12.0.00.0 | D166: Жилой комплекс с. Усады 52 га ПК-12 (3 очередь) | E166: 32,589 | F166: 30,292 | G166: 2,297 | H166: 275 | I166: =SUM(I167:I169) -> 0 | J166: 3 | O166: ='Производственная программа'!#REF! ->  | P166: ='Производственная программа'!#REF! ->  | Q166: ='Производственная программа'!#REF! ->  | R166: ='Производственная программа'!#REF! ->  | S166: =SUM(S167,S168,S169) -> 0 | T166: 0 | U166: 0 | V166: 0 | W166: =IF(AND(YEAR($K167)<=W$2,YEAR($N167)>=W$2),$E$166,0) -> 32,589 | X166: =IF(AND(YEAR($K167)<=X$2,YEAR($N167)>=X$2),$E$166,0) -> 32,589 | Y166: 0 | Z166: 0 | AA166: 0 | AB166: 0 | AC166: 0 | AD166: 0 | AF166: 0 | AG166: 0 | AH166: 0 | AI166: 0 | AJ166: 2297 | AK166: 2297 | AL166: 0 | AM166: 0 | AN166: 0 | AO166: 0 | AP166: 0 | AQ166: 0
A167: 214 | B167: 8.1.10.1 | C167: УС52.12.1.01.0 | D167: Жилой комплекс с. Усады 52 га ПК-12 ж/д 12 корп.1 | E167: 0 | K167: 2021-07-20 | L167: 2021-09-01 | M167: 2022-09-27 | N167: 2022-09-27 | S167: =IF(AND(YEAR($K167)<=S$2,YEAR($N167)>=S$2),$E$166,0) -> 0 | T167: 0 | U167: 0 | V167: 0 | Y167: =IF(AND(YEAR($K167)<=Y$2,YEAR($N167)>=Y$2),$E$166,0) -> 0 | Z167: 0 | AA167: 0 | AB167: 0 | AC167: 0 | AD167: 0 | AF167: 0 | AG167: 0 | AH167: 0 | AI167: 0 | AJ167: 0 | AK167: 0 | AL167: 0 | AM167: 0 | AN167: 0 | AO167: 0 | AP167: 0 | AQ167: 0
A168: 216 | B168: 8.1.10.2 | C168: УС52.12.1.02.0 | D168: Жилой комплекс с. Усады 52 га ПК-12 ж/д 12 корп.2 | E168: 0 | K168: 2021-07-20 | L168: 2021-09-01 | M168: 2022-09-27 | N168: 2022-09-27 | S168: 0 | T168: 0 | U168: 0 | V168: 0 | Y168: 0 | Z168: 0 | AA168: 0 | AB168: 0 | AC168: 0 | AD168: 0 | AF168: 0 | AG168: 0 | AH168: 0 | AI168: 0 | AJ168: 0 | AK168: 0 | AL168: 0 | AM168: 0 | AN168: 0 | AO168: 0 | AP168: 0 | AQ168: 0
A169: 217 | B169: 8.1.10.3 | C169: УС52.12.1.03.0 | D169: Жилой комплекс с. Усады 52 га ПК-12 ж/д 12 корп.3 | E169: 0 | K169: 2021-07-20 | L169: 2021-09-01 | M169: 2022-09-27 | N169: 2022-09-27 | S169: 0 | T169: 0 | U169: 0 | V169: 0 | Y169: 0 | Z169: 0 | AA169: 0 | AB169: 0 | AC169: 0 | AD169: 0 | AF169: 0 | AG169: 0 | AH169: 0 | AI169: 0 | AJ169: 0 | AK169: 0 | AL169: 0 | AM169: 0 | AN169: 0 | AO169: 0 | AP169: 0 | AQ169: 0
A170: 219 | B170: 8.1.11 | C170: УС52.13.0.00.0 | D170: Жилой комплекс с. Усады 52 га ПК-13 (3 очередь) | E170: 30,233 | F170: 28,128 | G170: 2,105 | H170: 257 | I170: =SUM(I171,I172) -> 0 | J170: 3 | O170: ='Производственная программа'!#REF! ->  | P170: ='Производственная программа'!#REF! ->  | Q170: ='Производственная программа'!#REF! ->  | R170: ='Производственная программа'!#REF! ->  | S170: =SUM(S171,S172,S173) -> 0 | T170: =SUM(T171,T172,T173) -> 0 | U170: 0 | V170: 0 | W170: =IF(AND(YEAR($K171)<=W$2,YEAR($N171)>=W$2),$E$170,0) -> 30,233 | X170: =IF(AND(YEAR($K171)<=X$2,YEAR($N171)>=X$2),$E$170,0) -> 30,233 | Y170: 0 | Z170: 0 | AA170: 0 | AB170: 0 | AC170: 0 | AD170: 0 | AF170: 0 | AG170: 0 | AH170: 0 | AI170: 0 | AJ170: 2105 | AK170: 2105 | AL170: 0 | AM170: 0 | AN170: 0 | AO170: 0 | AP170: 0 | AQ170: 0
A171: 220 | B171: 8.1.11.1 | C171: УС52.13.1.01.0 | D171: Жилой комплекс с. Усады 52 га ПК-13 ж/д 13 корп.1 | E171: 0 | K171: 2021-07-20 | L171: 2021-09-01 | M171: 2022-09-27 | N171: 2022-09-27 | S171: =IF(AND(YEAR($K171)<=S$2,YEAR($N171)>=S$2),$E$170,0) -> 0 | T171: 0 | U171: 0 | V171: 0 | Y171: =IF(AND(YEAR($K171)<=Y$2,YEAR($N171)>=Y$2),$E$170,0) -> 0 | Z171: 0 | AA171: 0 | AB171: 0 | AC171: 0 | AD171: 0 | AF171: 0 | AG171: 0 | AH171: 0 | AI171: 0 | AJ171: 0 | AK171: 0 | AL171: 0 | AM171: 0 | AN171: 0 | AO171: 0 | AP171: 0 | AQ171: 0
A172: 221 | B172: 8.1.11.2 | C172: УС52.13.1.02.0 | D172: Жилой комплекс с. Усады 52 га ПК-13 ж/д 13 корп.2 | E172: 0 | K172: 2021-07-20 | L172: 2021-09-01 | M172: 2022-09-27 | N172: 2022-09-27 | S172: 0 | T172: 0 | U172: 0 | V172: 0 | Y172: 0 | Z172: 0 | AA172: 0 | AB172: 0 | AC172: 0 | AD172: 0 | AF172: 0 | AG172: 0 | AH172: 0 | AI172: 0 | AJ172: 0 | AK172: 0 | AL172: 0 | AM172: 0 | AN172: 0 | AO172: 0 | AP172: 0 | AQ172: 0
A173: 218 | B173: 8.1.10.4 | C173: УС52.12.1.04.0 | D173: Жилой комплекс с. Усады 52 га ПК-13 ж/д 13 корп.3 | E173: 0 | K173: 2021-07-20 | L173: 2021-09-01 | M173: 2022-09-27 | N173: 2022-09-27 | S173: 0 | T173: 0 | U173: 0 | V173: 0 | Y173: 0 | Z173: 0 | AA173: 0 | AB173: 0 | AC173: 0 | AD173: 0 | AF173: 0 | AG173: 0 | AH173: 0 | AI173: 0 | AJ173: 0 | AK173: 0 | AL173: 0 | AM173: 0 | AN173: 0 | AO173: 0 | AP173: 0 | AQ173: 0
A174: 222 | B174: 8.1.12 | C174: УС52.14.0.00.0 | D174: Жилой комплекс с. Усады 52 га 4-я очередь | E174: 32,760 | F174: 32,760 | H174: 456 | J174: 13 | K174: 2021-07-20 | L174: 2021-09-01 | M174: 2022-09-27 | N174: 2022-09-27 | O174: ='Производственная программа'!#REF! ->  | P174: ='Производственная программа'!#REF! ->  | Q174: ='Производственная программа'!#REF! ->  | R174: ='Производственная программа'!#REF! ->  | S174: =IF(AND(YEAR($K174)<=S$2,YEAR($N174)>=S$2),$E$174,0) -> 0 | T174: 0 | U174: 0 | V174: 0 | W174: 32,760 | X174: 32,760 | Y174: 0 | Z174: 0 | AA174: 0 | AB174: 0 | AC174: 0 | AD174: 0 | AF174: 0 | AG174: 0 | AH174: 0 | AI174: 0 | AJ174: 0 | AK174: 0 | AL174: 0 | AM174: 0 | AN174: 0 | AO174: 0 | AP174: 0 | AQ174: 0
A175: 227 | B175: 8.2 | C175: УС03.00.0.00.0 | D175: Жилой комплекс "Дома у сада" | E175: =SUM(E176,E177,E178,E179) -> 33,793 | F175: 32,245 | G175: 1,548 | H175: 0 | I175: 608 | J175: 4 | O175: ='Производственная программа'!#REF! ->  | P175: ='Производственная программа'!#REF! ->  | Q175: ='Производственная программа'!#REF! ->  | R175: ='Производственная программа'!#REF! ->  | S175: =SUM(S176,S177,S178,S179) -> 0 | T175: 0 | U175: 0 | V175: 0 | W175: 33,793 | X175: 0 | Y175: 0 | Z175: 0 | AA175: 0 | AB175: 0 | AC175: 0 | AD175: 0
A176: 228 | B176: 8.2.1.1 | C176: УС03.00.1.01.1 | D176: Жилой комплекс "Дома у сада" ж/д 1 корп.1 | E176: =F176+G176 -> 5,588 | F176: 5,019 | G176: 568 | I176: 108 | J176: 1 | K176: 2021-02-01 | L176: 2021-02-01 | M176: 2021-03-15 | N176: 2021-03-15 | O176: ='Производственная программа'!#REF! ->  | P176: ='Производственная программа'!#REF! ->  | Q176: ='Производственная программа'!#REF! ->  | R176: ='Производственная программа'!#REF! ->  | S176: =IF(AND(YEAR($K176)<=S$2,YEAR($N176)>=S$2),$E176,0) -> 0 | T176: 0 | U176: 0 | V176: 0 | W176: 5,588 | X176: 0 | Y176: 0 | Z176: 0 | AA176: 0 | AB176: 0 | AC176: 0 | AD176: 0 | AF176: =IF(S176>1,$G176,0) -> 0 | AG176: 0 | AH176: 0 | AI176: 0 | AJ176: 568 | AK176: 0 | AL176: 0 | AM176: 0 | AN176: 0 | AO176: 0 | AP176: 0 | AQ176: 0
A177: 229 | B177: 8.2.1.2 | C177: УС03.00.1.01.2 | D177: Жилой комплекс "Дома у сада" ж/д 1 корп.2 | E177: =F177+G177 -> 5,588 | F177: 5,019 | G177: 568 | I177: 108 | J177: 1 | K177: 2021-02-01 | L177: 2021-02-01 | M177: 2021-03-15 | N177: 2021-03-15 | O177: ='Производственная программа'!#REF! ->  | P177: ='Производственная программа'!#REF! ->  | Q177: ='Производственная программа'!#REF! ->  | R177: ='Производственная программа'!#REF! ->  | S177: 0 | T177: 0 | U177: 0 | V177: 0 | W177: 5,588 | X177: 0 | Y177: 0 | Z177: 0 | AA177: 0 | AB177: 0 | AC177: 0 | AD177: 0 | AF177: 0 | AG177: 0 | AH177: 0 | AI177: 0 | AJ177: 568 | AK177: 0 | AL177: 0 | AM177: 0 | AN177: 0 | AO177: 0 | AP177: 0 | AQ177: 0
A178: 230 | B178: 8.2.1.3 | C178: УС03.00.1.01.3 | D178: Жилой комплекс "Дома у сада" ж/д 1 корп.3 | E178: =F178+G178 -> 5,335 | F178: 4,924 | G178: 411 | I178: 72 | J178: 1 | K178: 2021-02-01 | L178: 2021-02-01 | M178: 2021-03-15 | N178: 2021-03-15 | O178: ='Производственная программа'!#REF! ->  | P178: ='Производственная программа'!#REF! ->  | Q178: ='Производственная программа'!#REF! ->  | R178: ='Производственная программа'!#REF! ->  | S178: 0 | T178: 0 | U178: 0 | V178: 0 | W178: 5,335 | X178: 0 | Y178: 0 | Z178: 0 | AA178: 0 | AB178: 0 | AC178: 0 | AD178: 0 | AF178: 0 | AG178: 0 | AH178: 0 | AI178: 0 | AJ178: 411 | AK178: 0 | AL178: 0 | AM178: 0 | AN178: 0 | AO178: 0 | AP178: 0 | AQ178: 0
A179: 232 | B179: 8.2.1.4 | C179: УС03.00.1.01.4 | D179: Жилой комплекс "Дома у сада" ж/д 1 корп.4 | E179: =F179+G179 -> 17,282 | F179: 17,282 | I179: 320 | J179: 1 | K179: 2021-02-01 | L179: 2021-02-01 | M179: 2021-03-15 | N179: 2021-03-15 | O179: ='Производственная программа'!#REF! ->  | P179: ='Производственная программа'!#REF! ->  | Q179: ='Производственная программа'!#REF! ->  | R179: ='Производственная программа'!#REF! ->  | S179: 0 | T179: 0 | U179: 0 | V179: 0 | W179: 17,282 | X179: 0 | Y179: 0 | Z179: 0 | AA179: 0 | AB179: 0 | AC179: 0 | AD179: 0 | AF179: 0 | AG179: 0 | AH179: 0 | AI179: 0 | AJ179: 0 | AK179: 0 | AL179: 0 | AM179: 0 | AN179: 0 | AO179: 0 | AP179: 0 | AQ179: 0
A180: 233 | B180: 8.3 | C180: УС12.00.0.00.0 | D180: Жилой комплекс с. Усады 1,2 га | E180: =E181 -> 0 | F180: 0 | G180: 0 | H180: 0 | I180: 0 | J180: 0 | S180: =S181 -> 0 | T180: 0 | U180: 0 | V180: 0 | W180: 0 | X180: 0 | Y180: 0 | Z180: 0 | AA180: 0 | AB180: 0 | AC180: 0 | AD180: 0
A181: 234 | B181: 8.3.1 | C181: УС12.01.0.00.0 | D181: Жилой комплекс с. Усады 1,2 га (офисное здание) | J181: 0 | S181: =IF(AND(YEAR($K181)<=S$2,YEAR($N181)>=S$2),$E181,0) -> 0 | T181: 0 | U181: 0 | V181: 0 | W181: 0 | X181: 0 | Y181: 0 | Z181: 0 | AA181: 0 | AB181: 0 | AC181: 0 | AD181: 0
A182: 235 | B182: 8.4 | C182: УС08.00.0.00.0 | D182: Жилой комплекс с. Усады 0,8 га | E182: =E183 -> 0 | F182: 0 | G182: 0 | H182: 0 | I182: 0 | J182: 0 | S182: =S183 -> 0 | T182: 0 | U182: 0 | V182: 0 | W182: 0 | X182: 0 | Y182: 0 | Z182: 0 | AA182: 0 | AB182: 0 | AC182: 0 | AD182: 0
A183: 236 | B183: 8.4.1 | C183: УС08.01.0.00.0 | D183: Жилой комплекс с. Усады 0,8 га (под жилье) | E183: =F183+G183 -> 0 | J183: 0 | S183: =IF(AND(YEAR($K183)<=S$2,YEAR($N183)>=S$2),$E183,0) -> 0 | T183: 0 | U183: 0 | V183: 0 | W183: 0 | X183: 0 | Y183: 0 | Z183: 0 | AA183: 0 | AB183: 0 | AC183: 0 | AD183: 0
A184: 237 | B184: 8.5 | C184: УС27.00.0.00.0 | D184: Жилой комплекс с. Усады 2,7 га | E184: =E185 -> 0 | F184: 0 | G184: 0 | H184: 0 | I184: 0 | J184: 0 | S184: =S185 -> 0 | T184: 0 | U184: 0 | V184: 0 | W184: 0 | X184: 0 | Y184: 0 | Z184: 0 | AA184: 0 | AB184: 0 | AC184: 0 | AD184: 0
A185: 238 | B185: 8.5.1 | C185: УС27.01.0.00.0 | D185: Жилой комплекс с. Усады 2,7 га (под коммуникации) | J185: 0 | S185: =IF(AND(YEAR($K185)<=S$2,YEAR($N185)>=S$2),$E185,0) -> 0 | T185: 0 | U185: 0 | V185: 0 | W185: 0 | X185: 0 | Y185: 0 | Z185: 0 | AA185: 0 | AB185: 0 | AC185: 0 | AD185: 0
A186: 239 | B186: 9 | C186: НС00.00.0.00.0 | D186: Жилой комплекс "Новые Столбище" | E186: =SUM(E187,E198,E199,E202) -> 646,447 | F186: =SUM(F187,F198,F199,F202) -> 642,936 | G186: =SUM(G187,G198,G199,G202) -> 3,510 | H186: =SUM(H187,H198:H202) -> 0 | I186: =SUM(I187,I198,I199,I202) -> 10,352 | J186: =SUM(J187,J198,J199,J202) -> 64 | O186: ='Производственная программа'!#REF! ->  | P186: ='Производственная программа'!#REF! ->  | Q186: ='Производственная программа'!#REF! ->  | R186: ='Производственная программа'!#REF! ->  | S186: =SUM(S187,S198,S199,S202) -> 0 | T186: 0 | U186: 0 | V186: 100,947 | W186: 100,947 | X186: 0 | Y186: 0 | Z186: 0 | AA186: 0 | AB186: 0 | AC186: 0 | AD186: 0
A187: 240 | B187: 9.1 | C187: НСМ1.00.0.00.0 | D187: Микрорайон № 1 | E187: =SUM(E188:E194,E195,E196,E197) -> 100,947 | F187: =SUM(F188:F197) -> 97,436 | G187: =SUM(G188:G197) -> 3,510 | H187: =SUM(H188:H197) -> 0 | I187: =SUM(I188:I197) -> 1,615 | J187: =SUM(J188:J197) -> 10 | O187: ='Производственная программа'!#REF! ->  | P187: ='Производственная программа'!#REF! ->  | Q187: ='Производственная программа'!#REF! ->  | R187: ='Производственная программа'!#REF! ->  | S187: =SUM(S188:S194,S195,S196,S197) -> 0 | T187: 0 | U187: 0 | V187: 100,947 | W187: 100,947 | X187: 0 | Y187: 0 | Z187: 0 | AA187: 0 | AB187: 0 | AC187: 0 | AD187: 0
A188: 241 | B188: 9.1.1 | C188: НСМ1.01.0.00.0 | D188: УБ-1 | E188: =F188+G188 -> 11,319 | F188: 10,835 | G188: 483 | I188: 173 | J188: 1 | K188: 2020-02-24 | L188: 2021-02-18 | M188: 2021-05-28 | N188: 2021-05-28 | O188: ='Производственная программа'!#REF! ->  | P188: ='Производственная программа'!#REF! ->  | Q188: ='Производственная программа'!#REF! ->  | R188: ='Производственная программа'!#REF! ->  | S188: =IF(AND(YEAR($K188)<=S$2,YEAR($N188)>=S$2),$E188,0) -> 0 | T188: 0 | U188: 0 | V188: 11,319 | W188: 11,319 | X188: 0 | Y188: 0 | Z188: 0 | AA188: 0 | AB188: 0 | AC188: 0 | AD188: 0 | AF188: =IF(S188>1,$G188,0) -> 0 | AG188: 0 | AH188: 0 | AI188: 483 | AJ188: 483 | AK188: 0 | AL188: 0 | AM188: 0 | AN188: 0 | AO188: 0 | AP188: 0 | AQ188: 0
A189: 242 | B189: 9.1.2 | C189: НСМ1.02.0.00.0 | D189: УБ-2 | E189: =F189+G189 -> 8,173 | F189: 7,957 | G189: 215 | I189: 140 | J189: 1 | K189: 2020-02-24 | L189: 2021-02-18 | M189: 2021-05-28 | N189: 2021-05-28 | O189: ='Производственная программа'!#REF! ->  | P189: ='Производственная программа'!#REF! ->  | Q189: ='Производственная программа'!#REF! ->  | R189: ='Производственная программа'!#REF! ->  | S189: 0 | T189: 0 | U189: 0 | V189: 8,173 | W189: 8,173 | X189: 0 | Y189: 0 | Z189: 0 | AA189: 0 | AB189: 0 | AC189: 0 | AD189: 0 | AF189: 0 | AG189: 0 | AH189: 0 | AI189: 215 | AJ189: 215 | AK189: 0 | AL189: 0 | AM189: 0 | AN189: 0 | AO189: 0 | AP189: 0 | AQ189: 0
A190: 243 | B190: 9.1.3 | C190: НСМ1.03.0.00.0 | D190: УБ-3 | E190: 6,697 | F190: 6,457 | G190: 240 | I190: 122 | J190: 1 | K190: 2020-02-24 | L190: 2021-02-18 | M190: 2021-05-28 | N190: 2021-05-28 | O190: ='Производственная программа'!#REF! ->  | P190: ='Производственная программа'!#REF! ->  | Q190: ='Производственная программа'!#REF! ->  | R190: ='Производственная программа'!#REF! ->  | S190: 0 | T190: 0 | U190: 0 | V190: 6,697 | W190: 6,697 | X190: 0 | Y190: 0 | Z190: 0 | AA190: 0 | AB190: 0 | AC190: 0 | AD190: 0 | AF190: 0 | AG190: 0 | AH190: 0 | AI190: 240 | AJ190: 240 | AK190: 0 | AL190: 0 | AM190: 0 | AN190: 0 | AO190: 0 | AP190: 0 | AQ190: 0
A191: 244 | B191: 9.1.4 | C191: НСМ1.04.0.00.0 | D191: УБ-4 | E191: 6,681 | F191: 6,421 | G191: 260 | I191: 121 | J191: 1 | K191: 2020-02-24 | L191: 2021-02-18 | M191: 2021-05-28 | N191: 2021-05-28 | O191: ='Производственная программа'!#REF! ->  | P191: ='Производственная программа'!#REF! ->  | Q191: ='Производственная программа'!#REF! ->  | R191: ='Производственная программа'!#REF! ->  | S191: 0 | T191: 0 | U191: 0 | V191: 6,681 | W191: 6,681 | X191: 0 | Y191: 0 | Z191: 0 | AA191: 0 | AB191: 0 | AC191: 0 | AD191: 0 | AF191: 0 | AG191: 0 | AH191: 0 | AI191: 260 | AJ191: 260 | AK191: 0 | AL191: 0 | AM191: 0 | AN191: 0 | AO191: 0 | AP191: 0 | AQ191: 0
A192: 245 | B192: 9.1.5 | C192: НСМ1.05.0.00.0 | D192: УБ-5 | E192: 13,288 | F192: 12,435 | G192: 853 | I192: 203 | J192: 1 | K192: 2020-02-24 | L192: 2021-02-18 | M192: 2021-05-28 | N192: 2021-05-28 | O192: ='Производственная программа'!#REF! ->  | P192: ='Производственная программа'!#REF! ->  | Q192: ='Производственная программа'!#REF! ->  | R192: ='Производственная программа'!#REF! ->  | S192: 0 | T192: 0 | U192: 0 | V192: 13,288 | W192: 13,288 | X192: 0 | Y192: 0 | Z192: 0 | AA192: 0 | AB192: 0 | AC192: 0 | AD192: 0 | AF192: 0 | AG192: 0 | AH192: 0 | AI192: 853 | AJ192: 853 | AK192: 0 | AL192: 0 | AM192: 0 | AN192: 0 | AO192: 0 | AP192: 0 | AQ192: 0
A193: 246 | B193: 9.1.6 | C193: НСМ1.06.0.00.0 | D193: УБ-6 | E193: 11,981 | F193: 11,668 | G193: 313 | I193: 181 | J193: 1 | K193: 2020-02-24 | L193: 2021-02-18 | M193: 2021-05-28 | N193: 2021-05-28 | O193: ='Производственная программа'!#REF! ->  | P193: ='Производственная программа'!#REF! ->  | Q193: ='Производственная программа'!#REF! ->  | R193: ='Производственная программа'!#REF! ->  | S193: 0 | T193: 0 | U193: 0 | V193: 11,981 | W193: 11,981 | X193: 0 | Y193: 0 | Z193: 0 | AA193: 0 | AB193: 0 | AC193: 0 | AD193: 0 | AF193: 0 | AG193: 0 | AH193: 0 | AI193: 313 | AJ193: 313 | AK193: 0 | AL193: 0 | AM193: 0 | AN193: 0 | AO193: 0 | AP193: 0 | AQ193: 0
A194: 247 | B194: 9.1.7 | C194: НСМ1.07.0.00.0 | D194: УБ-7 | E194: 8,494 | F194: 8,174 | G194: 320 | I194: 140 | J194: 1 | K194: 2020-02-24 | L194: 2021-02-18 | M194: 2021-05-28 | N194: 2021-05-28 | O194: ='Производственная программа'!#REF! ->  | P194: ='Производственная программа'!#REF! ->  | Q194: ='Производственная программа'!#REF! ->  | R194: ='Производственная программа'!#REF! ->  | S194: 0 | T194: 0 | U194: 0 | V194: 8,494 | W194: 8,494 | X194: 0 | Y194: 0 | Z194: 0 | AA194: 0 | AB194: 0 | AC194: 0 | AD194: 0 | AF194: 0 | AG194: 0 | AH194: 0 | AI194: 320 | AJ194: 320 | AK194: 0 | AL194: 0 | AM194: 0 | AN194: 0 | AO194: 0 | AP194: 0 | AQ194: 0
A195: 249 | B195: 9.1.8 | C195: НСМ1.08.0.00.0 | D195: УБ-8 | E195: 14,808 | F195: 14,348 | G195: 460 | I195: 237 | J195: 1 | K195: 2020-02-24 | L195: 2021-02-18 | M195: 2021-05-28 | N195: 2021-05-28 | O195: ='Производственная программа'!#REF! ->  | P195: ='Производственная программа'!#REF! ->  | Q195: ='Производственная программа'!#REF! ->  | R195: ='Производственная программа'!#REF! ->  | S195: 0 | T195: 0 | U195: 0 | V195: 14,808 | W195: 14,808 | X195: 0 | Y195: 0 | Z195: 0 | AA195: 0 | AB195: 0 | AC195: 0 | AD195: 0 | AF195: 0 | AG195: 0 | AH195: 0 | AI195: 460 | AJ195: 460 | AK195: 0 | AL195: 0 | AM195: 0 | AN195: 0 | AO195: 0 | AP195: 0 | AQ195: 0
A196: 251 | B196: 9.1.9 | C196: НСМ1.09.0.00.0 | D196: УБ-9 | E196: 9,739 | F196: 9,496 | G196: 243 | I196: 148 | J196: 1 | K196: 2020-02-24 | L196: 2021-02-18 | M196: 2021-05-28 | N196: 2021-05-28 | O196: ='Производственная программа'!#REF! ->  | P196: ='Производственная программа'!#REF! ->  | Q196: ='Производственная программа'!#REF! ->  | R196: ='Производственная программа'!#REF! ->  | S196: =IF(AND(YEAR($K196)<=S$2,YEAR($N196)>=S$2),$E196,0) -> 0 | T196: 0 | U196: 0 | V196: 9,739 | W196: 9,739 | X196: 0 | Y196: 0 | Z196: 0 | AA196: 0 | AB196: 0 | AC196: 0 | AD196: 0 | AF196: 0 | AG196: 0 | AH196: 0 | AI196: 243 | AJ196: 243 | AK196: 0 | AL196: 0 | AM196: 0 | AN196: 0 | AO196: 0 | AP196: 0 | AQ196: 0
A197: 253 | B197: 9.1.10 | C197: НСМ1.10.0.00.0 | D197: УБ-10 | E197: 9,768 | F197: 9,645 | G197: 123 | I197: 150 | J197: 1 | K197: 2020-02-24 | L197: 2021-02-18 | M197: 2021-05-28 | N197: 2021-05-28 | O197: ='Производственная программа'!#REF! ->  | P197: ='Производственная программа'!#REF! ->  | Q197: ='Производственная программа'!#REF! ->  | R197: ='Производственная программа'!#REF! ->  | S197: 0 | T197: 0 | U197: 0 | V197: 9,768 | W197: 9,768 | X197: 0 | Y197: 0 | Z197: 0 | AA197: 0 | AB197: 0 | AC197: 0 | AD197: 0 | AF197: 0 | AG197: 0 | AH197: 0 | AI197: 123 | AJ197: 123 | AK197: 0 | AL197: 0 | AM197: 0 | AN197: 0 | AO197: 0 | AP197: 0 | AQ197: 0
A198: 255 | B198: 9.2 | C198: НСМ2.00.0.00.0 | D198: Микрорайон № 2 | E198: =F198+G198 -> 105,500 | F198: 105,500 | I198: 1,698 | J198: 11 | K198: 2020-02-24 | O198: ='Производственная программа'!#REF! ->  | P198: ='Производственная программа'!#REF! ->  | Q198: ='Производственная программа'!#REF! ->  | R198: ='Производственная программа'!#REF! ->  | S198: 0 | T198: 0 | U198: 0 | V198: 0 | W198: 0 | X198: 0 | Y198: 0 | Z198: 0 | AA198: 0 | AB198: 0 | AC198: 0 | AD198: 0
A199: 256 | B199: 9.3 | C199: НСМ3.00.0.00.0 | D199: Микрорайон № 3 | E199: 232,600 | F199: 232,600 | I199: =E199*I187/E187 -> 3,721 | J199: 23 | K199: 2020-02-24 | O199: ='Производственная программа'!#REF! ->  | P199: ='Производственная программа'!#REF! ->  | Q199: ='Производственная программа'!#REF! ->  | R199: ='Производственная программа'!#REF! ->  | S199: 0 | T199: 0 | U199: 0 | V199: 0 | W199: 0 | X199: 0 | Y199: 0 | Z199: 0 | AA199: 0 | AB199: 0 | AC199: 0 | AD199: 0 | AF199: =IF(S199>1,$G199,0) -> 0 | AG199: 0 | AH199: 0 | AI199: 0 | AJ199: 0 | AK199: 0 | AL199: 0 | AM199: 0 | AN199: 0 | AO199: 0 | AP199: 0 | AQ199: 0
B200: 9.3.1 | C200: НСМ3.01.0.00.0 | D200: Микрорайон № 3 1 очередь | E200: 132,600 | F200: 132,600 | O200: ='Производственная программа'!#REF! ->  | P200: ='Производственная программа'!#REF! ->  | Q200: ='Производственная программа'!#REF! ->  | R200: ='Производственная программа'!#REF! ->  | S200: 0 | T200: 0 | U200: 0 | V200: 0 | W200: 0 | X200: 0 | Y200: 0 | Z200: 0 | AA200: 0 | AB200: 0 | AC200: 0 | AD200: 0
... 49 more rows

Sheet Производственная программа
B1: Потребность ЭППС, лакокрасочных материалов, линолеума, плттки керамической, керамогранита на 2023 г.
A2: № п/п | B2: № п/п | C2: Наименование объектов | D2: Общая площадь здания, м2 | E2: Продаваемая площадь, м2 | F2: Площадь квартир, м2 | G2: Площадь коммерции, м2 | H2: Паркинги, маш/мест | I2: Кол-во квартир | J2: Кол-во БС | K2: Этажность (жилые этажи) | L2: Кол-во домов | M2: Конструктив | N2: Тип панелей | O2: Объем | P2: Ед. изм. | Q2: 2023
Q3: янв | R3: фев | S3: мар | T3: апр | U3: май | V3: июн | W3: июл | X3: авг | Y3: сен | Z3: окт | AA3: ноя | AB3: дек
A4: 1 | B4: 1 | C4: 2 | E4: 3 | F4: 4 | G4: 5 | H4: 6 | I4: 7 | J4: 14 | K4: 15 | L4: 16 | M4: 17 | N4: 18 | Q4: 68 | R4: 69 | S4: 70 | T4: 71 | U4: 72 | V4: 73 | W4: 74 | X4: 75 | Y4: 76 | Z4: 77 | AA4: 78 | AB4: 79
A5: 12 | B5: 2 | C5: ЖК "Светлая долина"
A6: 30 | B6: 2.3 | C6: ЖК "Светлая Долина" ПК-3 | D6: =SUM(D7:D41) -> 65,472 | E6: =SUM(E7,E17,E29,E41) -> 45,953 | F6: =SUM(F7:F41) -> 42,946 | G6: =SUM(G7:G41) -> 3,007 | H6: =SUM(H7:H41) -> 0 | I6: =SUM(I7:I41) -> 989 | L6: =SUM(L7:L41) -> 4
A7: 31 | B7: 2.3.1 | C7: ЖК "Светлая Долина" ПК-3 ж/д 3-1 | D7: 30,509 | E7: =F7+G7 -> 20,730 | F7: 19,263 | G7: 1,467 | I7: 480 | J7: 2 | K7: 26 (24) | L7: 1 | M7: Монолит
C8: Плиты теплоизоляционные пенополистирольные экструдированные 50мм | O8: 153.564 | P8: м3
C9: Плиты теплоизоляционные пенополистирольные экструдированные 150 мм | O9: 34.044 | P9: м3
C10: Краска водоэмульсионная ВЭ АК (акриловая) для внутренних работ, универсальная | O10: 1,566.520 | P10: кг
C11: Краска Креатив декор набрызг | O11: 17,880.518 | P11: кг
C12: Грунт-краска Bravo ЦветоПрайм | O12: 65.428 | P12: кг
C13: Краска декоративная | O13: 2,642.378 | P13: кг
C14: Краска маслянная | O14: 20.260 | P14: кг
C15: Плитка керамическая | O15: 151.142 | P15: м2
C16: Керамогранит | O16: 5,712.389 | P16: м2
A17: 32 | B17: 2.3.2 | C17: ЖК "Светлая Долина" ПК-3 ж/д 3-2 | D17: 7,460 | E17: =F17+G17 -> 5,286 | F17: 4,887 | G17: 398 | I17: 99 | J17: 2 | K17: 11 (9) | L17: 1 | M17: КПД, 1 Каркас | N17: Тип 20
C18: Плиты теплоизоляционные пенополистирольные экструдированные 30мм | O18: =$E$17*O42/$E$41 -> 2.715 | P18: м3
C19: Плиты теплоизоляционные пенополистирольные экструдированные 50мм | O19: =$E$17*O43/$E$41 -> 40.611 | P19: м3
C20: Плиты теплоизоляционные пенополистирольные экструдированные 80мм | O20: 0.323 | P20: м3
C21: Плиты теплоизоляционные пенополистирольные экструдированные 150 мм | O21: 6.847 | P21: м3
C22: Краска водоэмульсионная ВЭ АК (акриловая) для внутренних работ, универсальная | O22: 344.625 | P22: кг
C23: Краска Креатив декор набрызг | O23: 3,181.077 | P23: кг
C24: Грунт-краска Bravo ЦветоПрайм | O24: 33.237 | P24: кг
C25: Краска декоративная | O25: 1,120.768 | P25: кг
C26: Краска маслянная | O26: 8.435 | P26: кг
C27: Плитка керамическая | O27: 36.968 | P27: м2
C28: Керамогранит | O28: 1,166.373 | P28: м2
A29: 34 | B29: 2.3.4 | C29: ЖК "Светлая Долина" ПК-3 ж/д 3-3 | D29: 17,140 | E29: =F29+G29 -> 12,418 | F29: 11,715 | G29: 704 | I29: 250 | J29: 2 | K29: 18-20 (16-18) | L29: 1 | M29: КПД, 1 Каркас | N29: Тип 2.3
C30: Плиты теплоизоляционные пенополистирольные экструдированные 30мм | O30: =O42*$E$29/$E$41 -> 6.380 | P30: м3
C31: Плиты теплоизоляционные пенополистирольные экструдированные 50мм | O31: 95.413 | P31: м3
C32: Плиты теплоизоляционные пенополистирольные экструдированные 80мм | O32: 0.760 | P32: м3
C33: Плиты теплоизоляционные пенополистирольные экструдированные 150 мм | O33: 16.086 | P33: м3
C34: Краска водоэмульсионная ВЭ АК (акриловая) для внутренних работ, универсальная | O34: 809.678 | P34: кг
C35: Краска Креатив декор набрызг | O35: 7,473.762 | P35: кг
C36: Грунт-краска Bravo ЦветоПрайм | O36: 78.087 | P36: кг
C37: Краска декоративная | O37: 2,633.182 | P37: кг
C38: Краска маслянная | O38: 19.818 | P38: кг
C39: Плитка керамическая | O39: 86.854 | P39: м2
C40: Керамогранит | O40: 2,740.328 | P40: м2
A41: 36 | B41: 2.3.6 | C41: ЖК "Светлая Долина" ПК-3 ж/д 3-4 | D41: 10,363 | E41: =F41+G41 -> 7,519 | F41: 7,081 | G41: 438 | I41: 160 | J41: 1 | K41: 18 (16) | L41: 1 | M41: КПД, 1 Каркас | N41: Тип 2.4
C42: Плиты теплоизоляционные пенополистирольные экструдированные 30мм | O42: 3.863 | P42: м3
C43: Плиты теплоизоляционные пенополистирольные экструдированные 50мм | O43: 57.774 | P43: м3
C44: Плиты теплоизоляционные пенополистирольные экструдированные 80мм | O44: 0.460 | P44: м3
C45: Плиты теплоизоляционные пенополистирольные экструдированные 150 мм | O45: 9.740 | P45: м3
C46: Краска водоэмульсионная ВЭ АК (акриловая) для внутренних работ, универсальная | O46: 490.271 | P46: кг
C47: Краска Креатив декор набрызг | O47: 4,525.465 | P47: кг
C48: Грунт-краска Bravo ЦветоПрайм | O48: 47.283 | P48: кг
C49: Краска декоративная | O49: 1,594.428 | P49: кг
C50: Краска маслянная | O50: 12.000 | P50: кг
C51: Плитка керамическая | O51: 52.591 | P51: м2
C52: Керамогранит | O52: 1,659.306 | P52: м2
A53: 40 | B53: 2.5 | C53: ЖК "Светлая Долина" ПК-5 | D53: =D54 -> 16,357 | E53: =E54 -> 1,268 | F53: =SUM(F54,#REF!) ->  | G53: =SUM(G54,#REF!) ->  | H53: =SUM(H54,#REF!) ->  | I53: =I54 -> 0 | L53: =L54 -> 0
A54: 41 | B54: 2.5.1 | C54: ЖК "Светлая долина" ПК-5 паркинг 5-1 на 506 м/м | D54: 16,357 | E54: =G54+F54 -> 1,268 | G54: 1,268 | H54: 506 | K54: 9 | M54: Каркас
C55: Плиты теплоизоляционные пенополистирольные экструдированные 30мм | O55: =$E$54*O42/$E$41 -> 0.651 | P55: м3
C56: Плиты теплоизоляционные пенополистирольные экструдированные 50мм | O56: =$E$54*O43/$E$41 -> 9.740 | P56: м3
C57: Плиты теплоизоляционные пенополистирольные экструдированные 80мм | O57: 0.078 | P57: м3
C58: Плиты теплоизоляционные пенополистирольные экструдированные 150 мм | O58: 1.642 | P58: м3
C59: Краска водоэмульсионная ВЭ АК (акриловая) для внутренних работ, универсальная | O59: 82.650 | P59: кг
C60: Краска Креатив декор набрызг | O60: 762.907 | P60: кг
C61: Грунт-краска Bravo ЦветоПрайм | O61: 7.971 | P61: кг
C62: Краска декоративная | O62: 268.790 | P62: кг
C63: Краска маслянная | O63: 2.023 | P63: кг
C64: Плитка керамическая | O64: 8.866 | P64: м2
C65: Керамогранит | O65: 279.727 | P65: м2
A66: 227 | B66: 9.2 | C66: ЖК "Дома у сада"
A67: 232 | B67: 9.2.5 | C67: ЖК "Дома у сада" ж/д 1-4 | D67: 25,270 | E67: =F67+G67 -> 17,282 | F67: 17,282 | I67: 320 | J67: 3 | K67: 19(17) | L67: 1 | M67: КПД | N67: ТИП 17.5
C68: Плиты теплоизоляционные пенополистирольные экструдированные 30мм | O68: 0.570 | P68: м3
C69: Плиты теплоизоляционные пенополистирольные экструдированные 50мм | O69: 9.375 | P69: м3
C70: Плиты теплоизоляционные пенополистирольные экструдированные 100мм | O70: 119.428 | P70: м3
C71: Краска водоэмульсионная ВЭ АК (акриловая) для внутренних работ, универсальная | O71: 1,306.913 | P71: кг
C72: Краска Креатив декор набрызг | O72: 13,450.931 | P72: кг
C73: Грунт-краска Bravo ЦветоПрайм | O73: 206.690 | P73: кг
C74: Краска декоративная | O74: 1,983.216 | P74: кг
C75: Краска маслянная | O75: 25.350 | P75: кг
C76: Плитка керамическая | O76: =$E$67*O51/$E$41 -> 120.873 | P76: м2
C77: Керамогранит | O77: 3,922.350 | P77: м2
A78: 261 | B78: 13 | C78: Объекты ГЖФ
A79: 265 | B79: 13.1 | C79: ЖК "Салават Купере"
A80: 266 | B80: 13.1.2 | C80: ЖК "Салават Купере" Квартал №1 | D80: =SUM(D81:D172) -> 0 | E80: 55,877 | F80: 51,935 | G80: 3,942 | H80: 0 | I80: 1,040 | L80: =SUM(L81:L172) -> 8
A81: 279 | B81: 13.1.2.1 | C81: ЖК "Салават Купере" Квартал №1 ж/д 5-1 | E81: 5,325 | F81: 4,915 | G81: 411 | I81: 72 | L81: 1 | M81: КПД, 1 каркас
C82: Плиты теплоизоляционные пенополистирольные экструдированные 30мм | O82: =0.000513740531109031*E81 -> 2.736 | P82: м3
C83: Плиты теплоизоляционные пенополистирольные экструдированные 50мм | O83: =0.00768336666950379*E81 -> 40.917 | P83: м3
C84: Плиты теплоизоляционные пенополистирольные экструдированные 80мм | O84: =0.0000611754191846115*E81 -> 0.326 | P84: м3
C85: Плиты теплоизоляционные пенополистирольные экструдированные 150 мм | O85: =0.00129532300621329*E81 -> 6.898 | P85: м3
C86: Краска водоэмульсионная ВЭ АК (акриловая) для внутренних работ, универсальная | O86: =0.065201160737084*E81 -> 347.220 | P86: кг
C87: Краска Креатив декор набрызг | O87: =0.60184180568559*E81 -> 3,205.030 | P87: кг
C88: Грунт-краска Bravo ЦветоПрайм | O88: =0.00628816814196953*E81 -> 33.487 | P88: кг
C89: Краска декоративная | O89: =0.212043046216699*E81 -> 1,129.208 | P89: кг
C90: Краска маслянная | O90: =0.00159588050046813*E81 -> 8.499 | P90: кг
C91: Плитка керамическая | O91: =0.00699407928334326*E81 -> 37.246 | P91: м2
C92: Керамогранит | O92: =0.22067117414248*E81 -> 1,175.156 | P92: м2
C93: Линолеум | O93: =1.0360148984361*E81 -> 5,517.163 | P93: м2
A94: 279 | B94: 13.1.2.2 | C94: ЖК "Салават Купере" Квартал №1 ж/д 5-2 | E94: 5,325 | F94: 4,915 | G94: 411 | I94: 72 | L94: 1 | M94: КПД, 1 Каркас
C95: Плиты теплоизоляционные пенополистирольные экструдированные 30мм | O95: =0.000513740531109031*E94 -> 2.736 | P95: м3
C96: Плиты теплоизоляционные пенополистирольные экструдированные 50мм | O96: =0.00768336666950379*E94 -> 40.917 | P96: м3
C97: Плиты теплоизоляционные пенополистирольные экструдированные 80мм | O97: =0.0000611754191846115*E94 -> 0.326 | P97: м3
C98: Плиты теплоизоляционные пенополистирольные экструдированные 150 мм | O98: =0.00129532300621329*E94 -> 6.898 | P98: м3
C99: Краска водоэмульсионная ВЭ АК (акриловая) для внутренних работ, универсальная | O99: =0.065201160737084*E94 -> 347.220 | P99: кг
C100: Краска Креатив декор набрызг | O100: =0.60184180568559*E94 -> 3,205.030 | P100: кг
C101: Грунт-краска Bravo ЦветоПрайм | O101: =0.00628816814196953*E94 -> 33.487 | P101: кг
C102: Краска декоративная | O102: =0.212043046216699*E94 -> 1,129.208 | P102: кг
C103: Краска маслянная | O103: =0.00159588050046813*E94 -> 8.499 | P103: кг
C104: Плитка керамическая | O104: =0.00699407928334326*E94 -> 37.246 | P104: м2
C105: Керамогранит | O105: =0.22067117414248*E94 -> 1,175.156 | P105: м2
C106: Линолеум | O106: =1.0360148984361*E94 -> 5,517.163 | P106: м2
A107: 267 | B107: 13.1.2.3 | C107: ЖК "Салават Купере" Квартал №1 ж/д 3-1 | E107: 7,766 | F107: 7,366 | G107: 400 | I107: 140 | L107: 1 | M107: КПД, 1 Каркас
C108: Плиты теплоизоляционные пенополистирольные экструдированные 30мм | O108: =0.000513740531109031*E107 -> 3.990 | P108: м3
C109: Плиты теплоизоляционные пенополистирольные экструдированные 50мм | O109: =0.00768336666950379*E107 -> 59.667 | P109: м3
C110: Плиты теплоизоляционные пенополистирольные экструдированные 80мм | O110: =0.0000611754191846115*E107 -> 0.475 | P110: м3
C111: Плиты теплоизоляционные пенополистирольные экструдированные 150 мм | O111: =0.00129532300621329*E107 -> 10.059 | P111: м3
C112: Краска водоэмульсионная ВЭ АК (акриловая) для внутренних работ, универсальная | O112: =0.065201160737084*E107 -> 506.331 | P112: кг
C113: Краска Креатив декор набрызг | O113: =0.60184180568559*E107 -> 4,673.711 | P113: кг
C114: Грунт-краска Bravo ЦветоПрайм | O114: =0.00628816814196953*E107 -> 48.832 | P114: кг
C115: Краска декоративная | O115: =0.212043046216699*E107 -> 1,646.658 | P115: кг
C116: Краска маслянная | O116: =0.00159588050046813*E107 -> 12.393 | P116: кг
C117: Плитка керамическая | O117: =0.00699407928334326*E107 -> 54.314 | P117: м2
C118: Керамогранит | O118: =0.22067117414248*E107 -> 1,713.662 | P118: м2
C119: Линолеум | O119: =1.0360148984361*E107 -> 8,045.360 | P119: м2
A120: 268 | B120: 13.1.2.4 | C120: ЖК "Салават Купере" Квартал №1 ж/д 3-2 | E120: 8,789 | F120: 8,209 | G120: 580 | I120: 168 | L120: 1 | M120: КПД, 1 Каркас
C121: Плиты теплоизоляционные пенополистирольные экструдированные 30мм | O121: =0.000513740531109031*E120 -> 4.515 | P121: м3
C122: Плиты теплоизоляционные пенополистирольные экструдированные 50мм | O122: =0.00768336666950379*E120 -> 67.532 | P122: м3
C123: Плиты теплоизоляционные пенополистирольные экструдированные 80мм | O123: =0.0000611754191846115*E120 -> 0.538 | P123: м3
C124: Плиты теплоизоляционные пенополистирольные экструдированные 150 мм | O124: =0.00129532300621329*E120 -> 11.385 | P124: м3
C125: Краска водоэмульсионная ВЭ АК (акриловая) для внутренних работ, универсальная | O125: =0.065201160737084*E120 -> 573.082 | P125: кг
C126: Краска Креатив декор набрызг | O126: =0.60184180568559*E120 -> 5,289.852 | P126: кг
C127: Грунт-краска Bravo ЦветоПрайм | O127: =0.00628816814196953*E120 -> 55.269 | P127: кг
C128: Краска декоративная | O128: =0.212043046216699*E120 -> 1,863.740 | P128: кг
C129: Краска маслянная | O129: =0.00159588050046813*E120 -> 14.027 | P129: кг
C130: Плитка керамическая | O130: =0.00699407928334326*E120 -> 61.474 | P130: м2
C131: Керамогранит | O131: =0.22067117414248*E120 -> 1,939.576 | P131: м2
C132: Линолеум | O132: =1.0360148984361*E120 -> 9,105.991 | P132: м2
A133: 269 | B133: 13.1.2.5 | C133: ЖК "Салават Купере" Квартал №1 ж/д 3-3 | E133: 6,058 | F133: 5,478 | G133: 580 | I133: 112 | L133: 1 | M133: КПД, 1 Каркас
C134: Плиты теплоизоляционные пенополистирольные экструдированные 30мм | O134: =0.000513740531109031*E133 -> 3.112 | P134: м3
C135: Плиты теплоизоляционные пенополистирольные экструдированные 50мм | O135: =0.00768336666950379*E133 -> 46.545 | P135: м3
C136: Плиты теплоизоляционные пенополистирольные экструдированные 80мм | O136: =0.0000611754191846115*E133 -> 0.371 | P136: м3
C137: Плиты теплоизоляционные пенополистирольные экструдированные 150 мм | O137: =0.00129532300621329*E133 -> 7.847 | P137: м3
C138: Краска водоэмульсионная ВЭ АК (акриловая) для внутренних работ, универсальная | O138: =0.065201160737084*E133 -> 394.978 | P138: кг
C139: Краска Креатив декор набрызг | O139: =0.60184180568559*E133 -> 3,645.861 | P139: кг
C140: Грунт-краска Bravo ЦветоПрайм | O140: =0.00628816814196953*E133 -> 38.093 | P140: кг
C141: Краска декоративная | O141: =0.212043046216699*E133 -> 1,284.523 | P141: кг
C142: Краска маслянная | O142: =0.00159588050046813*E133 -> 9.668 | P142: кг
C143: Плитка керамическая | O143: =0.00699407928334326*E133 -> 42.369 | P143: м2
C144: Керамогранит | O144: =0.22067117414248*E133 -> 1,336.791 | P144: м2
C145: Линолеум | O145: =1.0360148984361*E133 -> 6,276.012 | P145: м2
A146: 277 | B146: 13.1.2.7 | C146: ЖК "Салават Купере" Квартал №1 ж/д 4-2 | E146: =F146+G146 -> 7,766 | F146: 7,366 | G146: 400 | I146: 196 | L146: 1 | M146: КПД, 1 Каркас
C147: Плиты теплоизоляционные пенополистирольные экструдированные 30мм | O147: =0.000513740531109031*E146 -> 3.990 | P147: м3
C148: Плиты теплоизоляционные пенополистирольные экструдированные 50мм | O148: =0.00768336666950379*E146 -> 59.667 | P148: м3
C149: Плиты теплоизоляционные пенополистирольные экструдированные 80мм | O149: =0.0000611754191846115*E146 -> 0.475 | P149: м3
C150: Плиты теплоизоляционные пенополистирольные экструдированные 150 мм | O150: =0.00129532300621329*E146 -> 10.059 | P150: м3
C151: Краска водоэмульсионная ВЭ АК (акриловая) для внутренних работ, универсальная | O151: =0.065201160737084*E146 -> 506.331 | P151: кг
C152: Краска Креатив декор набрызг | O152: =0.60184180568559*E146 -> 4,673.711 | P152: кг
C153: Грунт-краска Bravo ЦветоПрайм | O153: =0.00628816814196953*E146 -> 48.832 | P153: кг
C154: Краска декоративная | O154: =0.212043046216699*E146 -> 1,646.658 | P154: кг
C155: Краска маслянная | O155: =0.00159588050046813*E146 -> 12.393 | P155: кг
C156: Плитка керамическая | O156: =0.00699407928334326*E146 -> 54.314 | P156: м2
C157: Керамогранит | O157: =0.22067117414248*E146 -> 1,713.662 | P157: м2
C158: Линолеум | O158: =1.0360148984361*E146 -> 8,045.360 | P158: м2
A159: 268 | B159: 13.1.2.10 | C159: ЖК "Салават Купере" Квартал №1 ж/д 1-2 | E159: 8,789 | F159: 8,209 | G159: 580 | I159: 168 | L159: 1 | M159: КПД, 1 Каркас
C160: Плиты теплоизоляционные пенополистирольные экструдированные 30мм | O160: =0.000513740531109031*E159 -> 4.515 | P160: м3
C161: Плиты теплоизоляционные пенополистирольные экструдированные 50мм | O161: =0.00768336666950379*E159 -> 67.532 | P161: м3
C162: Плиты теплоизоляционные пенополистирольные экструдированные 80мм | O162: =0.0000611754191846115*E159 -> 0.538 | P162: м3
C163: Плиты теплоизоляционные пенополистирольные экструдированные 150 мм | O163: =0.00129532300621329*E159 -> 11.385 | P163: м3
C164: Краска водоэмульсионная ВЭ АК (акриловая) для внутренних работ, универсальная | O164: =0.065201160737084*E159 -> 573.082 | P164: кг
C165: Краска Креатив декор набрызг | O165: =0.60184180568559*E159 -> 5,289.852 | P165: кг
C166: Грунт-краска Bravo ЦветоПрайм | O166: =0.00628816814196953*E159 -> 55.269 | P166: кг
C167: Краска декоративная | O167: =0.212043046216699*E159 -> 1,863.740 | P167: кг
C168: Краска маслянная | O168: =0.00159588050046813*E159 -> 14.027 | P168: кг
C169: Плитка керамическая | O169: =0.00699407928334326*E159 -> 61.474 | P169: м2
C170: Керамогранит | O170: =0.22067117414248*E159 -> 1,939.576 | P170: м2
C171: Линолеум | O171: =1.0360148984361*E159 -> 9,105.991 | P171: м2
A172: 269 | B172: 13.1.2.11 | C172: ЖК "Салават Купере" Квартал №1 ж/д 1-3 | E172: 6,058 | F172: 5,478 | G172: 580 | I172: 112 | L172: 1 | M172: КПД, 1 Каркас
C173: Плиты теплоизоляционные пенополистирольные экструдированные 30мм | O173: =0.000513740531109031*E172 -> 3.112 | P173: м3
C174: Плиты теплоизоляционные пенополистирольные экструдированные 50мм | O174: =0.00768336666950379*E172 -> 46.545 | P174: м3
C175: Плиты теплоизоляционные пенополистирольные экструдированные 80мм | O175: =0.0000611754191846115*E172 -> 0.371 | P175: м3
C176: Плиты теплоизоляционные пенополистирольные экструдированные 150 мм | O176: =0.00129532300621329*E172 -> 7.847 | P176: м3
C177: Краска водоэмульсионная ВЭ АК (акриловая) для внутренних работ, универсальная | O177: =0.065201160737084*E172 -> 394.978 | P177: кг
C178: Краска Креатив декор набрызг | O178: =0.60184180568559*E172 -> 3,645.861 | P178: кг
C179: Грунт-краска Bravo ЦветоПрайм | O179: =0.00628816814196953*E172 -> 38.093 | P179: кг
C180: Краска декоративная | O180: =0.212043046216699*E172 -> 1,284.523 | P180: кг
C181: Краска маслянная | O181: =0.00159588050046813*E172 -> 9.668 | P181: кг
C182: Плитка керамическая | O182: =0.00699407928334326*E172 -> 42.369 | P182: м2
C183: Керамогранит | O183: =0.22067117414248*E172 -> 1,336.791 | P183: м2
C184: Линолеум | O184: =1.0360148984361*E172 -> 6,276.012 | P184: м2

Sheet С фильтрами (hidden)
B1: ПРОИЗВОДСТВЕННАЯ ПРОГРАММА 2022-2028
A2: № п/п | B2: № п/п | C2: Код по 1C | D2: Наименование объектов | E2: Общая площадь здания, м2 | F2: Продаваемая площадь, м2 | G2: Площадь квартир, м2 | H2: Площадь коммерции, м2 | I2: Паркинги, маш/мест | J2: Кол-во квартир | K2: =EP2 -> Программа на 12.01.22 утверждена | N2: =FJ2 -> Программа на 18.03.22 | Q2: Кол-во БС | R2: Этажность (жилые этажи) | S2: Кол-во домов | T2: Тип строения | U2: Тип панелей | V2: Тип проектирования | W2: Полный объем м3 панель | X2: Полный объем шт панель | Y2: Каркасы м3 | Z2: Фактический объем панелей м3 | AA2: Разница панели м3 | AB2: КПД м3 2020 | AC2: Каркасы м3 | AD2: каркасы разница м3 | AF2: Фаза Прединвест/ Инвест | AG2: Комментарии | AH2: План на 24.03.2021 | AT2: Проноз на 23.11.2021 | BF2: Проноз на 14.03.2022 | BR2: Программа на февраль 2020 | BT2: Программа на июль 2020 | BV2: Программа на 10.12.2020 | BX2: Программа на 17.12.2020 | BZ2: Программа на 20.01.2021 | CB2: Программа на 10.02.2021 | CD2: Программа на 20.02.2021 | CF2: Программа на 01.03.2021 | CH2: Программа на 09.03.21 | CJ2: Программа на 19.03.21 | CL2: Программа на 31.03.21 | CN2: Программа на 09.04.21 | CP2: Программа на 19.04.21 | CR2: Программа на 28.04.21 | CT2: Программа на 17.05.21 | CV2: Программа на 02.06.21 | CX2: Программа на 18.06.21 | CZ2: Программа на 29.06.21 | DB2: Программа на 08.07.21 | DD2: Программа на 23.07.21 | DF2: Программа на 26.07.21 | DH2: Программа на 11.08.21 | DJ2: Программа на 19.08.21 | DL2: Программа на 27.08.21 | DN2: Программа на 09.09.21 | DQ2: Программа на 22.09.21 | DT2: Программа на 11.10.21 | DW2: Программа на 10.11.21 | DZ2: Программа на 29.11.21 | EC2: Программа на 07.12.21 | EF2: Срок СМР (мес.) | EG2: Срок СМР (мес.) | EH2: Согласов-е АГК в АБД | EI2: Согласов-е ЭП 1 этап в УАиГ | EJ2: Программа на 14.12.21 | EM2: Программа на 27.12.21 | EP2: Программа на 12.01.22 утверждена | ES2: Срок СМР (мес.) | ET2: Срок СМР (мес.) | EU2: Программа на 24.01.21 | EX2: Программа на 04.02.22 | FA2: Программа на 11.02.22 | FD2: Программа на 21.02.22 | FG2: Программа на 05.03.22 | FJ2: Программа на 18.03.22 | FM2: Срок СМР (мес.) | FN2: Срок СМР (мес.) | FO2: Разница в Сроках СМР (мес.) | FP2: Разница Срок СМР (мес.) | FQ2: Норматив | FR2: Отклонение от разреш. (мес.) | FS2: Отклонение от ввода (мес.) | FT2: Проектировщик | FV2: Ген. Подрядчик | FW2: Срок РНС до | FX2: Передача ключей по ДДУ (обяз-ва) | FY2: Для фильтров | FZ2: Номерация
K3: Разрешение | L3: Начало СМР | M3: Ввод объекта | N3: Разрешение | O3: Начало СМР | P3: Ввод объекта | AH3: ТЗ на концепцию | AI3: Согл. конц. в АБД | AJ3: Согл. конц. в УАиГ | AK3: Согласование ЭП 1 этап | AL3: Утвержение отклонений | AM3: Положительная экспертиза | AN3: Старт продаж | AO3: Выдача КЖИ | AP3: Производство панелей | AQ3: Получение ЗОС | AR3: Раскрытие эскроу-счетов | AS3: Ввод по БАНКУ | AT3: ТЗ на концепцию | AU3: Согл. конц. в АБД | AV3: Согл. конц. в УАиГ | AW3: Согласование ЭП 1 этап | AX3: Утвержение отклонений | AY3: Положительная экспертиза | AZ3: Старт продаж | BA3: Выдача КЖИ | BB3: Производство панелей | BC3: Получение ЗОС | BD3: Раскрытие эскроу-счетов | BE3: Ввод по БАНКУ | BF3: ТЗ на концепцию | BG3: Согл. конц. в АБД | BH3: Согл. конц. в УАиГ | BI3: Согласование ЭП 1 этап | BJ3: Утвержение отклонений | BK3: Положительная экспертиза | BL3: Старт продаж | BM3: Выдача КЖИ | BN3: Производство панелей | BO3: Получение ЗОС | BP3: Раскрытие эскроу-счетов | BQ3: Ввод по БАНКУ | BR3: Разрешение | BS3: Ввод объекта | BT3: Разрешение | BU3: Ввод объекта | BV3: Разрешение | BW3: Ввод объекта | BX3: Разрешение | BY3: Ввод объекта | BZ3: Разрешение | CA3: Ввод объекта | CB3: Разрешение | CC3: Ввод объекта | CD3: Разрешение | CE3: Ввод объекта | CF3: Разрешение | CG3: Ввод объекта | CH3: Разрешение | CI3: Ввод объекта | CJ3: Разрешение | CK3: Ввод объекта | CL3: Разрешение | CM3: Ввод объекта | CN3: Разрешение | CO3: Ввод объекта | CP3: Разрешение | CQ3: Ввод объекта | CR3: Разрешение | CS3: Ввод объекта | CT3: Разрешение | CU3: Ввод объекта | CV3: Разрешение | CW3: Ввод объекта | CX3: Разрешение | CY3: Ввод объекта | CZ3: Разрешение | DA3: Ввод объекта | DB3: Разрешение | DC3: Ввод объекта | DD3: Разрешение | DE3: Ввод объекта | DF3: Разрешение | DG3: Ввод объекта | DH3: Разрешение | DI3: Ввод объекта | DJ3: Разрешение | DK3: Ввод объекта | DL3: Разрешение | DM3: Ввод объекта | DN3: Разрешение | DO3: Начало СМР | DP3: Ввод объекта | DQ3: Разрешение | DR3: Начало СМР | DS3: Ввод объекта | DT3: Разрешение | DU3: Начало СМР | DV3: Ввод объекта | DW3: Разрешение | DX3: Начало СМР | DY3: Ввод объекта | DZ3: Разрешение | EA3: Начало СМР | EB3: Ввод объекта | EC3: Разрешение | ED3: Начало СМР | EE3: Ввод объекта | EF3: Начало СМР - Ввод | EG3: РНС - Ввод | EJ3: Разрешение | EK3: Начало СМР | EL3: Ввод объекта | EM3: Разрешение | EN3: Начало СМР | EO3: Ввод объекта | EP3: Разрешение | EQ3: Начало СМР | ER3: Ввод объекта | ES3: Начало СМР - Ввод | ET3: РНС - Ввод | EU3: Разрешение | EV3: Начало СМР | EW3: Ввод объекта | EX3: Разрешение | EY3: Начало СМР | EZ3: Ввод объекта | FA3: Разрешение | FB3: Начало СМР | FC3: Ввод объекта | FD3: Разрешение | FE3: Начало СМР | FF3: Ввод объекта | FG3: Разрешение | FH3: Начало СМР | FI3: Ввод объекта | FJ3: Разрешение | FK3: Начало СМР | FL3: Ввод объекта | FM3: Начало СМР - Ввод | FN3: РНС - Ввод | FO3: 29 - 24 | FP3: РНС - Ввод | FR3: 26 - 21 | FS3: 28 - 23 | FT3: АГК-ЭП | FU3: ЭП-Эксперт
A4: 1 | B4: 1 | C4: 2 | D4: 3 | E4: 4 | F4: 5 | G4: 6 | H4: 7 | I4: 8 | J4: 9 | K4: 10 | L4: 11 | M4: 12 | N4: 13 | O4: 14 | P4: 15 | Q4: 16 | R4: 17 | S4: 18 | T4: 19 | U4: 20 | V4: 21 | W4: 22 | X4: 23 | Y4: 24 | Z4: 25 | AA4: 26 | AB4: 27 | AC4: 28 | AD4: 29 | AE4: 30 | AF4: 31 | AG4: 32 | AH4: 33 | AI4: 34 | AJ4: 35 | AK4: 36 | AL4: 37 | AM4: 38 | AN4: 39 | AO4: 40 | AP4: 41 | AQ4: 42 | AR4: 43 | AS4: 44 | AT4: 45 | AU4: 46 | AV4: 47 | AW4: 48 | AX4: 49 | AY4: 50 | AZ4: 51 | BA4: 52 | BB4: 53 | BC4: 54 | BD4: 55 | BE4: 56 | BF4: 57 | BG4: 58 | BH4: 59 | BI4: 60 | BJ4: 61 | BK4: 62 | BL4: 63 | BM4: 64 | BN4: 65 | BO4: 66 | BP4: 67 | BQ4: 68 | BR4: 69 | BS4: 70 | BT4: 71 | BU4: 72 | BV4: 73 | BW4: 74 | BX4: 75 | BY4: 76 | BZ4: 77 | CA4: 78 | CB4: 79 | CC4: 80 | CD4: 81 | CE4: 82 | CF4: 83 | CG4: 84 | CH4: 85 | CI4: 86 | CJ4: 87 | CK4: 88 | CL4: 89 | CM4: 90 | CN4: 91 | CO4: 92 | CP4: 93 | CQ4: 94 | CR4: 95 | CS4: 96 | CT4: 97 | CU4: 98 | CV4: 99 | CW4: 100 | CX4: 101 | CY4: 102 | CZ4: 103 | DA4: 104 | DB4: 105 | DC4: 106 | DD4: 107 | DE4: 108 | DF4: 109 | DG4: 110 | DH4: 111 | DI4: 112 | DJ4: 113 | DK4: 114 | DL4: 115 | DM4: 116 | DN4: 117 | DO4: 118 | DP4: 119 | DQ4: 120 | DR4: 121 | DS4: 122 | DT4: 123 | DU4: 124 | DV4: 125 | DW4: 126 | DX4: 127 | DY4: 128 | DZ4: 129 | EA4: 130 | EB4: 131 | EC4: 132 | ED4: 133 | EE4: 134 | EF4: 135 | EG4: 136 | EH4: 137 | EI4: 138 | EJ4: 139 | EK4: 140 | EL4: 141 | EM4: 142 | EN4: 143 | EO4: 144 | EP4: 145 | EQ4: 146 | ER4: 147 | ES4: 148 | ET4: 149 | EU4: 150 | EV4: 151 | EW4: 152 | EX4: 153 | EY4: 154 | EZ4: 155 | FA4: 156 | FB4: 157 | FC4: 158 | FD4: 159 | FE4: 160 | FF4: 161 | FG4: 162 | FH4: 163 | FI4: 164 | FJ4: 165 | FK4: 166 | FL4: 167 | FM4: 168 | FN4: 169 | FO4: 170 | FP4: 171 | FQ4: 172 | FR4: 173 | FS4: 174 | FT4: 175 | FU4: 176 | FV4: 177 | FW4: 178 | FX4: 179 | FY4: 180
A5: 1 | B5: ='Производственная программа'!#REF! ->  | C5: ='Производственная программа'!#REF! ->  | D5: ='Производственная программа'!#REF! ->  | E5: ='Производственная программа'!#REF! ->  | F5: ='Производственная программа'!#REF! ->  | G5: ='Производственная программа'!#REF! ->  | H5: ='Производственная программа'!#REF! ->  | I5: ='Производственная программа'!#REF! ->  | J5: ='Производственная программа'!#REF! ->  | K5: ='Производственная программа'!#REF! ->  | L5: ='Производственная программа'!#REF! ->  | M5: ='Производственная программа'!#REF! ->  | N5: ='Производственная программа'!#REF! ->  | O5: ='Производственная программа'!#REF! ->  | P5: ='Производственная программа'!#REF! ->  | Q5: ='Производственная программа'!#REF! ->  | R5: ='Производственная программа'!#REF! ->  | S5: ='Производственная программа'!#REF! ->  | T5: ='Производственная программа'!#REF! ->  | U5: ='Производственная программа'!#REF! ->  | V5: ='Производственная программа'!#REF! ->  | W5: ='Производственная программа'!#REF! ->  | X5: ='Производственная программа'!#REF! ->  | Y5: ='Производственная программа'!#REF! ->  | Z5: ='Производственная программа'!#REF! ->  | AA5: ='Производственная программа'!#REF! ->  | AB5: ='Производственная программа'!#REF! ->  | AC5: ='Производственная программа'!#REF! ->  | AD5: ='Производственная программа'!#REF! ->  | AE5: ='Производственная программа'!#REF! ->  | AF5: ='Производственная программа'!#REF! ->  | AG5: ='Производственная программа'!#REF! ->  | AH5: ='Производственная программа'!#REF! ->  | AI5: ='Производственная программа'!#REF! ->  | AJ5: ='Производственная программа'!#REF! ->  | AK5: ='Производственная программа'!#REF! ->  | AL5: ='Производственная программа'!#REF! ->  | AM5: ='Производственная программа'!#REF! ->  | AN5: ='Производственная программа'!#REF! ->  | AO5: ='Производственная программа'!#REF! ->  | AP5: ='Производственная программа'!#REF! ->  | AQ5: ='Производственная программа'!#REF! ->  | AR5: ='Производственная программа'!#REF! ->  | AS5: ='Производственная программа'!#REF! ->  | AT5: ='Производственная программа'!#REF! ->  | AU5: ='Производственная программа'!#REF! ->  | AV5: ='Производственная программа'!#REF! ->  | AW5: ='Производственная программа'!#REF! ->  | AX5: ='Производственная программа'!#REF! ->  | AY5: ='Производственная программа'!#REF! ->  | AZ5: ='Производственная программа'!#REF! ->  | BA5: ='Производственная программа'!#REF! ->  | BB5: ='Производственная программа'!#REF! ->  | BC5: ='Производственная программа'!#REF! ->  | BD5: ='Производственная программа'!#REF! ->  | BE5: ='Производственная программа'!#REF! ->  | BF5: ='Производственная программа'!#REF! ->  | BG5: ='Производственная программа'!#REF! ->  | BH5: ='Производственная программа'!#REF! ->  | BI5: ='Производственная программа'!#REF! ->  | BJ5: ='Производственная программа'!#REF! ->  | BK5: ='Производственная программа'!#REF! ->  | BL5: ='Производственная программа'!#REF! ->  | BM5: ='Производственная программа'!#REF! ->  | BN5: ='Производственная программа'!#REF! ->  | BO5: ='Производственная программа'!#REF! ->  | BP5: ='Производственная программа'!#REF! ->  | BQ5: ='Производственная программа'!#REF! ->  | BR5: ='Производственная программа'!#REF! ->  | BS5: ='Производственная программа'!#REF! ->  | BT5: ='Производственная программа'!#REF! ->  | BU5: ='Производственная программа'!#REF! ->  | BV5: ='Производственная программа'!#REF! ->  | BW5: ='Производственная программа'!#REF! ->  | BX5: ='Производственная программа'!#REF! ->  | BY5: ='Производственная программа'!#REF! ->  | BZ5: ='Производственная программа'!#REF! ->  | CA5: ='Производственная программа'!#REF! ->  | CB5: ='Производственная программа'!#REF! ->  | CC5: ='Производственная программа'!#REF! ->  | CD5: ='Производственная программа'!#REF! ->  | CE5: ='Производственная программа'!#REF! ->  | CF5: ='Производственная программа'!#REF! ->  | CG5: ='Производственная программа'!#REF! ->  | CH5: ='Производственная программа'!#REF! ->  | CI5: ='Производственная программа'!#REF! ->  | CJ5: ='Производственная программа'!#REF! ->  | CK5: ='Производственная программа'!#REF! ->  | CL5: ='Производственная программа'!#REF! ->  | CM5: ='Производственная программа'!#REF! ->  | CN5: ='Производственная программа'!#REF! ->  | CO5: ='Производственная программа'!#REF! ->  | CP5: ='Производственная программа'!#REF! ->  | CQ5: ='Производственная программа'!#REF! ->  | CR5: ='Производственная программа'!#REF! ->  | CS5: ='Производственная программа'!#REF! ->  | CT5: ='Производственная программа'!#REF! ->  | CU5: ='Производственная программа'!#REF! ->  | CV5: ='Производственная программа'!#REF! ->  | CW5: ='Производственная программа'!#REF! ->  | CX5: ='Производственная программа'!#REF! ->  | CY5: ='Производственная программа'!#REF! ->  | CZ5: ='Производственная программа'!#REF! ->  | DA5: ='Производственная программа'!#REF! ->  | DB5: ='Производственная программа'!#REF! ->  | DC5: ='Производственная программа'!#REF! ->  | DD5: ='Производственная программа'!#REF! ->  | DE5: ='Производственная программа'!#REF! ->  | DF5: ='Производственная программа'!#REF! ->  | DG5: ='Производственная программа'!#REF! ->  | DH5: ='Производственная программа'!#REF! ->  | DI5: ='Производственная программа'!#REF! ->  | DJ5: ='Производственная программа'!#REF! ->  | DK5: ='Производственная программа'!#REF! ->  | DL5: ='Производственная программа'!#REF! ->  | DM5: ='Производственная программа'!#REF! ->  | DN5: ='Производственная программа'!#REF! ->  | DO5: ='Производственная программа'!#REF! ->  | DP5: ='Производственная программа'!#REF! ->  | DQ5: ='Производственная программа'!#REF! ->  | DR5: ='Производственная программа'!#REF! ->  | DS5: ='Производственная программа'!#REF! ->  | DT5: ='Производственная программа'!#REF! ->  | DU5: ='Производственная программа'!#REF! ->  | DV5: ='Производственная программа'!#REF! ->  | DW5: ='Производственная программа'!#REF! ->  | DX5: ='Производственная программа'!#REF! ->  | DY5: ='Производственная программа'!#REF! ->  | DZ5: ='Производственная программа'!#REF! ->  | EA5: ='Производственная программа'!#REF! ->  | EB5: ='Производственная программа'!#REF! ->  | EC5: ='Производственная программа'!#REF! ->  | ED5: ='Производственная программа'!#REF! ->  | EE5: ='Производственная программа'!#REF! ->  | EF5: ='Производственная программа'!#REF! ->  | EG5: ='Производственная программа'!#REF! ->  | EH5: ='Производственная программа'!#REF! ->  | EI5: ='Производственная программа'!#REF! ->  | EJ5: ='Производственная программа'!#REF! ->  | EK5: ='Производственная программа'!#REF! ->  | EL5: ='Производственная программа'!#REF! ->  | EM5: ='Производственная программа'!#REF! ->  | EN5: ='Производственная программа'!#REF! ->  | EO5: ='Производственная программа'!#REF! ->  | EP5: ='Производственная программа'!#REF! ->  | EQ5: ='Производственная программа'!#REF! ->  | ER5: ='Производственная программа'!#REF! ->  | ES5: ='Производственная программа'!#REF! ->  | ET5: ='Производственная программа'!#REF! ->  | EU5: ='Производственная программа'!#REF! ->  | EV5: ='Производственная программа'!#REF! ->  | EW5: ='Производственная программа'!#REF! ->  | EX5: ='Производственная программа'!#REF! ->  | EY5: ='Производственная программа'!#REF! ->  | EZ5: ='Производственная программа'!#REF! ->  | FA5: ='Производственная программа'!#REF! ->  | FB5: ='Производственная программа'!#REF! ->  | FC5: ='Производственная программа'!#REF! ->  | FD5: ='Производственная программа'!#REF! ->  | FE5: ='Производственная программа'!#REF! ->  | FF5: ='Производственная программа'!#REF! ->  | FG5: ='Производственная программа'!#REF! ->  | FH5: ='Производственная программа'!#REF! ->  | FI5: ='Производственная программа'!#REF! ->  | FJ5: ='Производственная программа'!#REF! ->  | FK5: ='Производственная программа'!#REF! ->  | FL5: ='Производственная программа'!#REF! ->  | FM5: ='Производственная программа'!#REF! ->  | FN5: ='Производственная программа'!#REF! ->  | FO5: ='Производственная программа'!#REF! ->  | FP5: ='Производственная программа'!#REF! ->  | FQ5: ='Производственная программа'!#REF! ->  | FR5: ='Производственная программа'!#REF! ->  | FS5: ='Производственная программа'!#REF! ->  | FT5: ='Производственная программа'!#REF! ->  | FU5: ='Производственная программа'!#REF! ->  | FV5: ='Производственная программа'!#REF! ->  | FW5: ='Производственная программа'!#REF! ->  | FX5: ='Производственная программа'!#REF! ->  | FY5: ЖК | FZ5: 1
A6: 2 | B6: ='Производственная программа'!#REF! ->  | C6: ='Производственная программа'!#REF! ->  | D6: ='Производственная программа'!#REF! ->  | E6: ='Производственная программа'!#REF! ->  | F6: ='Производственная программа'!#REF! ->  | G6: ='Производственная программа'!#REF! ->  | H6: ='Производственная программа'!#REF! ->  | I6: ='Производственная программа'!#REF! ->  | J6: ='Производственная программа'!#REF! ->  | K6: ='Производственная программа'!#REF! ->  | L6: ='Производственная программа'!#REF! ->  | M6: ='Производственная программа'!#REF! ->  | N6: ='Производственная программа'!#REF! ->  | O6: ='Производственная программа'!#REF! ->  | P6: ='Производственная программа'!#REF! ->  | Q6: ='Производственная программа'!#REF! ->  | R6: ='Производственная программа'!#REF! ->  | S6: ='Производственная программа'!#REF! ->  | T6: ='Производственная программа'!#REF! ->  | U6: ='Производственная программа'!#REF! ->  | V6: ='Производственная программа'!#REF! ->  | W6: ='Производственная программа'!#REF! ->  | X6: ='Производственная программа'!#REF! ->  | Y6: ='Производственная программа'!#REF! ->  | Z6: ='Производственная программа'!#REF! ->  | AA6: ='Производственная программа'!#REF! ->  | AB6: ='Производственная программа'!#REF! ->  | AC6: ='Производственная программа'!#REF! ->  | AD6: ='Производственная программа'!#REF! ->  | AE6: ='Производственная программа'!#REF! ->  | AF6: ='Производственная программа'!#REF! ->  | AG6: ='Производственная программа'!#REF! ->  | AH6: ='Производственная программа'!#REF! ->  | AI6: ='Производственная программа'!#REF! ->  | AJ6: ='Производственная программа'!#REF! ->  | AK6: ='Производственная программа'!#REF! ->  | AL6: ='Производственная программа'!#REF! ->  | AM6: ='Производственная программа'!#REF! ->  | AN6: ='Производственная программа'!#REF! ->  | AO6: ='Производственная программа'!#REF! ->  | AP6: ='Производственная программа'!#REF! ->  | AQ6: ='Производственная программа'!#REF! ->  | AR6: ='Производственная программа'!#REF! ->  | AS6: ='Производственная программа'!#REF! ->  | AT6: ='Производственная программа'!#REF! ->  | AU6: ='Производственная программа'!#REF! ->  | AV6: ='Производственная программа'!#REF! ->  | AW6: ='Производственная программа'!#REF! ->  | AX6: ='Производственная программа'!#REF! ->  | AY6: ='Производственная программа'!#REF! ->  | AZ6: ='Производственная программа'!#REF! ->  | BA6: ='Производственная программа'!#REF! ->  | BB6: ='Производственная программа'!#REF! ->  | BC6: ='Производственная программа'!#REF! ->  | BD6: ='Производственная программа'!#REF! ->  | BE6: ='Производственная программа'!#REF! ->  | BF6: ='Производственная программа'!#REF! ->  | BG6: ='Производственная программа'!#REF! ->  | BH6: ='Производственная программа'!#REF! ->  | BI6: ='Производственная программа'!#REF! ->  | BJ6: ='Производственная программа'!#REF! ->  | BK6: ='Производственная программа'!#REF! ->  | BL6: ='Производственная программа'!#REF! ->  | BM6: ='Производственная программа'!#REF! ->  | BN6: ='Производственная программа'!#REF! ->  | BO6: ='Производственная программа'!#REF! ->  | BP6: ='Производственная программа'!#REF! ->  | BQ6: ='Производственная программа'!#REF! ->  | BR6: ='Производственная программа'!#REF! ->  | BS6: ='Производственная программа'!#REF! ->  | BT6: ='Производственная программа'!#REF! ->  | BU6: ='Производственная программа'!#REF! ->  | BV6: ='Производственная программа'!#REF! ->  | BW6: ='Производственная программа'!#REF! ->  | BX6: ='Производственная программа'!#REF! ->  | BY6: ='Производственная программа'!#REF! ->  | BZ6: ='Производственная программа'!#REF! ->  | CA6: ='Производственная программа'!#REF! ->  | CB6: ='Производственная программа'!#REF! ->  | CC6: ='Производственная программа'!#REF! ->  | CD6: ='Производственная программа'!#REF! ->  | CE6: ='Производственная программа'!#REF! ->  | CF6: ='Производственная программа'!#REF! ->  | CG6: ='Производственная программа'!#REF! ->  | CH6: ='Производственная программа'!#REF! ->  | CI6: ='Производственная программа'!#REF! ->  | CJ6: ='Производственная программа'!#REF! ->  | CK6: ='Производственная программа'!#REF! ->  | CL6: ='Производственная программа'!#REF! ->  | CM6: ='Производственная программа'!#REF! ->  | CN6: ='Производственная программа'!#REF! ->  | CO6: ='Производственная программа'!#REF! ->  | CP6: ='Производственная программа'!#REF! ->  | CQ6: ='Производственная программа'!#REF! ->  | CR6: ='Производственная программа'!#REF! ->  | CS6: ='Производственная программа'!#REF! ->  | CT6: ='Производственная программа'!#REF! ->  | CU6: ='Производственная программа'!#REF! ->  | CV6: ='Производственная программа'!#REF! ->  | CW6: ='Производственная программа'!#REF! ->  | CX6: ='Производственная программа'!#REF! ->  | CY6: ='Производственная программа'!#REF! ->  | CZ6: ='Производственная программа'!#REF! ->  | DA6: ='Производственная программа'!#REF! ->  | DB6: ='Производственная программа'!#REF! ->  | DC6: ='Производственная программа'!#REF! ->  | DD6: ='Производственная программа'!#REF! ->  | DE6: ='Производственная программа'!#REF! ->  | DF6: ='Производственная программа'!#REF! ->  | DG6: ='Производственная программа'!#REF! ->  | DH6: ='Производственная программа'!#REF! ->  | DI6: ='Производственная программа'!#REF! ->  | DJ6: ='Производственная программа'!#REF! ->  | DK6: ='Производственная программа'!#REF! ->  | DL6: ='Производственная программа'!#REF! ->  | DM6: ='Производственная программа'!#REF! ->  | DN6: ='Производственная программа'!#REF! ->  | DO6: ='Производственная программа'!#REF! ->  | DP6: ='Производственная программа'!#REF! ->  | DQ6: ='Производственная программа'!#REF! ->  | DR6: ='Производственная программа'!#REF! ->  | DS6: ='Производственная программа'!#REF! ->  | DT6: ='Производственная программа'!#REF! ->  | DU6: ='Производственная программа'!#REF! ->  | DV6: ='Производственная программа'!#REF! ->  | DW6: ='Производственная программа'!#REF! ->  | DX6: ='Производственная программа'!#REF! ->  | DY6: ='Производственная программа'!#REF! ->  | DZ6: ='Производственная программа'!#REF! ->  | EA6: ='Производственная программа'!#REF! ->  | EB6: ='Производственная программа'!#REF! ->  | EC6: ='Производственная программа'!#REF! ->  | ED6: ='Производственная программа'!#REF! ->  | EE6: ='Производственная программа'!#REF! ->  | EF6: ='Производственная программа'!#REF! ->  | EG6: ='Производственная программа'!#REF! ->  | EH6: ='Производственная программа'!#REF! ->  | EI6: ='Производственная программа'!#REF! ->  | EJ6: ='Производственная программа'!#REF! ->  | EK6: ='Производственная программа'!#REF! ->  | EL6: ='Производственная программа'!#REF! ->  | EM6: ='Производственная программа'!#REF! ->  | EN6: ='Производственная программа'!#REF! ->  | EO6: ='Производственная программа'!#REF! ->  | EP6: ='Производственная программа'!#REF! ->  | EQ6: ='Производственная программа'!#REF! ->  | ER6: ='Производственная программа'!#REF! ->  | ES6: ='Производственная программа'!#REF! ->  | ET6: ='Производственная программа'!#REF! ->  | EU6: ='Производственная программа'!#REF! ->  | EV6: ='Производственная программа'!#REF! ->  | EW6: ='Производственная программа'!#REF! ->  | EX6: ='Производственная программа'!#REF! ->  | EY6: ='Производственная программа'!#REF! ->  | EZ6: ='Производственная программа'!#REF! ->  | FA6: ='Производственная программа'!#REF! ->  | FB6: ='Производственная программа'!#REF! ->  | FC6: ='Производственная программа'!#REF! ->  | FD6: ='Производственная программа'!#REF! ->  | FE6: ='Производственная программа'!#REF! ->  | FF6: ='Производственная программа'!#REF! ->  | FG6: ='Производственная программа'!#REF! ->  | FH6: ='Производственная программа'!#REF! ->  | FI6: ='Производственная программа'!#REF! ->  | FJ6: ='Производственная программа'!#REF! ->  | FK6: ='Производственная программа'!#REF! ->  | FL6: ='Производственная программа'!#REF! ->  | FM6: ='Производственная программа'!#REF! ->  | FN6: ='Производственная программа'!#REF! ->  | FO6: ='Производственная программа'!#REF! ->  | FP6: ='Производственная программа'!#REF! ->  | FQ6: ='Производственная программа'!#REF! ->  | FR6: ='Производственная программа'!#REF! ->  | FS6: ='Производственная программа'!#REF! ->  | FT6: ='Производственная программа'!#REF! ->  | FU6: ='Производственная программа'!#REF! ->  | FV6: ='Производственная программа'!#REF! ->  | FW6: ='Производственная программа'!#REF! ->  | FX6: ='Производственная программа'!#REF! ->  | FY6: ПК | FZ6: 2
A7: 7 | B7: ='Производственная программа'!#REF! ->  | C7: ='Производственная программа'!#REF! ->  | D7: ='Производственная программа'!#REF! ->  | E7: ='Производственная программа'!#REF! ->  | F7: ='Производственная программа'!#REF! ->  | G7: ='Производственная программа'!#REF! ->  | H7: ='Производственная программа'!#REF! ->  | I7: ='Производственная программа'!#REF! ->  | J7: ='Производственная программа'!#REF! ->  | K7: ='Производственная программа'!#REF! ->  | L7: ='Производственная программа'!#REF! ->  | M7: ='Производственная программа'!#REF! ->  | N7: ='Производственная программа'!#REF! ->  | O7: ='Производственная программа'!#REF! ->  | P7: ='Производственная программа'!#REF! ->  | Q7: ='Производственная программа'!#REF! ->  | R7: ='Производственная программа'!#REF! ->  | S7: ='Производственная программа'!#REF! ->  | T7: ='Производственная программа'!#REF! ->  | U7: ='Производственная программа'!#REF! ->  | V7: ='Производственная программа'!#REF! ->  | W7: ='Производственная программа'!#REF! ->  | X7: ='Производственная программа'!#REF! ->  | Y7: ='Производственная программа'!#REF! ->  | Z7: ='Производственная программа'!#REF! ->  | AA7: ='Производственная программа'!#REF! ->  | AB7: ='Производственная программа'!#REF! ->  | AC7: ='Производственная программа'!#REF! ->  | AD7: ='Производственная программа'!#REF! ->  | AE7: ='Производственная программа'!#REF! ->  | AF7: ='Производственная программа'!#REF! ->  | AG7: ='Производственная программа'!#REF! ->  | AH7: ='Производственная программа'!#REF! ->  | AI7: ='Производственная программа'!#REF! ->  | AJ7: ='Производственная программа'!#REF! ->  | AK7: ='Производственная программа'!#REF! ->  | AL7: ='Производственная программа'!#REF! ->  | AM7: ='Производственная программа'!#REF! ->  | AN7: ='Производственная программа'!#REF! ->  | AO7: ='Производственная программа'!#REF! ->  | AP7: ='Производственная программа'!#REF! ->  | AQ7: ='Производственная программа'!#REF! ->  | AR7: ='Производственная программа'!#REF! ->  | AS7: ='Производственная программа'!#REF! ->  | AT7: ='Производственная программа'!#REF! ->  | AU7: ='Производственная программа'!#REF! ->  | AV7: ='Производственная программа'!#REF! ->  | AW7: ='Производственная программа'!#REF! ->  | AX7: ='Производственная программа'!#REF! ->  | AY7: ='Производственная программа'!#REF! ->  | AZ7: ='Производственная программа'!#REF! ->  | BA7: ='Производственная программа'!#REF! ->  | BB7: ='Производственная программа'!#REF! ->  | BC7: ='Производственная программа'!#REF! ->  | BD7: ='Производственная программа'!#REF! ->  | BE7: ='Производственная программа'!#REF! ->  | BF7: ='Производственная программа'!#REF! ->  | BG7: ='Производственная программа'!#REF! ->  | BH7: ='Производственная программа'!#REF! ->  | BI7: ='Производственная программа'!#REF! ->  | BJ7: ='Производственная программа'!#REF! ->  | BK7: ='Производственная программа'!#REF! ->  | BL7: ='Производственная программа'!#REF! ->  | BM7: ='Производственная программа'!#REF! ->  | BN7: ='Производственная программа'!#REF! ->  | BO7: ='Производственная программа'!#REF! ->  | BP7: ='Производственная программа'!#REF! ->  | BQ7: ='Производственная программа'!#REF! ->  | BR7: ='Производственная программа'!#REF! ->  | BS7: ='Производственная программа'!#REF! ->  | BT7: ='Производственная программа'!#REF! ->  | BU7: ='Производственная программа'!#REF! ->  | BV7: ='Производственная программа'!#REF! ->  | BW7: ='Производственная программа'!#REF! ->  | BX7: ='Производственная программа'!#REF! ->  | BY7: ='Производственная программа'!#REF! ->  | BZ7: ='Производственная программа'!#REF! ->  | CA7: ='Производственная программа'!#REF! ->  | CB7: ='Производственная программа'!#REF! ->  | CC7: ='Производственная программа'!#REF! ->  | CD7: ='Производственная программа'!#REF! ->  | CE7: ='Производственная программа'!#REF! ->  | CF7: ='Производственная программа'!#REF! ->  | CG7: ='Производственная программа'!#REF! ->  | CH7: ='Производственная программа'!#REF! ->  | CI7: ='Производственная программа'!#REF! ->  | CJ7: ='Производственная программа'!#REF! ->  | CK7: ='Производственная программа'!#REF! ->  | CL7: ='Производственная программа'!#REF! ->  | CM7: ='Производственная программа'!#REF! ->  | CN7: ='Производственная программа'!#REF! ->  | CO7: ='Производственная программа'!#REF! ->  | CP7: ='Производственная программа'!#REF! ->  | CQ7: ='Производственная программа'!#REF! ->  | CR7: ='Производственная программа'!#REF! ->  | CS7: ='Производственная программа'!#REF! ->  | CT7: ='Производственная программа'!#REF! ->  | CU7: ='Производственная программа'!#REF! ->  | CV7: ='Производственная программа'!#REF! ->  | CW7: ='Производственная программа'!#REF! ->  | CX7: ='Производственная программа'!#REF! ->  | CY7: ='Производственная программа'!#REF! ->  | CZ7: ='Производственная программа'!#REF! ->  | DA7: ='Производственная программа'!#REF! ->  | DB7: ='Производственная программа'!#REF! ->  | DC7: ='Производственная программа'!#REF! ->  | DD7: ='Производственная программа'!#REF! ->  | DE7: ='Производственная программа'!#REF! ->  | DF7: ='Производственная программа'!#REF! ->  | DG7: ='Производственная программа'!#REF! ->  | DH7: ='Производственная программа'!#REF! ->  | DI7: ='Производственная программа'!#REF! ->  | DJ7: ='Производственная программа'!#REF! ->  | DK7: ='Производственная программа'!#REF! ->  | DL7: ='Производственная программа'!#REF! ->  | DM7: ='Производственная программа'!#REF! ->  | DN7: ='Производственная программа'!#REF! ->  | DO7: ='Производственная программа'!#REF! ->  | DP7: ='Производственная программа'!#REF! ->  | DQ7: ='Производственная программа'!#REF! ->  | DR7: ='Производственная программа'!#REF! ->  | DS7: ='Производственная программа'!#REF! ->  | DT7: ='Производственная программа'!#REF! ->  | DU7: ='Производственная программа'!#REF! ->  | DV7: ='Производственная программа'!#REF! ->  | DW7: ='Производственная программа'!#REF! ->  | DX7: ='Производственная программа'!#REF! ->  | DY7: ='Производственная программа'!#REF! ->  | DZ7: ='Производственная программа'!#REF! ->  | EA7: ='Производственная программа'!#REF! ->  | EB7: ='Производственная программа'!#REF! ->  | EC7: ='Производственная программа'!#REF! ->  | ED7: ='Производственная программа'!#REF! ->  | EE7: ='Производственная программа'!#REF! ->  | EF7: ='Производственная программа'!#REF! ->  | EG7: ='Производственная программа'!#REF! ->  | EH7: ='Производственная программа'!#REF! ->  | EI7: ='Производственная программа'!#REF! ->  | EJ7: ='Производственная программа'!#REF! ->  | EK7: ='Производственная программа'!#REF! ->  | EL7: ='Производственная программа'!#REF! ->  | EM7: ='Производственная программа'!#REF! ->  | EN7: ='Производственная программа'!#REF! ->  | EO7: ='Производственная программа'!#REF! ->  | EP7: ='Производственная программа'!#REF! ->  | EQ7: ='Производственная программа'!#REF! ->  | ER7: ='Производственная программа'!#REF! ->  | ES7: ='Производственная программа'!#REF! ->  | ET7: ='Производственная программа'!#REF! ->  | EU7: ='Производственная программа'!#REF! ->  | EV7: ='Производственная программа'!#REF! ->  | EW7: ='Производственная программа'!#REF! ->  | EX7: ='Производственная программа'!#REF! ->  | EY7: ='Производственная программа'!#REF! ->  | EZ7: ='Производственная программа'!#REF! ->  | FA7: ='Производственная программа'!#REF! ->  | FB7: ='Производственная программа'!#REF! ->  | FC7: ='Производственная программа'!#REF! ->  | FD7: ='Производственная программа'!#REF! ->  | FE7: ='Производственная программа'!#REF! ->  | FF7: ='Производственная программа'!#REF! ->  | FG7: ='Производственная программа'!#REF! ->  | FH7: ='Производственная программа'!#REF! ->  | FI7: ='Производственная программа'!#REF! ->  | FJ7: ='Производственная программа'!#REF! ->  | FK7: ='Производственная программа'!#REF! ->  | FL7: ='Производственная программа'!#REF! ->  | FM7: ='Производственная программа'!#REF! ->  | FN7: ='Производственная программа'!#REF! ->  | FO7: ='Производственная программа'!#REF! ->  | FP7: ='Производственная программа'!#REF! ->  | FQ7: ='Производственная программа'!#REF! ->  | FR7: ='Производственная программа'!#REF! ->  | FS7: ='Производственная программа'!#REF! ->  | FT7: ='Производственная программа'!#REF! ->  | FU7: ='Производственная программа'!#REF! ->  | FV7: ='Производственная программа'!#REF! ->  | FW7: ='Производственная программа'!#REF! ->  | FX7: ='Производственная программа'!#REF! ->  | FY7: паркинг | FZ7: 3
A8: 8 | B8: ='Производственная программа'!#REF! ->  | C8: ='Производственная программа'!#REF! ->  | D8: ='Производственная программа'!#REF! ->  | E8: ='Производственная программа'!#REF! ->  | F8: ='Производственная программа'!#REF! ->  | G8: ='Производственная программа'!#REF! ->  | H8: ='Производственная программа'!#REF! ->  | I8: ='Производственная программа'!#REF! ->  | J8: ='Производственная программа'!#REF! ->  | K8: ='Производственная программа'!#REF! ->  | L8: ='Производственная программа'!#REF! ->  | M8: ='Производственная программа'!#REF! ->  | N8: ='Производственная программа'!#REF! ->  | O8: ='Производственная программа'!#REF! ->  | P8: ='Производственная программа'!#REF! ->  | Q8: ='Производственная программа'!#REF! ->  | R8: ='Производственная программа'!#REF! ->  | S8: ='Производственная программа'!#REF! ->  | T8: ='Производственная программа'!#REF! ->  | U8: ='Производственная программа'!#REF! ->  | V8: ='Производственная программа'!#REF! ->  | W8: ='Производственная программа'!#REF! ->  | X8: ='Производственная программа'!#REF! ->  | Y8: ='Производственная программа'!#REF! ->  | Z8: ='Производственная программа'!#REF! ->  | AA8: ='Производственная программа'!#REF! ->  | AB8: ='Производственная программа'!#REF! ->  | AC8: ='Производственная программа'!#REF! ->  | AD8: ='Производственная программа'!#REF! ->  | AE8: ='Производственная программа'!#REF! ->  | AF8: ='Производственная программа'!#REF! ->  | AG8: ='Производственная программа'!#REF! ->  | AH8: ='Производственная программа'!#REF! ->  | AI8: ='Производственная программа'!#REF! ->  | AJ8: ='Производственная программа'!#REF! ->  | AK8: ='Производственная программа'!#REF! ->  | AL8: ='Производственная программа'!#REF! ->  | AM8: ='Производственная программа'!#REF! ->  | AN8: ='Производственная программа'!#REF! ->  | AO8: ='Производственная программа'!#REF! ->  | AP8: ='Производственная программа'!#REF! ->  | AQ8: ='Производственная программа'!#REF! ->  | AR8: ='Производственная программа'!#REF! ->  | AS8: ='Производственная программа'!#REF! ->  | AT8: ='Производственная программа'!#REF! ->  | AU8: ='Производственная программа'!#REF! ->  | AV8: ='Производственная программа'!#REF! ->  | AW8: ='Производственная программа'!#REF! ->  | AX8: ='Производственная программа'!#REF! ->  | AY8: ='Производственная программа'!#REF! ->  | AZ8: ='Производственная программа'!#REF! ->  | BA8: ='Производственная программа'!#REF! ->  | BB8: ='Производственная программа'!#REF! ->  | BC8: ='Производственная программа'!#REF! ->  | BD8: ='Производственная программа'!#REF! ->  | BE8: ='Производственная программа'!#REF! ->  | BF8: ='Производственная программа'!#REF! ->  | BG8: ='Производственная программа'!#REF! ->  | BH8: ='Производственная программа'!#REF! ->  | BI8: ='Производственная программа'!#REF! ->  | BJ8: ='Производственная программа'!#REF! ->  | BK8: ='Производственная программа'!#REF! ->  | BL8: ='Производственная программа'!#REF! ->  | BM8: ='Производственная программа'!#REF! ->  | BN8: ='Производственная программа'!#REF! ->  | BO8: ='Производственная программа'!#REF! ->  | BP8: ='Производственная программа'!#REF! ->  | BQ8: ='Производственная программа'!#REF! ->  | BR8: ='Производственная программа'!#REF! ->  | BS8: ='Производственная программа'!#REF! ->  | BT8: ='Производственная программа'!#REF! ->  | BU8: ='Производственная программа'!#REF! ->  | BV8: ='Производственная программа'!#REF! ->  | BW8: ='Производственная программа'!#REF! ->  | BX8: ='Производственная программа'!#REF! ->  | BY8: ='Производственная программа'!#REF! ->  | BZ8: ='Производственная программа'!#REF! ->  | CA8: ='Производственная программа'!#REF! ->  | CB8: ='Производственная программа'!#REF! ->  | CC8: ='Производственная программа'!#REF! ->  | CD8: ='Производственная программа'!#REF! ->  | CE8: ='Производственная программа'!#REF! ->  | CF8: ='Производственная программа'!#REF! ->  | CG8: ='Производственная программа'!#REF! ->  | CH8: ='Производственная программа'!#REF! ->  | CI8: ='Производственная программа'!#REF! ->  | CJ8: ='Производственная программа'!#REF! ->  | CK8: ='Производственная программа'!#REF! ->  | CL8: ='Производственная программа'!#REF! ->  | CM8: ='Производственная программа'!#REF! ->  | CN8: ='Производственная программа'!#REF! ->  | CO8: ='Производственная программа'!#REF! ->  | CP8: ='Производственная программа'!#REF! ->  | CQ8: ='Производственная программа'!#REF! ->  | CR8: ='Производственная программа'!#REF! ->  | CS8: ='Производственная программа'!#REF! ->  | CT8: ='Производственная программа'!#REF! ->  | CU8: ='Производственная программа'!#REF! ->  | CV8: ='Производственная программа'!#REF! ->  | CW8: ='Производственная программа'!#REF! ->  | CX8: ='Производственная программа'!#REF! ->  | CY8: ='Производственная программа'!#REF! ->  | CZ8: ='Производственная программа'!#REF! ->  | DA8: ='Производственная программа'!#REF! ->  | DB8: ='Производственная программа'!#REF! ->  | DC8: ='Производственная программа'!#REF! ->  | DD8: ='Производственная программа'!#REF! ->  | DE8: ='Производственная программа'!#REF! ->  | DF8: ='Производственная программа'!#REF! ->  | DG8: ='Производственная программа'!#REF! ->  | DH8: ='Производственная программа'!#REF! ->  | DI8: ='Производственная программа'!#REF! ->  | DJ8: ='Производственная программа'!#REF! ->  | DK8: ='Производственная программа'!#REF! ->  | DL8: ='Производственная программа'!#REF! ->  | DM8: ='Производственная программа'!#REF! ->  | DN8: ='Производственная программа'!#REF! ->  | DO8: ='Производственная программа'!#REF! ->  | DP8: ='Производственная программа'!#REF! ->  | DQ8: ='Производственная программа'!#REF! ->  | DR8: ='Производственная программа'!#REF! ->  | DS8: ='Производственная программа'!#REF! ->  | DT8: ='Производственная программа'!#REF! ->  | DU8: ='Производственная программа'!#REF! ->  | DV8: ='Производственная программа'!#REF! ->  | DW8: ='Производственная программа'!#REF! ->  | DX8: ='Производственная программа'!#REF! ->  | DY8: ='Производственная программа'!#REF! ->  | DZ8: ='Производственная программа'!#REF! ->  | EA8: ='Производственная программа'!#REF! ->  | EB8: ='Производственная программа'!#REF! ->  | EC8: ='Производственная программа'!#REF! ->  | ED8: ='Производственная программа'!#REF! ->  | EE8: ='Производственная программа'!#REF! ->  | EF8: ='Производственная программа'!#REF! ->  | EG8: ='Производственная программа'!#REF! ->  | EH8: ='Производственная программа'!#REF! ->  | EI8: ='Производственная программа'!#REF! ->  | EJ8: ='Производственная программа'!#REF! ->  | EK8: ='Производственная программа'!#REF! ->  | EL8: ='Производственная программа'!#REF! ->  | EM8: ='Производственная программа'!#REF! ->  | EN8: ='Производственная программа'!#REF! ->  | EO8: ='Производственная программа'!#REF! ->  | EP8: ='Производственная программа'!#REF! ->  | EQ8: ='Производственная программа'!#REF! ->  | ER8: ='Производственная программа'!#REF! ->  | ES8: ='Производственная программа'!#REF! ->  | ET8: ='Производственная программа'!#REF! ->  | EU8: ='Производственная программа'!#REF! ->  | EV8: ='Производственная программа'!#REF! ->  | EW8: ='Производственная программа'!#REF! ->  | EX8: ='Производственная программа'!#REF! ->  | EY8: ='Производственная программа'!#REF! ->  | EZ8: ='Производственная программа'!#REF! ->  | FA8: ='Производственная программа'!#REF! ->  | FB8: ='Производственная программа'!#REF! ->  | FC8: ='Производственная программа'!#REF! ->  | FD8: ='Производственная программа'!#REF! ->  | FE8: ='Производственная программа'!#REF! ->  | FF8: ='Производственная программа'!#REF! ->  | FG8: ='Производственная программа'!#REF! ->  | FH8: ='Производственная программа'!#REF! ->  | FI8: ='Производственная программа'!#REF! ->  | FJ8: ='Производственная программа'!#REF! ->  | FK8: ='Производственная программа'!#REF! ->  | FL8: ='Производственная программа'!#REF! ->  | FM8: ='Производственная программа'!#REF! ->  | FN8: ='Производственная программа'!#REF! ->  | FO8: ='Производственная программа'!#REF! ->  | FP8: ='Производственная программа'!#REF! ->  | FQ8: ='Производственная программа'!#REF! ->  | FR8: ='Производственная программа'!#REF! ->  | FS8: ='Производственная программа'!#REF! ->  | FT8: ='Производственная программа'!#REF! ->  | FU8: ='Производственная программа'!#REF! ->  | FV8: ='Производственная программа'!#REF! ->  | FW8: ='Производственная программа'!#REF! ->  | FX8: ='Производственная программа'!#REF! ->  | FY8: ПК | FZ8: 4
A9: 9 | B9: ='Производственная программа'!#REF! ->  | C9: ='Производственная программа'!#REF! ->  | D9: ='Производственная программа'!#REF! ->  | E9: ='Производственная программа'!#REF! ->  | F9: ='Производственная программа'!#REF! ->  | G9: ='Производственная программа'!#REF! ->  | H9: ='Производственная программа'!#REF! ->  | I9: ='Производственная программа'!#REF! ->  | J9: ='Производственная программа'!#REF! ->  | K9: ='Производственная программа'!#REF! ->  | L9: ='Производственная программа'!#REF! ->  | M9: ='Производственная программа'!#REF! ->  | N9: ='Производственная программа'!#REF! ->  | O9: ='Производственная программа'!#REF! ->  | P9: ='Производственная программа'!#REF! ->  | Q9: ='Производственная программа'!#REF! ->  | R9: ='Производственная программа'!#REF! ->  | S9: ='Производственная программа'!#REF! ->  | T9: ='Производственная программа'!#REF! ->  | U9: ='Производственная программа'!#REF! ->  | V9: ='Производственная программа'!#REF! ->  | W9: ='Производственная программа'!#REF! ->  | X9: ='Производственная программа'!#REF! ->  | Y9: ='Производственная программа'!#REF! ->  | Z9: ='Производственная программа'!#REF! ->  | AA9: ='Производственная программа'!#REF! ->  | AB9: ='Производственная программа'!#REF! ->  | AC9: ='Производственная программа'!#REF! ->  | AD9: ='Производственная программа'!#REF! ->  | AE9: ='Производственная программа'!#REF! ->  | AF9: ='Производственная программа'!#REF! ->  | AG9: ='Производственная программа'!#REF! ->  | AH9: ='Производственная программа'!#REF! ->  | AI9: ='Производственная программа'!#REF! ->  | AJ9: ='Производственная программа'!#REF! ->  | AK9: ='Производственная программа'!#REF! ->  | AL9: ='Производственная программа'!#REF! ->  | AM9: ='Производственная программа'!#REF! ->  | AN9: ='Производственная программа'!#REF! ->  | AO9: ='Производственная программа'!#REF! ->  | AP9: ='Производственная программа'!#REF! ->  | AQ9: ='Производственная программа'!#REF! ->  | AR9: ='Производственная программа'!#REF! ->  | AS9: ='Производственная программа'!#REF! ->  | AT9: ='Производственная программа'!#REF! ->  | AU9: ='Производственная программа'!#REF! ->  | AV9: ='Производственная программа'!#REF! ->  | AW9: ='Производственная программа'!#REF! ->  | AX9: ='Производственная программа'!#REF! ->  | AY9: ='Производственная программа'!#REF! ->  | AZ9: ='Производственная программа'!#REF! ->  | BA9: ='Производственная программа'!#REF! ->  | BB9: ='Производственная программа'!#REF! ->  | BC9: ='Производственная программа'!#REF! ->  | BD9: ='Производственная программа'!#REF! ->  | BE9: ='Производственная программа'!#REF! ->  | BF9: ='Производственная программа'!#REF! ->  | BG9: ='Производственная программа'!#REF! ->  | BH9: ='Производственная программа'!#REF! ->  | BI9: ='Производственная программа'!#REF! ->  | BJ9: ='Производственная программа'!#REF! ->  | BK9: ='Производственная программа'!#REF! ->  | BL9: ='Производственная программа'!#REF! ->  | BM9: ='Производственная программа'!#REF! ->  | BN9: ='Производственная программа'!#REF! ->  | BO9: ='Производственная программа'!#REF! ->  | BP9: ='Производственная программа'!#REF! ->  | BQ9: ='Производственная программа'!#REF! ->  | BR9: ='Производственная программа'!#REF! ->  | BS9: ='Производственная программа'!#REF! ->  | BT9: ='Производственная программа'!#REF! ->  | BU9: ='Производственная программа'!#REF! ->  | BV9: ='Производственная программа'!#REF! ->  | BW9: ='Производственная программа'!#REF! ->  | BX9: ='Производственная программа'!#REF! ->  | BY9: ='Производственная программа'!#REF! ->  | BZ9: ='Производственная программа'!#REF! ->  | CA9: ='Производственная программа'!#REF! ->  | CB9: ='Производственная программа'!#REF! ->  | CC9: ='Производственная программа'!#REF! ->  | CD9: ='Производственная программа'!#REF! ->  | CE9: ='Производственная программа'!#REF! ->  | CF9: ='Производственная программа'!#REF! ->  | CG9: ='Производственная программа'!#REF! ->  | CH9: ='Производственная программа'!#REF! ->  | CI9: ='Производственная программа'!#REF! ->  | CJ9: ='Производственная программа'!#REF! ->  | CK9: ='Производственная программа'!#REF! ->  | CL9: ='Производственная программа'!#REF! ->  | CM9: ='Производственная программа'!#REF! ->  | CN9: ='Производственная программа'!#REF! ->  | CO9: ='Производственная программа'!#REF! ->  | CP9: ='Производственная программа'!#REF! ->  | CQ9: ='Производственная программа'!#REF! ->  | CR9: ='Производственная программа'!#REF! ->  | CS9: ='Производственная программа'!#REF! ->  | CT9: ='Производственная программа'!#REF! ->  | CU9: ='Производственная программа'!#REF! ->  | CV9: ='Производственная программа'!#REF! ->  | CW9: ='Производственная программа'!#REF! ->  | CX9: ='Производственная программа'!#REF! ->  | CY9: ='Производственная программа'!#REF! ->  | CZ9: ='Производственная программа'!#REF! ->  | DA9: ='Производственная программа'!#REF! ->  | DB9: ='Производственная программа'!#REF! ->  | DC9: ='Производственная программа'!#REF! ->  | DD9: ='Производственная программа'!#REF! ->  | DE9: ='Производственная программа'!#REF! ->  | DF9: ='Производственная программа'!#REF! ->  | DG9: ='Производственная программа'!#REF! ->  | DH9: ='Производственная программа'!#REF! ->  | DI9: ='Производственная программа'!#REF! ->  | DJ9: ='Производственная программа'!#REF! ->  | DK9: ='Производственная программа'!#REF! ->  | DL9: ='Производственная программа'!#REF! ->  | DM9: ='Производственная программа'!#REF! ->  | DN9: ='Производственная программа'!#REF! ->  | DO9: ='Производственная программа'!#REF! ->  | DP9: ='Производственная программа'!#REF! ->  | DQ9: ='Производственная программа'!#REF! ->  | DR9: ='Производственная программа'!#REF! ->  | DS9: ='Производственная программа'!#REF! ->  | DT9: ='Производственная программа'!#REF! ->  | DU9: ='Производственная программа'!#REF! ->  | DV9: ='Производственная программа'!#REF! ->  | DW9: ='Производственная программа'!#REF! ->  | DX9: ='Производственная программа'!#REF! ->  | DY9: ='Производственная программа'!#REF! ->  | DZ9: ='Производственная программа'!#REF! ->  | EA9: ='Производственная программа'!#REF! ->  | EB9: ='Производственная программа'!#REF! ->  | EC9: ='Производственная программа'!#REF! ->  | ED9: ='Производственная программа'!#REF! ->  | EE9: ='Производственная программа'!#REF! ->  | EF9: ='Производственная программа'!#REF! ->  | EG9: ='Производственная программа'!#REF! ->  | EH9: ='Производственная программа'!#REF! ->  | EI9: ='Производственная программа'!#REF! ->  | EJ9: ='Производственная программа'!#REF! ->  | EK9: ='Производственная программа'!#REF! ->  | EL9: ='Производственная программа'!#REF! ->  | EM9: ='Производственная программа'!#REF! ->  | EN9: ='Производственная программа'!#REF! ->  | EO9: ='Производственная программа'!#REF! ->  | EP9: ='Производственная программа'!#REF! ->  | EQ9: ='Производственная программа'!#REF! ->  | ER9: ='Производственная программа'!#REF! ->  | ES9: ='Производственная программа'!#REF! ->  | ET9: ='Производственная программа'!#REF! ->  | EU9: ='Производственная программа'!#REF! ->  | EV9: ='Производственная программа'!#REF! ->  | EW9: ='Производственная программа'!#REF! ->  | EX9: ='Производственная программа'!#REF! ->  | EY9: ='Производственная программа'!#REF! ->  | EZ9: ='Производственная программа'!#REF! ->  | FA9: ='Производственная программа'!#REF! ->  | FB9: ='Производственная программа'!#REF! ->  | FC9: ='Производственная программа'!#REF! ->  | FD9: ='Производственная программа'!#REF! ->  | FE9: ='Производственная программа'!#REF! ->  | FF9: ='Производственная программа'!#REF! ->  | FG9: ='Производственная программа'!#REF! ->  | FH9: ='Производственная программа'!#REF! ->  | FI9: ='Производственная программа'!#REF! ->  | FJ9: ='Производственная программа'!#REF! ->  | FK9: ='Производственная программа'!#REF! ->  | FL9: ='Производственная программа'!#REF! ->  | FM9: ='Производственная программа'!#REF! ->  | FN9: ='Производственная программа'!#REF! ->  | FO9: ='Производственная программа'!#REF! ->  | FP9: ='Производственная программа'!#REF! ->  | FQ9: ='Производственная программа'!#REF! ->  | FR9: ='Производственная программа'!#REF! ->  | FS9: ='Производственная программа'!#REF! ->  | FT9: ='Производственная программа'!#REF! ->  | FU9: ='Производственная программа'!#REF! ->  | FV9: ='Производственная программа'!#REF! ->  | FW9: ='Производственная программа'!#REF! ->  | FX9: ='Производственная программа'!#REF! ->  | FY9: дом | FZ9: 5
A10: 10 | B10: ='Производственная программа'!#REF! ->  | C10: ='Производственная программа'!#REF! ->  | D10: ='Производственная программа'!#REF! ->  | E10: ='Производственная программа'!#REF! ->  | F10: ='Производственная программа'!#REF! ->  | G10: ='Производственная программа'!#REF! ->  | H10: ='Производственная программа'!#REF! ->  | I10: ='Производственная программа'!#REF! ->  | J10: ='Производственная программа'!#REF! ->  | K10: ='Производственная программа'!#REF! ->  | L10: ='Производственная программа'!#REF! ->  | M10: ='Производственная программа'!#REF! ->  | N10: ='Производственная программа'!#REF! ->  | O10: ='Производственная программа'!#REF! ->  | P10: ='Производственная программа'!#REF! ->  | Q10: ='Производственная программа'!#REF! ->  | R10: ='Производственная программа'!#REF! ->  | S10: ='Производственная программа'!#REF! ->  | T10: ='Производственная программа'!#REF! ->  | U10: ='Производственная программа'!#REF! ->  | V10: ='Производственная программа'!#REF! ->  | W10: ='Производственная программа'!#REF! ->  | X10: ='Производственная программа'!#REF! ->  | Y10: ='Производственная программа'!#REF! ->  | Z10: ='Производственная программа'!#REF! ->  | AA10: ='Производственная программа'!#REF! ->  | AB10: ='Производственная программа'!#REF! ->  | AC10: ='Производственная программа'!#REF! ->  | AD10: ='Производственная программа'!#REF! ->  | AE10: ='Производственная программа'!#REF! ->  | AF10: ='Производственная программа'!#REF! ->  | AG10: ='Производственная программа'!#REF! ->  | AH10: ='Производственная программа'!#REF! ->  | AI10: ='Производственная программа'!#REF! ->  | AJ10: ='Производственная программа'!#REF! ->  | AK10: ='Производственная программа'!#REF! ->  | AL10: ='Производственная программа'!#REF! ->  | AM10: ='Производственная программа'!#REF! ->  | AN10: ='Производственная программа'!#REF! ->  | AO10: ='Производственная программа'!#REF! ->  | AP10: ='Производственная программа'!#REF! ->  | AQ10: ='Производственная программа'!#REF! ->  | AR10: ='Производственная программа'!#REF! ->  | AS10: ='Производственная программа'!#REF! ->  | AT10: ='Производственная программа'!#REF! ->  | AU10: ='Производственная программа'!#REF! ->  | AV10: ='Производственная программа'!#REF! ->  | AW10: ='Производственная программа'!#REF! ->  | AX10: ='Производственная программа'!#REF! ->  | AY10: ='Производственная программа'!#REF! ->  | AZ10: ='Производственная программа'!#REF! ->  | BA10: ='Производственная программа'!#REF! ->  | BB10: ='Производственная программа'!#REF! ->  | BC10: ='Производственная программа'!#REF! ->  | BD10: ='Производственная программа'!#REF! ->  | BE10: ='Производственная программа'!#REF! ->  | BF10: ='Производственная программа'!#REF! ->  | BG10: ='Производственная программа'!#REF! ->  | BH10: ='Производственная программа'!#REF! ->  | BI10: ='Производственная программа'!#REF! ->  | BJ10: ='Производственная программа'!#REF! ->  | BK10: ='Производственная программа'!#REF! ->  | BL10: ='Производственная программа'!#REF! ->  | BM10: ='Производственная программа'!#REF! ->  | BN10: ='Производственная программа'!#REF! ->  | BO10: ='Производственная программа'!#REF! ->  | BP10: ='Производственная программа'!#REF! ->  | BQ10: ='Производственная программа'!#REF! ->  | BR10: ='Производственная программа'!#REF! ->  | BS10: ='Производственная программа'!#REF! ->  | BT10: ='Производственная программа'!#REF! ->  | BU10: ='Производственная программа'!#REF! ->  | BV10: ='Производственная программа'!#REF! ->  | BW10: ='Производственная программа'!#REF! ->  | BX10: ='Производственная программа'!#REF! ->  | BY10: ='Производственная программа'!#REF! ->  | BZ10: ='Производственная программа'!#REF! ->  | CA10: ='Производственная программа'!#REF! ->  | CB10: ='Производственная программа'!#REF! ->  | CC10: ='Производственная программа'!#REF! ->  | CD10: ='Производственная программа'!#REF! ->  | CE10: ='Производственная программа'!#REF! ->  | CF10: ='Производственная программа'!#REF! ->  | CG10: ='Производственная программа'!#REF! ->  | CH10: ='Производственная программа'!#REF! ->  | CI10: ='Производственная программа'!#REF! ->  | CJ10: ='Производственная программа'!#REF! ->  | CK10: ='Производственная программа'!#REF! ->  | CL10: ='Производственная программа'!#REF! ->  | CM10: ='Производственная программа'!#REF! ->  | CN10: ='Производственная программа'!#REF! ->  | CO10: ='Производственная программа'!#REF! ->  | CP10: ='Производственная программа'!#REF! ->  | CQ10: ='Производственная программа'!#REF! ->  | CR10: ='Производственная программа'!#REF! ->  | CS10: ='Производственная программа'!#REF! ->  | CT10: ='Производственная программа'!#REF! ->  | CU10: ='Производственная программа'!#REF! ->  | CV10: ='Производственная программа'!#REF! ->  | CW10: ='Производственная программа'!#REF! ->  | CX10: ='Производственная программа'!#REF! ->  | CY10: ='Производственная программа'!#REF! ->  | CZ10: ='Производственная программа'!#REF! ->  | DA10: ='Производственная программа'!#REF! ->  | DB10: ='Производственная программа'!#REF! ->  | DC10: ='Производственная программа'!#REF! ->  | DD10: ='Производственная программа'!#REF! ->  | DE10: ='Производственная программа'!#REF! ->  | DF10: ='Производственная программа'!#REF! ->  | DG10: ='Производственная программа'!#REF! ->  | DH10: ='Производственная программа'!#REF! ->  | DI10: ='Производственная программа'!#REF! ->  | DJ10: ='Производственная программа'!#REF! ->  | DK10: ='Производственная программа'!#REF! ->  | DL10: ='Производственная программа'!#REF! ->  | DM10: ='Производственная программа'!#REF! ->  | DN10: ='Производственная программа'!#REF! ->  | DO10: ='Производственная программа'!#REF! ->  | DP10: ='Производственная программа'!#REF! ->  | DQ10: ='Производственная программа'!#REF! ->  | DR10: ='Производственная программа'!#REF! ->  | DS10: ='Производственная программа'!#REF! ->  | DT10: ='Производственная программа'!#REF! ->  | DU10: ='Производственная программа'!#REF! ->  | DV10: ='Производственная программа'!#REF! ->  | DW10: ='Производственная программа'!#REF! ->  | DX10: ='Производственная программа'!#REF! ->  | DY10: ='Производственная программа'!#REF! ->  | DZ10: ='Производственная программа'!#REF! ->  | EA10: ='Производственная программа'!#REF! ->  | EB10: ='Производственная программа'!#REF! ->  | EC10: ='Производственная программа'!#REF! ->  | ED10: ='Производственная программа'!#REF! ->  | EE10: ='Производственная программа'!#REF! ->  | EF10: ='Производственная программа'!#REF! ->  | EG10: ='Производственная программа'!#REF! ->  | EH10: ='Производственная программа'!#REF! ->  | EI10: ='Производственная программа'!#REF! ->  | EJ10: ='Производственная программа'!#REF! ->  | EK10: ='Производственная программа'!#REF! ->  | EL10: ='Производственная программа'!#REF! ->  | EM10: ='Производственная программа'!#REF! ->  | EN10: ='Производственная программа'!#REF! ->  | EO10: ='Производственная программа'!#REF! ->  | EP10: ='Производственная программа'!#REF! ->  | EQ10: ='Производственная программа'!#REF! ->  | ER10: ='Производственная программа'!#REF! ->  | ES10: ='Производственная программа'!#REF! ->  | ET10: ='Производственная программа'!#REF! ->  | EU10: ='Производственная программа'!#REF! ->  | EV10: ='Производственная программа'!#REF! ->  | EW10: ='Производственная программа'!#REF! ->  | EX10: ='Производственная программа'!#REF! ->  | EY10: ='Производственная программа'!#REF! ->  | EZ10: ='Производственная программа'!#REF! ->  | FA10: ='Производственная программа'!#REF! ->  | FB10: ='Производственная программа'!#REF! ->  | FC10: ='Производственная программа'!#REF! ->  | FD10: ='Производственная программа'!#REF! ->  | FE10: ='Производственная программа'!#REF! ->  | FF10: ='Производственная программа'!#REF! ->  | FG10: ='Производственная программа'!#REF! ->  | FH10: ='Производственная программа'!#REF! ->  | FI10: ='Производственная программа'!#REF! ->  | FJ10: ='Производственная программа'!#REF! ->  | FK10: ='Производственная программа'!#REF! ->  | FL10: ='Производственная программа'!#REF! ->  | FM10: ='Производственная программа'!#REF! ->  | FN10: ='Производственная программа'!#REF! ->  | FO10: ='Производственная программа'!#REF! ->  | FP10: ='Производственная программа'!#REF! ->  | FQ10: ='Производственная программа'!#REF! ->  | FR10: ='Производственная программа'!#REF! ->  | FS10: ='Производственная программа'!#REF! ->  | FT10: ='Производственная программа'!#REF! ->  | FU10: ='Производственная программа'!#REF! ->  | FV10: ='Производственная программа'!#REF! ->  | FW10: ='Производственная программа'!#REF! ->  | FX10: ='Производственная программа'!#REF! -> 
A11: 11 | B11: ='Производственная программа'!#REF! ->  | C11: ='Производственная программа'!#REF! ->  | D11: ='Производственная программа'!#REF! ->  | E11: ='Производственная программа'!#REF! ->  | F11: ='Производственная программа'!#REF! ->  | G11: ='Производственная программа'!#REF! ->  | H11: ='Производственная программа'!#REF! ->  | I11: ='Производственная программа'!#REF! ->  | J11: ='Производственная программа'!#REF! ->  | K11: ='Производственная программа'!#REF! ->  | L11: ='Производственная программа'!#REF! ->  | M11: ='Производственная программа'!#REF! ->  | N11: ='Производственная программа'!#REF! ->  | O11: ='Производственная программа'!#REF! ->  | P11: ='Производственная программа'!#REF! ->  | Q11: ='Производственная программа'!#REF! ->  | R11: ='Производственная программа'!#REF! ->  | S11: ='Производственная программа'!#REF! ->  | T11: ='Производственная программа'!#REF! ->  | U11: ='Производственная программа'!#REF! ->  | V11: ='Производственная программа'!#REF! ->  | W11: ='Производственная программа'!#REF! ->  | X11: ='Производственная программа'!#REF! ->  | Y11: ='Производственная программа'!#REF! ->  | Z11: ='Производственная программа'!#REF! ->  | AA11: ='Производственная программа'!#REF! ->  | AB11: ='Производственная программа'!#REF! ->  | AC11: ='Производственная программа'!#REF! ->  | AD11: ='Производственная программа'!#REF! ->  | AE11: ='Производственная программа'!#REF! ->  | AF11: ='Производственная программа'!#REF! ->  | AG11: ='Производственная программа'!#REF! ->  | AH11: ='Производственная программа'!#REF! ->  | AI11: ='Производственная программа'!#REF! ->  | AJ11: ='Производственная программа'!#REF! ->  | AK11: ='Производственная программа'!#REF! ->  | AL11: ='Производственная программа'!#REF! ->  | AM11: ='Производственная программа'!#REF! ->  | AN11: ='Производственная программа'!#REF! ->  | AO11: ='Производственная программа'!#REF! ->  | AP11: ='Производственная программа'!#REF! ->  | AQ11: ='Производственная программа'!#REF! ->  | AR11: ='Производственная программа'!#REF! ->  | AS11: ='Производственная программа'!#REF! ->  | AT11: ='Производственная программа'!#REF! ->  | AU11: ='Производственная программа'!#REF! ->  | AV11: ='Производственная программа'!#REF! ->  | AW11: ='Производственная программа'!#REF! ->  | AX11: ='Производственная программа'!#REF! ->  | AY11: ='Производственная программа'!#REF! ->  | AZ11: ='Производственная программа'!#REF! ->  | BA11: ='Производственная программа'!#REF! ->  | BB11: ='Производственная программа'!#REF! ->  | BC11: ='Производственная программа'!#REF! ->  | BD11: ='Производственная программа'!#REF! ->  | BE11: ='Производственная программа'!#REF! ->  | BF11: ='Производственная программа'!#REF! ->  | BG11: ='Производственная программа'!#REF! ->  | BH11: ='Производственная программа'!#REF! ->  | BI11: ='Производственная программа'!#REF! ->  | BJ11: ='Производственная программа'!#REF! ->  | BK11: ='Производственная программа'!#REF! ->  | BL11: ='Производственная программа'!#REF! ->  | BM11: ='Производственная программа'!#REF! ->  | BN11: ='Производственная программа'!#REF! ->  | BO11: ='Производственная программа'!#REF! ->  | BP11: ='Производственная программа'!#REF! ->  | BQ11: ='Производственная программа'!#REF! ->  | BR11: ='Производственная программа'!#REF! ->  | BS11: ='Производственная программа'!#REF! ->  | BT11: ='Производственная программа'!#REF! ->  | BU11: ='Производственная программа'!#REF! ->  | BV11: ='Производственная программа'!#REF! ->  | BW11: ='Производственная программа'!#REF! ->  | BX11: ='Производственная программа'!#REF! ->  | BY11: ='Производственная программа'!#REF! ->  | BZ11: ='Производственная программа'!#REF! ->  | CA11: ='Производственная программа'!#REF! ->  | CB11: ='Производственная программа'!#REF! ->  | CC11: ='Производственная программа'!#REF! ->  | CD11: ='Производственная программа'!#REF! ->  | CE11: ='Производственная программа'!#REF! ->  | CF11: ='Производственная программа'!#REF! ->  | CG11: ='Производственная программа'!#REF! ->  | CH11: ='Производственная программа'!#REF! ->  | CI11: ='Производственная программа'!#REF! ->  | CJ11: ='Производственная программа'!#REF! ->  | CK11: ='Производственная программа'!#REF! ->  | CL11: ='Производственная программа'!#REF! ->  | CM11: ='Производственная программа'!#REF! ->  | CN11: ='Производственная программа'!#REF! ->  | CO11: ='Производственная программа'!#REF! ->  | CP11: ='Производственная программа'!#REF! ->  | CQ11: ='Производственная программа'!#REF! ->  | CR11: ='Производственная программа'!#REF! ->  | CS11: ='Производственная программа'!#REF! ->  | CT11: ='Производственная программа'!#REF! ->  | CU11: ='Производственная программа'!#REF! ->  | CV11: ='Производственная программа'!#REF! ->  | CW11: ='Производственная программа'!#REF! ->  | CX11: ='Производственная программа'!#REF! ->  | CY11: ='Производственная программа'!#REF! ->  | CZ11: ='Производственная программа'!#REF! ->  | DA11: ='Производственная программа'!#REF! ->  | DB11: ='Производственная программа'!#REF! ->  | DC11: ='Производственная программа'!#REF! ->  | DD11: ='Производственная программа'!#REF! ->  | DE11: ='Производственная программа'!#REF! ->  | DF11: ='Производственная программа'!#REF! ->  | DG11: ='Производственная программа'!#REF! ->  | DH11: ='Производственная программа'!#REF! ->  | DI11: ='Производственная программа'!#REF! ->  | DJ11: ='Производственная программа'!#REF! ->  | DK11: ='Производственная программа'!#REF! ->  | DL11: ='Производственная программа'!#REF! ->  | DM11: ='Производственная программа'!#REF! ->  | DN11: ='Производственная программа'!#REF! ->  | DO11: ='Производственная программа'!#REF! ->  | DP11: ='Производственная программа'!#REF! ->  | DQ11: ='Производственная программа'!#REF! ->  | DR11: ='Производственная программа'!#REF! ->  | DS11: ='Производственная программа'!#REF! ->  | DT11: ='Производственная программа'!#REF! ->  | DU11: ='Производственная программа'!#REF! ->  | DV11: ='Производственная программа'!#REF! ->  | DW11: ='Производственная программа'!#REF! ->  | DX11: ='Производственная программа'!#REF! ->  | DY11: ='Производственная программа'!#REF! ->  | DZ11: ='Производственная программа'!#REF! ->  | EA11: ='Производственная программа'!#REF! ->  | EB11: ='Производственная программа'!#REF! ->  | EC11: ='Производственная программа'!#REF! ->  | ED11: ='Производственная программа'!#REF! ->  | EE11: ='Производственная программа'!#REF! ->  | EF11: ='Производственная программа'!#REF! ->  | EG11: ='Производственная программа'!#REF! ->  | EH11: ='Производственная программа'!#REF! ->  | EI11: ='Производственная программа'!#REF! ->  | EJ11: ='Производственная программа'!#REF! ->  | EK11: ='Производственная программа'!#REF! ->  | EL11: ='Производственная программа'!#REF! ->  | EM11: ='Производственная программа'!#REF! ->  | EN11: ='Производственная программа'!#REF! ->  | EO11: ='Производственная программа'!#REF! ->  | EP11: ='Производственная программа'!#REF! ->  | EQ11: ='Производственная программа'!#REF! ->  | ER11: ='Производственная программа'!#REF! ->  | ES11: ='Производственная программа'!#REF! ->  | ET11: ='Производственная программа'!#REF! ->  | EU11: ='Производственная программа'!#REF! ->  | EV11: ='Производственная программа'!#REF! ->  | EW11: ='Производственная программа'!#REF! ->  | EX11: ='Производственная программа'!#REF! ->  | EY11: ='Производственная программа'!#REF! ->  | EZ11: ='Производственная программа'!#REF! ->  | FA11: ='Производственная программа'!#REF! ->  | FB11: ='Производственная программа'!#REF! ->  | FC11: ='Производственная программа'!#REF! ->  | FD11: ='Производственная программа'!#REF! ->  | FE11: ='Производственная программа'!#REF! ->  | FF11: ='Производственная программа'!#REF! ->  | FG11: ='Производственная программа'!#REF! ->  | FH11: ='Производственная программа'!#REF! ->  | FI11: ='Производственная программа'!#REF! ->  | FJ11: ='Производственная программа'!#REF! ->  | FK11: ='Производственная программа'!#REF! ->  | FL11: ='Производственная программа'!#REF! ->  | FM11: ='Производственная программа'!#REF! ->  | FN11: ='Производственная программа'!#REF! ->  | FO11: ='Производственная программа'!#REF! ->  | FP11: ='Производственная программа'!#REF! ->  | FQ11: ='Производственная программа'!#REF! ->  | FR11: ='Производственная программа'!#REF! ->  | FS11: ='Производственная программа'!#REF! ->  | FT11: ='Производственная программа'!#REF! ->  | FU11: ='Производственная программа'!#REF! ->  | FV11: ='Производственная программа'!#REF! ->  | FW11: ='Производственная программа'!#REF! ->  | FX11: ='Производственная программа'!#REF! -> 
A12: 12 | B12: ='Производственная программа'!B5 -> 2 | C12: ='Производственная программа'!#REF! ->  | D12: ='Производственная программа'!C5 -> ЖК "Светлая долина" | E12: ='Производственная программа'!D5 -> 0 | F12: ='Производственная программа'!E5 -> 0 | G12: ='Производственная программа'!F5 -> 0 | H12: ='Производственная программа'!G5 -> 0 | I12: ='Производственная программа'!H5 -> 0 | J12: ='Производственная программа'!I5 -> 0 | K12: ='Производственная программа'!#REF! ->  | L12: ='Производственная программа'!#REF! ->  | M12: ='Производственная программа'!#REF! ->  | N12: ='Производственная программа'!#REF! ->  | O12: ='Производственная программа'!#REF! ->  | P12: ='Производственная программа'!#REF! ->  | Q12: ='Производственная программа'!J5 -> 0 | R12: ='Производственная программа'!K5 -> 0 | S12: ='Производственная программа'!L5 -> 0 | T12: ='Производственная программа'!M5 -> 0 | U12: ='Производственная программа'!N5 -> 0 | V12: ='Производственная программа'!#REF! ->  | W12: ='Производственная программа'!#REF! ->  | X12: ='Производственная программа'!#REF! ->  | Y12: ='Производственная программа'!#REF! ->  | Z12: ='Производственная программа'!#REF! ->  | AA12: ='Производственная программа'!#REF! ->  | AB12: ='Производственная программа'!#REF! ->  | AC12: ='Производственная программа'!#REF! ->  | AD12: ='Производственная программа'!#REF! ->  | AE12: ='Производственная программа'!#REF! ->  | AF12: ='Производственная программа'!#REF! ->  | AG12: ='Производственная программа'!#REF! ->  | AH12: ='Производственная программа'!#REF! ->  | AI12: ='Производственная программа'!#REF! ->  | AJ12: ='Производственная программа'!#REF! ->  | AK12: ='Производственная программа'!#REF! ->  | AL12: ='Производственная программа'!#REF! ->  | AM12: ='Производственная программа'!#REF! ->  | AN12: ='Производственная программа'!#REF! ->  | AO12: ='Производственная программа'!#REF! ->  | AP12: ='Производственная программа'!#REF! ->  | AQ12: ='Производственная программа'!#REF! ->  | AR12: ='Производственная программа'!#REF! ->  | AS12: ='Производственная программа'!#REF! ->  | AT12: ='Производственная программа'!#REF! ->  | AU12: ='Производственная программа'!#REF! ->  | AV12: ='Производственная программа'!#REF! ->  | AW12: ='Производственная программа'!#REF! ->  | AX12: ='Производственная программа'!#REF! ->  | AY12: ='Производственная программа'!#REF! ->  | AZ12: ='Производственная программа'!#REF! ->  | BA12: ='Производственная программа'!#REF! ->  | BB12: ='Производственная программа'!#REF! ->  | BC12: ='Производственная программа'!#REF! ->  | BD12: ='Производственная программа'!#REF! ->  | BE12: ='Производственная программа'!#REF! ->  | BF12: ='Производственная программа'!#REF! ->  | BG12: ='Производственная программа'!#REF! ->  | BH12: ='Производственная программа'!#REF! ->  | BI12: ='Производственная программа'!#REF! ->  | BJ12: ='Производственная программа'!#REF! ->  | BK12: ='Производственная программа'!#REF! ->  | BL12: ='Производственная программа'!#REF! ->  | BM12: ='Производственная программа'!#REF! ->  | BN12: ='Производственная программа'!#REF! ->  | BO12: ='Производственная программа'!#REF! ->  | BP12: ='Производственная программа'!#REF! ->  | BQ12: ='Производственная программа'!#REF! ->  | BR12: ='Производственная программа'!#REF! ->  | BS12: ='Производственная программа'!#REF! ->  | BT12: ='Производственная программа'!#REF! ->  | BU12: ='Производственная программа'!#REF! ->  | BV12: ='Производственная программа'!#REF! ->  | BW12: ='Производственная программа'!#REF! ->  | BX12: ='Производственная программа'!#REF! ->  | BY12: ='Производственная программа'!#REF! ->  | BZ12: ='Производственная программа'!#REF! ->  | CA12: ='Производственная программа'!#REF! ->  | CB12: ='Производственная программа'!#REF! ->  | CC12: ='Производственная программа'!#REF! ->  | CD12: ='Производственная программа'!#REF! ->  | CE12: ='Производственная программа'!#REF! ->  | CF12: ='Производственная программа'!#REF! ->  | CG12: ='Производственная программа'!#REF! ->  | CH12: ='Производственная программа'!#REF! ->  | CI12: ='Производственная программа'!#REF! ->  | CJ12: ='Производственная программа'!#REF! ->  | CK12: ='Производственная программа'!#REF! ->  | CL12: ='Производственная программа'!#REF! ->  | CM12: ='Производственная программа'!#REF! ->  | CN12: ='Производственная программа'!#REF! ->  | CO12: ='Производственная программа'!#REF! ->  | CP12: ='Производственная программа'!#REF! ->  | CQ12: ='Производственная программа'!#REF! ->  | CR12: ='Производственная программа'!#REF! ->  | CS12: ='Производственная программа'!#REF! ->  | CT12: ='Производственная программа'!#REF! ->  | CU12: ='Производственная программа'!#REF! ->  | CV12: ='Производственная программа'!#REF! ->  | CW12: ='Производственная программа'!#REF! ->  | CX12: ='Производственная программа'!#REF! ->  | CY12: ='Производственная программа'!#REF! ->  | CZ12: ='Производственная программа'!#REF! ->  | DA12: ='Производственная программа'!#REF! ->  | DB12: ='Производственная программа'!#REF! ->  | DC12: ='Производственная программа'!#REF! ->  | DD12: ='Производственная программа'!#REF! ->  | DE12: ='Производственная программа'!#REF! ->  | DF12: ='Производственная программа'!#REF! ->  | DG12: ='Производственная программа'!#REF! ->  | DH12: ='Производственная программа'!#REF! ->  | DI12: ='Производственная программа'!#REF! ->  | DJ12: ='Производственная программа'!#REF! ->  | DK12: ='Производственная программа'!#REF! ->  | DL12: ='Производственная программа'!#REF! ->  | DM12: ='Производственная программа'!#REF! ->  | DN12: ='Производственная программа'!#REF! ->  | DO12: ='Производственная программа'!#REF! ->  | DP12: ='Производственная программа'!#REF! ->  | DQ12: ='Производственная программа'!#REF! ->  | DR12: ='Производственная программа'!#REF! ->  | DS12: ='Производственная программа'!#REF! ->  | DT12: ='Производственная программа'!#REF! ->  | DU12: ='Производственная программа'!#REF! ->  | DV12: ='Производственная программа'!#REF! ->  | DW12: ='Производственная программа'!#REF! ->  | DX12: ='Производственная программа'!#REF! ->  | DY12: ='Производственная программа'!#REF! ->  | DZ12: ='Производственная программа'!#REF! ->  | EA12: ='Производственная программа'!#REF! ->  | EB12: ='Производственная программа'!#REF! ->  | EC12: ='Производственная программа'!#REF! ->  | ED12: ='Производственная программа'!#REF! ->  | EE12: ='Производственная программа'!#REF! ->  | EF12: ='Производственная программа'!#REF! ->  | EG12: ='Производственная программа'!#REF! ->  | EH12: ='Производственная программа'!#REF! ->  | EI12: ='Производственная программа'!#REF! ->  | EJ12: ='Производственная программа'!#REF! ->  | EK12: ='Производственная программа'!#REF! ->  | EL12: ='Производственная программа'!#REF! ->  | EM12: ='Производственная программа'!#REF! ->  | EN12: ='Производственная программа'!#REF! ->  | EO12: ='Производственная программа'!#REF! ->  | EP12: ='Производственная программа'!#REF! ->  | EQ12: ='Производственная программа'!#REF! ->  | ER12: ='Производственная программа'!#REF! ->  | ES12: ='Производственная программа'!#REF! ->  | ET12: ='Производственная программа'!#REF! ->  | EU12: ='Производственная программа'!#REF! ->  | EV12: ='Производственная программа'!#REF! ->  | EW12: ='Производственная программа'!#REF! ->  | EX12: ='Производственная программа'!#REF! ->  | EY12: ='Производственная программа'!#REF! ->  | EZ12: ='Производственная программа'!#REF! ->  | FA12: ='Производственная программа'!#REF! ->  | FB12: ='Производственная программа'!#REF! ->  | FC12: ='Производственная программа'!#REF! ->  | FD12: ='Производственная программа'!#REF! ->  | FE12: ='Производственная программа'!#REF! ->  | FF12: ='Производственная программа'!#REF! ->  | FG12: ='Производственная программа'!#REF! ->  | FH12: ='Производственная программа'!#REF! ->  | FI12: ='Производственная программа'!#REF! ->  | FJ12: ='Производственная программа'!#REF! ->  | FK12: ='Производственная программа'!#REF! ->  | FL12: ='Производственная программа'!#REF! ->  | FM12: ='Производственная программа'!#REF! ->  | FN12: ='Производственная программа'!#REF! ->  | FO12: ='Производственная программа'!#REF! ->  | FP12: ='Производственная программа'!#REF! ->  | FQ12: ='Производственная программа'!#REF! ->  | FR12: ='Производственная программа'!#REF! ->  | FS12: ='Производственная программа'!#REF! ->  | FT12: ='Производственная программа'!#REF! ->  | FU12: ='Производственная программа'!#REF! ->  | FV12: ='Производственная программа'!#REF! ->  | FW12: ='Производственная программа'!#REF! ->  | FX12: ='Производственная программа'!#REF! ->  | FY12: ЖК | FZ12: 6
A13: 17 | B13: ='Производственная программа'!#REF! ->  | C13: ='Производственная программа'!#REF! ->  | D13: ='Производственная программа'!#REF! ->  | E13: ='Производственная программа'!#REF! ->  | F13: ='Производственная программа'!#REF! ->  | G13: ='Производственная программа'!#REF! ->  | H13: ='Производственная программа'!#REF! ->  | I13: ='Производственная программа'!#REF! ->  | J13: ='Производственная программа'!#REF! ->  | K13: ='Производственная программа'!#REF! ->  | L13: ='Производственная программа'!#REF! ->  | M13: ='Производственная программа'!#REF! ->  | N13: ='Производственная программа'!#REF! ->  | O13: ='Производственная программа'!#REF! ->  | P13: ='Производственная программа'!#REF! ->  | Q13: ='Производственная программа'!#REF! ->  | R13: ='Производственная программа'!#REF! ->  | S13: ='Производственная программа'!#REF! ->  | T13: ='Производственная программа'!#REF! ->  | U13: ='Производственная программа'!#REF! ->  | V13: ='Производственная программа'!#REF! ->  | W13: ='Производственная программа'!#REF! ->  | X13: ='Производственная программа'!#REF! ->  | Y13: ='Производственная программа'!#REF! ->  | Z13: ='Производственная программа'!#REF! ->  | AA13: ='Производственная программа'!#REF! ->  | AB13: ='Производственная программа'!#REF! ->  | AC13: ='Производственная программа'!#REF! ->  | AD13: ='Производственная программа'!#REF! ->  | AE13: ='Производственная программа'!#REF! ->  | AF13: ='Производственная программа'!#REF! ->  | AG13: ='Производственная программа'!#REF! ->  | AH13: ='Производственная программа'!#REF! ->  | AI13: ='Производственная программа'!#REF! ->  | AJ13: ='Производственная программа'!#REF! ->  | AK13: ='Производственная программа'!#REF! ->  | AL13: ='Производственная программа'!#REF! ->  | AM13: ='Производственная программа'!#REF! ->  | AN13: ='Производственная программа'!#REF! ->  | AO13: ='Производственная программа'!#REF! ->  | AP13: ='Производственная программа'!#REF! ->  | AQ13: ='Производственная программа'!#REF! ->  | AR13: ='Производственная программа'!#REF! ->  | AS13: ='Производственная программа'!#REF! ->  | AT13: ='Производственная программа'!#REF! ->  | AU13: ='Производственная программа'!#REF! ->  | AV13: ='Производственная программа'!#REF! ->  | AW13: ='Производственная программа'!#REF! ->  | AX13: ='Производственная программа'!#REF! ->  | AY13: ='Производственная программа'!#REF! ->  | AZ13: ='Производственная программа'!#REF! ->  | BA13: ='Производственная программа'!#REF! ->  | BB13: ='Производственная программа'!#REF! ->  | BC13: ='Производственная программа'!#REF! ->  | BD13: ='Производственная программа'!#REF! ->  | BE13: ='Производственная программа'!#REF! ->  | BF13: ='Производственная программа'!#REF! ->  | BG13: ='Производственная программа'!#REF! ->  | BH13: ='Производственная программа'!#REF! ->  | BI13: ='Производственная программа'!#REF! ->  | BJ13: ='Производственная программа'!#REF! ->  | BK13: ='Производственная программа'!#REF! ->  | BL13: ='Производственная программа'!#REF! ->  | BM13: ='Производственная программа'!#REF! ->  | BN13: ='Производственная программа'!#REF! ->  | BO13: ='Производственная программа'!#REF! ->  | BP13: ='Производственная программа'!#REF! ->  | BQ13: ='Производственная программа'!#REF! ->  | BR13: ='Производственная программа'!#REF! ->  | BS13: ='Производственная программа'!#REF! ->  | BT13: ='Производственная программа'!#REF! ->  | BU13: ='Производственная программа'!#REF! ->  | BV13: ='Производственная программа'!#REF! ->  | BW13: ='Производственная программа'!#REF! ->  | BX13: ='Производственная программа'!#REF! ->  | BY13: ='Производственная программа'!#REF! ->  | BZ13: ='Производственная программа'!#REF! ->  | CA13: ='Производственная программа'!#REF! ->  | CB13: ='Производственная программа'!#REF! ->  | CC13: ='Производственная программа'!#REF! ->  | CD13: ='Производственная программа'!#REF! ->  | CE13: ='Производственная программа'!#REF! ->  | CF13: ='Производственная программа'!#REF! ->  | CG13: ='Производственная программа'!#REF! ->  | CH13: ='Производственная программа'!#REF! ->  | CI13: ='Производственная программа'!#REF! ->  | CJ13: ='Производственная программа'!#REF! ->  | CK13: ='Производственная программа'!#REF! ->  | CL13: ='Производственная программа'!#REF! ->  | CM13: ='Производственная программа'!#REF! ->  | CN13: ='Производственная программа'!#REF! ->  | CO13: ='Производственная программа'!#REF! ->  | CP13: ='Производственная программа'!#REF! ->  | CQ13: ='Производственная программа'!#REF! ->  | CR13: ='Производственная программа'!#REF! ->  | CS13: ='Производственная программа'!#REF! ->  | CT13: ='Производственная программа'!#REF! ->  | CU13: ='Производственная программа'!#REF! ->  | CV13: ='Производственная программа'!#REF! ->  | CW13: ='Производственная программа'!#REF! ->  | CX13: ='Производственная программа'!#REF! ->  | CY13: ='Производственная программа'!#REF! ->  | CZ13: ='Производственная программа'!#REF! ->  | DA13: ='Производственная программа'!#REF! ->  | DB13: ='Производственная программа'!#REF! ->  | DC13: ='Производственная программа'!#REF! ->  | DD13: ='Производственная программа'!#REF! ->  | DE13: ='Производственная программа'!#REF! ->  | DF13: ='Производственная программа'!#REF! ->  | DG13: ='Производственная программа'!#REF! ->  | DH13: ='Производственная программа'!#REF! ->  | DI13: ='Производственная программа'!#REF! ->  | DJ13: ='Производственная программа'!#REF! ->  | DK13: ='Производственная программа'!#REF! ->  | DL13: ='Производственная программа'!#REF! ->  | DM13: ='Производственная программа'!#REF! ->  | DN13: ='Производственная программа'!#REF! ->  | DO13: ='Производственная программа'!#REF! ->  | DP13: ='Производственная программа'!#REF! ->  | DQ13: ='Производственная программа'!#REF! ->  | DR13: ='Производственная программа'!#REF! ->  | DS13: ='Производственная программа'!#REF! ->  | DT13: ='Производственная программа'!#REF! ->  | DU13: ='Производственная программа'!#REF! ->  | DV13: ='Производственная программа'!#REF! ->  | DW13: ='Производственная программа'!#REF! ->  | DX13: ='Производственная программа'!#REF! ->  | DY13: ='Производственная программа'!#REF! ->  | DZ13: ='Производственная программа'!#REF! ->  | EA13: ='Производственная программа'!#REF! ->  | EB13: ='Производственная программа'!#REF! ->  | EC13: ='Производственная программа'!#REF! ->  | ED13: ='Производственная программа'!#REF! ->  | EE13: ='Производственная программа'!#REF! ->  | EF13: ='Производственная программа'!#REF! ->  | EG13: ='Производственная программа'!#REF! ->  | EH13: ='Производственная программа'!#REF! ->  | EI13: ='Производственная программа'!#REF! ->  | EJ13: ='Производственная программа'!#REF! ->  | EK13: ='Производственная программа'!#REF! ->  | EL13: ='Производственная программа'!#REF! ->  | EM13: ='Производственная программа'!#REF! ->  | EN13: ='Производственная программа'!#REF! ->  | EO13: ='Производственная программа'!#REF! ->  | EP13: ='Производственная программа'!#REF! ->  | EQ13: ='Производственная программа'!#REF! ->  | ER13: ='Производственная программа'!#REF! ->  | ES13: ='Производственная программа'!#REF! ->  | ET13: ='Производственная программа'!#REF! ->  | EU13: ='Производственная программа'!#REF! ->  | EV13: ='Производственная программа'!#REF! ->  | EW13: ='Производственная программа'!#REF! ->  | EX13: ='Производственная программа'!#REF! ->  | EY13: ='Производственная программа'!#REF! ->  | EZ13: ='Производственная программа'!#REF! ->  | FA13: ='Производственная программа'!#REF! ->  | FB13: ='Производственная программа'!#REF! ->  | FC13: ='Производственная программа'!#REF! ->  | FD13: ='Производственная программа'!#REF! ->  | FE13: ='Производственная программа'!#REF! ->  | FF13: ='Производственная программа'!#REF! ->  | FG13: ='Производственная программа'!#REF! ->  | FH13: ='Производственная программа'!#REF! ->  | FI13: ='Производственная программа'!#REF! ->  | FJ13: ='Производственная программа'!#REF! ->  | FK13: ='Производственная программа'!#REF! ->  | FL13: ='Производственная программа'!#REF! ->  | FM13: ='Производственная программа'!#REF! ->  | FN13: ='Производственная программа'!#REF! ->  | FO13: ='Производственная программа'!#REF! ->  | FP13: ='Производственная программа'!#REF! ->  | FQ13: ='Производственная программа'!#REF! ->  | FR13: ='Производственная программа'!#REF! ->  | FS13: ='Производственная программа'!#REF! ->  | FT13: ='Производственная программа'!#REF! ->  | FU13: ='Производственная программа'!#REF! ->  | FV13: ='Производственная программа'!#REF! ->  | FW13: ='Производственная программа'!#REF! ->  | FX13: ='Производственная программа'!#REF! ->  | FY13: ПК | FZ13: 7
A14: 18 | B14: ='Производственная программа'!#REF! ->  | C14: ='Производственная программа'!#REF! ->  | D14: ='Производственная программа'!#REF! ->  | E14: ='Производственная программа'!#REF! ->  | F14: ='Производственная программа'!#REF! ->  | G14: ='Производственная программа'!#REF! ->  | H14: ='Производственная программа'!#REF! ->  | I14: ='Производственная программа'!#REF! ->  | J14: ='Производственная программа'!#REF! ->  | K14: ='Производственная программа'!#REF! ->  | L14: ='Производственная программа'!#REF! ->  | M14: ='Производственная программа'!#REF! ->  | N14: ='Производственная программа'!#REF! ->  | O14: ='Производственная программа'!#REF! ->  | P14: ='Производственная программа'!#REF! ->  | Q14: ='Производственная программа'!#REF! ->  | R14: ='Производственная программа'!#REF! ->  | S14: ='Производственная программа'!#REF! ->  | T14: ='Производственная программа'!#REF! ->  | U14: ='Производственная программа'!#REF! ->  | V14: ='Производственная программа'!#REF! ->  | W14: ='Производственная программа'!#REF! ->  | X14: ='Производственная программа'!#REF! ->  | Y14: ='Производственная программа'!#REF! ->  | Z14: ='Производственная программа'!#REF! ->  | AA14: ='Производственная программа'!#REF! ->  | AB14: ='Производственная программа'!#REF! ->  | AC14: ='Производственная программа'!#REF! ->  | AD14: ='Производственная программа'!#REF! ->  | AE14: ='Производственная программа'!#REF! ->  | AF14: ='Производственная программа'!#REF! ->  | AG14: ='Производственная программа'!#REF! ->  | AH14: ='Производственная программа'!#REF! ->  | AI14: ='Производственная программа'!#REF! ->  | AJ14: ='Производственная программа'!#REF! ->  | AK14: ='Производственная программа'!#REF! ->  | AL14: ='Производственная программа'!#REF! ->  | AM14: ='Производственная программа'!#REF! ->  | AN14: ='Производственная программа'!#REF! ->  | AO14: ='Производственная программа'!#REF! ->  | AP14: ='Производственная программа'!#REF! ->  | AQ14: ='Производственная программа'!#REF! ->  | AR14: ='Производственная программа'!#REF! ->  | AS14: ='Производственная программа'!#REF! ->  | AT14: ='Производственная программа'!#REF! ->  | AU14: ='Производственная программа'!#REF! ->  | AV14: ='Производственная программа'!#REF! ->  | AW14: ='Производственная программа'!#REF! ->  | AX14: ='Производственная программа'!#REF! ->  | AY14: ='Производственная программа'!#REF! ->  | AZ14: ='Производственная программа'!#REF! ->  | BA14: ='Производственная программа'!#REF! ->  | BB14: ='Производственная программа'!#REF! ->  | BC14: ='Производственная программа'!#REF! ->  | BD14: ='Производственная программа'!#REF! ->  | BE14: ='Производственная программа'!#REF! ->  | BF14: ='Производственная программа'!#REF! ->  | BG14: ='Производственная программа'!#REF! ->  | BH14: ='Производственная программа'!#REF! ->  | BI14: ='Производственная программа'!#REF! ->  | BJ14: ='Производственная программа'!#REF! ->  | BK14: ='Производственная программа'!#REF! ->  | BL14: ='Производственная программа'!#REF! ->  | BM14: ='Производственная программа'!#REF! ->  | BN14: ='Производственная программа'!#REF! ->  | BO14: ='Производственная программа'!#REF! ->  | BP14: ='Производственная программа'!#REF! ->  | BQ14: ='Производственная программа'!#REF! ->  | BR14: ='Производственная программа'!#REF! ->  | BS14: ='Производственная программа'!#REF! ->  | BT14: ='Производственная программа'!#REF! ->  | BU14: ='Производственная программа'!#REF! ->  | BV14: ='Производственная программа'!#REF! ->  | BW14: ='Производственная программа'!#REF! ->  | BX14: ='Производственная программа'!#REF! ->  | BY14: ='Производственная программа'!#REF! ->  | BZ14: ='Производственная программа'!#REF! ->  | CA14: ='Производственная программа'!#REF! ->  | CB14: ='Производственная программа'!#REF! ->  | CC14: ='Производственная программа'!#REF! ->  | CD14: ='Производственная программа'!#REF! ->  | CE14: ='Производственная программа'!#REF! ->  | CF14: ='Производственная программа'!#REF! ->  | CG14: ='Производственная программа'!#REF! ->  | CH14: ='Производственная программа'!#REF! ->  | CI14: ='Производственная программа'!#REF! ->  | CJ14: ='Производственная программа'!#REF! ->  | CK14: ='Производственная программа'!#REF! ->  | CL14: ='Производственная программа'!#REF! ->  | CM14: ='Производственная программа'!#REF! ->  | CN14: ='Производственная программа'!#REF! ->  | CO14: ='Производственная программа'!#REF! ->  | CP14: ='Производственная программа'!#REF! ->  | CQ14: ='Производственная программа'!#REF! ->  | CR14: ='Производственная программа'!#REF! ->  | CS14: ='Производственная программа'!#REF! ->  | CT14: ='Производственная программа'!#REF! ->  | CU14: ='Производственная программа'!#REF! ->  | CV14: ='Производственная программа'!#REF! ->  | CW14: ='Производственная программа'!#REF! ->  | CX14: ='Производственная программа'!#REF! ->  | CY14: ='Производственная программа'!#REF! ->  | CZ14: ='Производственная программа'!#REF! ->  | DA14: ='Производственная программа'!#REF! ->  | DB14: ='Производственная программа'!#REF! ->  | DC14: ='Производственная программа'!#REF! ->  | DD14: ='Производственная программа'!#REF! ->  | DE14: ='Производственная программа'!#REF! ->  | DF14: ='Производственная программа'!#REF! ->  | DG14: ='Производственная программа'!#REF! ->  | DH14: ='Производственная программа'!#REF! ->  | DI14: ='Производственная программа'!#REF! ->  | DJ14: ='Производственная программа'!#REF! ->  | DK14: ='Производственная программа'!#REF! ->  | DL14: ='Производственная программа'!#REF! ->  | DM14: ='Производственная программа'!#REF! ->  | DN14: ='Производственная программа'!#REF! ->  | DO14: ='Производственная программа'!#REF! ->  | DP14: ='Производственная программа'!#REF! ->  | DQ14: ='Производственная программа'!#REF! ->  | DR14: ='Производственная программа'!#REF! ->  | DS14: ='Производственная программа'!#REF! ->  | DT14: ='Производственная программа'!#REF! ->  | DU14: ='Производственная программа'!#REF! ->  | DV14: ='Производственная программа'!#REF! ->  | DW14: ='Производственная программа'!#REF! ->  | DX14: ='Производственная программа'!#REF! ->  | DY14: ='Производственная программа'!#REF! ->  | DZ14: ='Производственная программа'!#REF! ->  | EA14: ='Производственная программа'!#REF! ->  | EB14: ='Производственная программа'!#REF! ->  | EC14: ='Производственная программа'!#REF! ->  | ED14: ='Производственная программа'!#REF! ->  | EE14: ='Производственная программа'!#REF! ->  | EF14: ='Производственная программа'!#REF! ->  | EG14: ='Производственная программа'!#REF! ->  | EH14: ='Производственная программа'!#REF! ->  | EI14: ='Производственная программа'!#REF! ->  | EJ14: ='Производственная программа'!#REF! ->  | EK14: ='Производственная программа'!#REF! ->  | EL14: ='Производственная программа'!#REF! ->  | EM14: ='Производственная программа'!#REF! ->  | EN14: ='Производственная программа'!#REF! ->  | EO14: ='Производственная программа'!#REF! ->  | EP14: ='Производственная программа'!#REF! ->  | EQ14: ='Производственная программа'!#REF! ->  | ER14: ='Производственная программа'!#REF! ->  | ES14: ='Производственная программа'!#REF! ->  | ET14: ='Производственная программа'!#REF! ->  | EU14: ='Производственная программа'!#REF! ->  | EV14: ='Производственная программа'!#REF! ->  | EW14: ='Производственная программа'!#REF! ->  | EX14: ='Производственная программа'!#REF! ->  | EY14: ='Производственная программа'!#REF! ->  | EZ14: ='Производственная программа'!#REF! ->  | FA14: ='Производственная программа'!#REF! ->  | FB14: ='Производственная программа'!#REF! ->  | FC14: ='Производственная программа'!#REF! ->  | FD14: ='Производственная программа'!#REF! ->  | FE14: ='Производственная программа'!#REF! ->  | FF14: ='Производственная программа'!#REF! ->  | FG14: ='Производственная программа'!#REF! ->  | FH14: ='Производственная программа'!#REF! ->  | FI14: ='Производственная программа'!#REF! ->  | FJ14: ='Производственная программа'!#REF! ->  | FK14: ='Производственная программа'!#REF! ->  | FL14: ='Производственная программа'!#REF! ->  | FM14: ='Производственная программа'!#REF! ->  | FN14: ='Производственная программа'!#REF! ->  | FO14: ='Производственная программа'!#REF! ->  | FP14: ='Производственная программа'!#REF! ->  | FQ14: ='Производственная программа'!#REF! ->  | FR14: ='Производственная программа'!#REF! ->  | FS14: ='Производственная программа'!#REF! ->  | FT14: ='Производственная программа'!#REF! ->  | FU14: ='Производственная программа'!#REF! ->  | FV14: ='Производственная программа'!#REF! ->  | FW14: ='Производственная программа'!#REF! ->  | FX14: ='Производственная программа'!#REF! ->  | FY14: дом | FZ14: 8
A15: 19 | B15: ='Производственная программа'!#REF! ->  | C15: ='Производственная программа'!#REF! ->  | D15: ='Производственная программа'!#REF! ->  | E15: ='Производственная программа'!#REF! ->  | F15: ='Производственная программа'!#REF! ->  | G15: ='Производственная программа'!#REF! ->  | H15: ='Производственная программа'!#REF! ->  | I15: ='Производственная программа'!#REF! ->  | J15: ='Производственная программа'!#REF! ->  | K15: ='Производственная программа'!#REF! ->  | L15: ='Производственная программа'!#REF! ->  | M15: ='Производственная программа'!#REF! ->  | N15: ='Производственная программа'!#REF! ->  | O15: ='Производственная программа'!#REF! ->  | P15: ='Производственная программа'!#REF! ->  | Q15: ='Производственная программа'!#REF! ->  | R15: ='Производственная программа'!#REF! ->  | S15: ='Производственная программа'!#REF! ->  | T15: ='Производственная программа'!#REF! ->  | U15: ='Производственная программа'!#REF! ->  | V15: ='Производственная программа'!#REF! ->  | W15: ='Производственная программа'!#REF! ->  | X15: ='Производственная программа'!#REF! ->  | Y15: ='Производственная программа'!#REF! ->  | Z15: ='Производственная программа'!#REF! ->  | AA15: ='Производственная программа'!#REF! ->  | AB15: ='Производственная программа'!#REF! ->  | AC15: ='Производственная программа'!#REF! ->  | AD15: ='Производственная программа'!#REF! ->  | AE15: ='Производственная программа'!#REF! ->  | AF15: ='Производственная программа'!#REF! ->  | AG15: ='Производственная программа'!#REF! ->  | AH15: ='Производственная программа'!#REF! ->  | AI15: ='Производственная программа'!#REF! ->  | AJ15: ='Производственная программа'!#REF! ->  | AK15: ='Производственная программа'!#REF! ->  | AL15: ='Производственная программа'!#REF! ->  | AM15: ='Производственная программа'!#REF! ->  | AN15: ='Производственная программа'!#REF! ->  | AO15: ='Производственная программа'!#REF! ->  | AP15: ='Производственная программа'!#REF! ->  | AQ15: ='Производственная программа'!#REF! ->  | AR15: ='Производственная программа'!#REF! ->  | AS15: ='Производственная программа'!#REF! ->  | AT15: ='Производственная программа'!#REF! ->  | AU15: ='Производственная программа'!#REF! ->  | AV15: ='Производственная программа'!#REF! ->  | AW15: ='Производственная программа'!#REF! ->  | AX15: ='Производственная программа'!#REF! ->  | AY15: ='Производственная программа'!#REF! ->  | AZ15: ='Производственная программа'!#REF! ->  | BA15: ='Производственная программа'!#REF! ->  | BB15: ='Производственная программа'!#REF! ->  | BC15: ='Производственная программа'!#REF! ->  | BD15: ='Производственная программа'!#REF! ->  | BE15: ='Производственная программа'!#REF! ->  | BF15: ='Производственная программа'!#REF! ->  | BG15: ='Производственная программа'!#REF! ->  | BH15: ='Производственная программа'!#REF! ->  | BI15: ='Производственная программа'!#REF! ->  | BJ15: ='Производственная программа'!#REF! ->  | BK15: ='Производственная программа'!#REF! ->  | BL15: ='Производственная программа'!#REF! ->  | BM15: ='Производственная программа'!#REF! ->  | BN15: ='Производственная программа'!#REF! ->  | BO15: ='Производственная программа'!#REF! ->  | BP15: ='Производственная программа'!#REF! ->  | BQ15: ='Производственная программа'!#REF! ->  | BR15: ='Производственная программа'!#REF! ->  | BS15: ='Производственная программа'!#REF! ->  | BT15: ='Производственная программа'!#REF! ->  | BU15: ='Производственная программа'!#REF! ->  | BV15: ='Производственная программа'!#REF! ->  | BW15: ='Производственная программа'!#REF! ->  | BX15: ='Производственная программа'!#REF! ->  | BY15: ='Производственная программа'!#REF! ->  | BZ15: ='Производственная программа'!#REF! ->  | CA15: ='Производственная программа'!#REF! ->  | CB15: ='Производственная программа'!#REF! ->  | CC15: ='Производственная программа'!#REF! ->  | CD15: ='Производственная программа'!#REF! ->  | CE15: ='Производственная программа'!#REF! ->  | CF15: ='Производственная программа'!#REF! ->  | CG15: ='Производственная программа'!#REF! ->  | CH15: ='Производственная программа'!#REF! ->  | CI15: ='Производственная программа'!#REF! ->  | CJ15: ='Производственная программа'!#REF! ->  | CK15: ='Производственная программа'!#REF! ->  | CL15: ='Производственная программа'!#REF! ->  | CM15: ='Производственная программа'!#REF! ->  | CN15: ='Производственная программа'!#REF! ->  | CO15: ='Производственная программа'!#REF! ->  | CP15: ='Производственная программа'!#REF! ->  | CQ15: ='Производственная программа'!#REF! ->  | CR15: ='Производственная программа'!#REF! ->  | CS15: ='Производственная программа'!#REF! ->  | CT15: ='Производственная программа'!#REF! ->  | CU15: ='Производственная программа'!#REF! ->  | CV15: ='Производственная программа'!#REF! ->  | CW15: ='Производственная программа'!#REF! ->  | CX15: ='Производственная программа'!#REF! ->  | CY15: ='Производственная программа'!#REF! ->  | CZ15: ='Производственная программа'!#REF! ->  | DA15: ='Производственная программа'!#REF! ->  | DB15: ='Производственная программа'!#REF! ->  | DC15: ='Производственная программа'!#REF! ->  | DD15: ='Производственная программа'!#REF! ->  | DE15: ='Производственная программа'!#REF! ->  | DF15: ='Производственная программа'!#REF! ->  | DG15: ='Производственная программа'!#REF! ->  | DH15: ='Производственная программа'!#REF! ->  | DI15: ='Производственная программа'!#REF! ->  | DJ15: ='Производственная программа'!#REF! ->  | DK15: ='Производственная программа'!#REF! ->  | DL15: ='Производственная программа'!#REF! ->  | DM15: ='Производственная программа'!#REF! ->  | DN15: ='Производственная программа'!#REF! ->  | DO15: ='Производственная программа'!#REF! ->  | DP15: ='Производственная программа'!#REF! ->  | DQ15: ='Производственная программа'!#REF! ->  | DR15: ='Производственная программа'!#REF! ->  | DS15: ='Производственная программа'!#REF! ->  | DT15: ='Производственная программа'!#REF! ->  | DU15: ='Производственная программа'!#REF! ->  | DV15: ='Производственная программа'!#REF! ->  | DW15: ='Производственная программа'!#REF! ->  | DX15: ='Производственная программа'!#REF! ->  | DY15: ='Производственная программа'!#REF! ->  | DZ15: ='Производственная программа'!#REF! ->  | EA15: ='Производственная программа'!#REF! ->  | EB15: ='Производственная программа'!#REF! ->  | EC15: ='Производственная программа'!#REF! ->  | ED15: ='Производственная программа'!#REF! ->  | EE15: ='Производственная программа'!#REF! ->  | EF15: ='Производственная программа'!#REF! ->  | EG15: ='Производственная программа'!#REF! ->  | EH15: ='Производственная программа'!#REF! ->  | EI15: ='Производственная программа'!#REF! ->  | EJ15: ='Производственная программа'!#REF! ->  | EK15: ='Производственная программа'!#REF! ->  | EL15: ='Производственная программа'!#REF! ->  | EM15: ='Производственная программа'!#REF! ->  | EN15: ='Производственная программа'!#REF! ->  | EO15: ='Производственная программа'!#REF! ->  | EP15: ='Производственная программа'!#REF! ->  | EQ15: ='Производственная программа'!#REF! ->  | ER15: ='Производственная программа'!#REF! ->  | ES15: ='Производственная программа'!#REF! ->  | ET15: ='Производственная программа'!#REF! ->  | EU15: ='Производственная программа'!#REF! ->  | EV15: ='Производственная программа'!#REF! ->  | EW15: ='Производственная программа'!#REF! ->  | EX15: ='Производственная программа'!#REF! ->  | EY15: ='Производственная программа'!#REF! ->  | EZ15: ='Производственная программа'!#REF! ->  | FA15: ='Производственная программа'!#REF! ->  | FB15: ='Производственная программа'!#REF! ->  | FC15: ='Производственная программа'!#REF! ->  | FD15: ='Производственная программа'!#REF! ->  | FE15: ='Производственная программа'!#REF! ->  | FF15: ='Производственная программа'!#REF! ->  | FG15: ='Производственная программа'!#REF! ->  | FH15: ='Производственная программа'!#REF! ->  | FI15: ='Производственная программа'!#REF! ->  | FJ15: ='Производственная программа'!#REF! ->  | FK15: ='Производственная программа'!#REF! ->  | FL15: ='Производственная программа'!#REF! ->  | FM15: ='Производственная программа'!#REF! ->  | FN15: ='Производственная программа'!#REF! ->  | FO15: ='Производственная программа'!#REF! ->  | FP15: ='Производственная программа'!#REF! ->  | FQ15: ='Производственная программа'!#REF! ->  | FR15: ='Производственная программа'!#REF! ->  | FS15: ='Производственная программа'!#REF! ->  | FT15: ='Производственная программа'!#REF! ->  | FU15: ='Производственная программа'!#REF! ->  | FV15: ='Производственная программа'!#REF! ->  | FW15: ='Производственная программа'!#REF! ->  | FX15: ='Производственная программа'!#REF! -> 
A16: 20 | B16: ='Производственная программа'!#REF! ->  | C16: ='Производственная программа'!#REF! ->  | D16: ='Производственная программа'!#REF! ->  | E16: ='Производственная программа'!#REF! ->  | F16: ='Производственная программа'!#REF! ->  | G16: ='Производственная программа'!#REF! ->  | H16: ='Производственная программа'!#REF! ->  | I16: ='Производственная программа'!#REF! ->  | J16: ='Производственная программа'!#REF! ->  | K16: ='Производственная программа'!#REF! ->  | L16: ='Производственная программа'!#REF! ->  | M16: ='Производственная программа'!#REF! ->  | N16: ='Производственная программа'!#REF! ->  | O16: ='Производственная программа'!#REF! ->  | P16: ='Производственная программа'!#REF! ->  | Q16: ='Производственная программа'!#REF! ->  | R16: ='Производственная программа'!#REF! ->  | S16: ='Производственная программа'!#REF! ->  | T16: ='Производственная программа'!#REF! ->  | U16: ='Производственная программа'!#REF! ->  | V16: ='Производственная программа'!#REF! ->  | W16: ='Производственная программа'!#REF! ->  | X16: ='Производственная программа'!#REF! ->  | Y16: ='Производственная программа'!#REF! ->  | Z16: ='Производственная программа'!#REF! ->  | AA16: ='Производственная программа'!#REF! ->  | AB16: ='Производственная программа'!#REF! ->  | AC16: ='Производственная программа'!#REF! ->  | AD16: ='Производственная программа'!#REF! ->  | AE16: ='Производственная программа'!#REF! ->  | AF16: ='Производственная программа'!#REF! ->  | AG16: ='Производственная программа'!#REF! ->  | AH16: ='Производственная программа'!#REF! ->  | AI16: ='Производственная программа'!#REF! ->  | AJ16: ='Производственная программа'!#REF! ->  | AK16: ='Производственная программа'!#REF! ->  | AL16: ='Производственная программа'!#REF! ->  | AM16: ='Производственная программа'!#REF! ->  | AN16: ='Производственная программа'!#REF! ->  | AO16: ='Производственная программа'!#REF! ->  | AP16: ='Производственная программа'!#REF! ->  | AQ16: ='Производственная программа'!#REF! ->  | AR16: ='Производственная программа'!#REF! ->  | AS16: ='Производственная программа'!#REF! ->  | AT16: ='Производственная программа'!#REF! ->  | AU16: ='Производственная программа'!#REF! ->  | AV16: ='Производственная программа'!#REF! ->  | AW16: ='Производственная программа'!#REF! ->  | AX16: ='Производственная программа'!#REF! ->  | AY16: ='Производственная программа'!#REF! ->  | AZ16: ='Производственная программа'!#REF! ->  | BA16: ='Производственная программа'!#REF! ->  | BB16: ='Производственная программа'!#REF! ->  | BC16: ='Производственная программа'!#REF! ->  | BD16: ='Производственная программа'!#REF! ->  | BE16: ='Производственная программа'!#REF! ->  | BF16: ='Производственная программа'!#REF! ->  | BG16: ='Производственная программа'!#REF! ->  | BH16: ='Производственная программа'!#REF! ->  | BI16: ='Производственная программа'!#REF! ->  | BJ16: ='Производственная программа'!#REF! ->  | BK16: ='Производственная программа'!#REF! ->  | BL16: ='Производственная программа'!#REF! ->  | BM16: ='Производственная программа'!#REF! ->  | BN16: ='Производственная программа'!#REF! ->  | BO16: ='Производственная программа'!#REF! ->  | BP16: ='Производственная программа'!#REF! ->  | BQ16: ='Производственная программа'!#REF! ->  | BR16: ='Производственная программа'!#REF! ->  | BS16: ='Производственная программа'!#REF! ->  | BT16: ='Производственная программа'!#REF! ->  | BU16: ='Производственная программа'!#REF! ->  | BV16: ='Производственная программа'!#REF! ->  | BW16: ='Производственная программа'!#REF! ->  | BX16: ='Производственная программа'!#REF! ->  | BY16: ='Производственная программа'!#REF! ->  | BZ16: ='Производственная программа'!#REF! ->  | CA16: ='Производственная программа'!#REF! ->  | CB16: ='Производственная программа'!#REF! ->  | CC16: ='Производственная программа'!#REF! ->  | CD16: ='Производственная программа'!#REF! ->  | CE16: ='Производственная программа'!#REF! ->  | CF16: ='Производственная программа'!#REF! ->  | CG16: ='Производственная программа'!#REF! ->  | CH16: ='Производственная программа'!#REF! ->  | CI16: ='Производственная программа'!#REF! ->  | CJ16: ='Производственная программа'!#REF! ->  | CK16: ='Производственная программа'!#REF! ->  | CL16: ='Производственная программа'!#REF! ->  | CM16: ='Производственная программа'!#REF! ->  | CN16: ='Производственная программа'!#REF! ->  | CO16: ='Производственная программа'!#REF! ->  | CP16: ='Производственная программа'!#REF! ->  | CQ16: ='Производственная программа'!#REF! ->  | CR16: ='Производственная программа'!#REF! ->  | CS16: ='Производственная программа'!#REF! ->  | CT16: ='Производственная программа'!#REF! ->  | CU16: ='Производственная программа'!#REF! ->  | CV16: ='Производственная программа'!#REF! ->  | CW16: ='Производственная программа'!#REF! ->  | CX16: ='Производственная программа'!#REF! ->  | CY16: ='Производственная программа'!#REF! ->  | CZ16: ='Производственная программа'!#REF! ->  | DA16: ='Производственная программа'!#REF! ->  | DB16: ='Производственная программа'!#REF! ->  | DC16: ='Производственная программа'!#REF! ->  | DD16: ='Производственная программа'!#REF! ->  | DE16: ='Производственная программа'!#REF! ->  | DF16: ='Производственная программа'!#REF! ->  | DG16: ='Производственная программа'!#REF! ->  | DH16: ='Производственная программа'!#REF! ->  | DI16: ='Производственная программа'!#REF! ->  | DJ16: ='Производственная программа'!#REF! ->  | DK16: ='Производственная программа'!#REF! ->  | DL16: ='Производственная программа'!#REF! ->  | DM16: ='Производственная программа'!#REF! ->  | DN16: ='Производственная программа'!#REF! ->  | DO16: ='Производственная программа'!#REF! ->  | DP16: ='Производственная программа'!#REF! ->  | DQ16: ='Производственная программа'!#REF! ->  | DR16: ='Производственная программа'!#REF! ->  | DS16: ='Производственная программа'!#REF! ->  | DT16: ='Производственная программа'!#REF! ->  | DU16: ='Производственная программа'!#REF! ->  | DV16: ='Производственная программа'!#REF! ->  | DW16: ='Производственная программа'!#REF! ->  | DX16: ='Производственная программа'!#REF! ->  | DY16: ='Производственная программа'!#REF! ->  | DZ16: ='Производственная программа'!#REF! ->  | EA16: ='Производственная программа'!#REF! ->  | EB16: ='Производственная программа'!#REF! ->  | EC16: ='Производственная программа'!#REF! ->  | ED16: ='Производственная программа'!#REF! ->  | EE16: ='Производственная программа'!#REF! ->  | EF16: ='Производственная программа'!#REF! ->  | EG16: ='Производственная программа'!#REF! ->  | EH16: ='Производственная программа'!#REF! ->  | EI16: ='Производственная программа'!#REF! ->  | EJ16: ='Производственная программа'!#REF! ->  | EK16: ='Производственная программа'!#REF! ->  | EL16: ='Производственная программа'!#REF! ->  | EM16: ='Производственная программа'!#REF! ->  | EN16: ='Производственная программа'!#REF! ->  | EO16: ='Производственная программа'!#REF! ->  | EP16: ='Производственная программа'!#REF! ->  | EQ16: ='Производственная программа'!#REF! ->  | ER16: ='Производственная программа'!#REF! ->  | ES16: ='Производственная программа'!#REF! ->  | ET16: ='Производственная программа'!#REF! ->  | EU16: ='Производственная программа'!#REF! ->  | EV16: ='Производственная программа'!#REF! ->  | EW16: ='Производственная программа'!#REF! ->  | EX16: ='Производственная программа'!#REF! ->  | EY16: ='Производственная программа'!#REF! ->  | EZ16: ='Производственная программа'!#REF! ->  | FA16: ='Производственная программа'!#REF! ->  | FB16: ='Производственная программа'!#REF! ->  | FC16: ='Производственная программа'!#REF! ->  | FD16: ='Производственная программа'!#REF! ->  | FE16: ='Производственная программа'!#REF! ->  | FF16: ='Производственная программа'!#REF! ->  | FG16: ='Производственная программа'!#REF! ->  | FH16: ='Производственная программа'!#REF! ->  | FI16: ='Производственная программа'!#REF! ->  | FJ16: ='Производственная программа'!#REF! ->  | FK16: ='Производственная программа'!#REF! ->  | FL16: ='Производственная программа'!#REF! ->  | FM16: ='Производственная программа'!#REF! ->  | FN16: ='Производственная программа'!#REF! ->  | FO16: ='Производственная программа'!#REF! ->  | FP16: ='Производственная программа'!#REF! ->  | FQ16: ='Производственная программа'!#REF! ->  | FR16: ='Производственная программа'!#REF! ->  | FS16: ='Производственная программа'!#REF! ->  | FT16: ='Производственная программа'!#REF! ->  | FU16: ='Производственная программа'!#REF! ->  | FV16: ='Производственная программа'!#REF! ->  | FW16: ='Производственная программа'!#REF! ->  | FX16: ='Производственная программа'!#REF! ->  | FY16: дом | FZ16: 9
A17: 21 | B17: ='Производственная программа'!#REF! ->  | C17: ='Производственная программа'!#REF! ->  | D17: ='Производственная программа'!#REF! ->  | E17: ='Производственная программа'!#REF! ->  | F17: ='Производственная программа'!#REF! ->  | G17: ='Производственная программа'!#REF! ->  | H17: ='Производственная программа'!#REF! ->  | I17: ='Производственная программа'!#REF! ->  | J17: ='Производственная программа'!#REF! ->  | K17: ='Производственная программа'!#REF! ->  | L17: ='Производственная программа'!#REF! ->  | M17: ='Производственная программа'!#REF! ->  | N17: ='Производственная программа'!#REF! ->  | O17: ='Производственная программа'!#REF! ->  | P17: ='Производственная программа'!#REF! ->  | Q17: ='Производственная программа'!#REF! ->  | R17: ='Производственная программа'!#REF! ->  | S17: ='Производственная программа'!#REF! ->  | T17: ='Производственная программа'!#REF! ->  | U17: ='Производственная программа'!#REF! ->  | V17: ='Производственная программа'!#REF! ->  | W17: ='Производственная программа'!#REF! ->  | X17: ='Производственная программа'!#REF! ->  | Y17: ='Производственная программа'!#REF! ->  | Z17: ='Производственная программа'!#REF! ->  | AA17: ='Производственная программа'!#REF! ->  | AB17: ='Производственная программа'!#REF! ->  | AC17: ='Производственная программа'!#REF! ->  | AD17: ='Производственная программа'!#REF! ->  | AE17: ='Производственная программа'!#REF! ->  | AF17: ='Производственная программа'!#REF! ->  | AG17: ='Производственная программа'!#REF! ->  | AH17: ='Производственная программа'!#REF! ->  | AI17: ='Производственная программа'!#REF! ->  | AJ17: ='Производственная программа'!#REF! ->  | AK17: ='Производственная программа'!#REF! ->  | AL17: ='Производственная программа'!#REF! ->  | AM17: ='Производственная программа'!#REF! ->  | AN17: ='Производственная программа'!#REF! ->  | AO17: ='Производственная программа'!#REF! ->  | AP17: ='Производственная программа'!#REF! ->  | AQ17: ='Производственная программа'!#REF! ->  | AR17: ='Производственная программа'!#REF! ->  | AS17: ='Производственная программа'!#REF! ->  | AT17: ='Производственная программа'!#REF! ->  | AU17: ='Производственная программа'!#REF! ->  | AV17: ='Производственная программа'!#REF! ->  | AW17: ='Производственная программа'!#REF! ->  | AX17: ='Производственная программа'!#REF! ->  | AY17: ='Производственная программа'!#REF! ->  | AZ17: ='Производственная программа'!#REF! ->  | BA17: ='Производственная программа'!#REF! ->  | BB17: ='Производственная программа'!#REF! ->  | BC17: ='Производственная программа'!#REF! ->  | BD17: ='Производственная программа'!#REF! ->  | BE17: ='Производственная программа'!#REF! ->  | BF17: ='Производственная программа'!#REF! ->  | BG17: ='Производственная программа'!#REF! ->  | BH17: ='Производственная программа'!#REF! ->  | BI17: ='Производственная программа'!#REF! ->  | BJ17: ='Производственная программа'!#REF! ->  | BK17: ='Производственная программа'!#REF! ->  | BL17: ='Производственная программа'!#REF! ->  | BM17: ='Производственная программа'!#REF! ->  | BN17: ='Производственная программа'!#REF! ->  | BO17: ='Производственная программа'!#REF! ->  | BP17: ='Производственная программа'!#REF! ->  | BQ17: ='Производственная программа'!#REF! ->  | BR17: ='Производственная программа'!#REF! ->  | BS17: ='Производственная программа'!#REF! ->  | BT17: ='Производственная программа'!#REF! ->  | BU17: ='Производственная программа'!#REF! ->  | BV17: ='Производственная программа'!#REF! ->  | BW17: ='Производственная программа'!#REF! ->  | BX17: ='Производственная программа'!#REF! ->  | BY17: ='Производственная программа'!#REF! ->  | BZ17: ='Производственная программа'!#REF! ->  | CA17: ='Производственная программа'!#REF! ->  | CB17: ='Производственная программа'!#REF! ->  | CC17: ='Производственная программа'!#REF! ->  | CD17: ='Производственная программа'!#REF! ->  | CE17: ='Производственная программа'!#REF! ->  | CF17: ='Производственная программа'!#REF! ->  | CG17: ='Производственная программа'!#REF! ->  | CH17: ='Производственная программа'!#REF! ->  | CI17: ='Производственная программа'!#REF! ->  | CJ17: ='Производственная программа'!#REF! ->  | CK17: ='Производственная программа'!#REF! ->  | CL17: ='Производственная программа'!#REF! ->  | CM17: ='Производственная программа'!#REF! ->  | CN17: ='Производственная программа'!#REF! ->  | CO17: ='Производственная программа'!#REF! ->  | CP17: ='Производственная программа'!#REF! ->  | CQ17: ='Производственная программа'!#REF! ->  | CR17: ='Производственная программа'!#REF! ->  | CS17: ='Производственная программа'!#REF! ->  | CT17: ='Производственная программа'!#REF! ->  | CU17: ='Производственная программа'!#REF! ->  | CV17: ='Производственная программа'!#REF! ->  | CW17: ='Производственная программа'!#REF! ->  | CX17: ='Производственная программа'!#REF! ->  | CY17: ='Производственная программа'!#REF! ->  | CZ17: ='Производственная программа'!#REF! ->  | DA17: ='Производственная программа'!#REF! ->  | DB17: ='Производственная программа'!#REF! ->  | DC17: ='Производственная программа'!#REF! ->  | DD17: ='Производственная программа'!#REF! ->  | DE17: ='Производственная программа'!#REF! ->  | DF17: ='Производственная программа'!#REF! ->  | DG17: ='Производственная программа'!#REF! ->  | DH17: ='Производственная программа'!#REF! ->  | DI17: ='Производственная программа'!#REF! ->  | DJ17: ='Производственная программа'!#REF! ->  | DK17: ='Производственная программа'!#REF! ->  | DL17: ='Производственная программа'!#REF! ->  | DM17: ='Производственная программа'!#REF! ->  | DN17: ='Производственная программа'!#REF! ->  | DO17: ='Производственная программа'!#REF! ->  | DP17: ='Производственная программа'!#REF! ->  | DQ17: ='Производственная программа'!#REF! ->  | DR17: ='Производственная программа'!#REF! ->  | DS17: ='Производственная программа'!#REF! ->  | DT17: ='Производственная программа'!#REF! ->  | DU17: ='Производственная программа'!#REF! ->  | DV17: ='Производственная программа'!#REF! ->  | DW17: ='Производственная программа'!#REF! ->  | DX17: ='Производственная программа'!#REF! ->  | DY17: ='Производственная программа'!#REF! ->  | DZ17: ='Производственная программа'!#REF! ->  | EA17: ='Производственная программа'!#REF! ->  | EB17: ='Производственная программа'!#REF! ->  | EC17: ='Производственная программа'!#REF! ->  | ED17: ='Производственная программа'!#REF! ->  | EE17: ='Производственная программа'!#REF! ->  | EF17: ='Производственная программа'!#REF! ->  | EG17: ='Производственная программа'!#REF! ->  | EH17: ='Производственная программа'!#REF! ->  | EI17: ='Производственная программа'!#REF! ->  | EJ17: ='Производственная программа'!#REF! ->  | EK17: ='Производственная программа'!#REF! ->  | EL17: ='Производственная программа'!#REF! ->  | EM17: ='Производственная программа'!#REF! ->  | EN17: ='Производственная программа'!#REF! ->  | EO17: ='Производственная программа'!#REF! ->  | EP17: ='Производственная программа'!#REF! ->  | EQ17: ='Производственная программа'!#REF! ->  | ER17: ='Производственная программа'!#REF! ->  | ES17: ='Производственная программа'!#REF! ->  | ET17: ='Производственная программа'!#REF! ->  | EU17: ='Производственная программа'!#REF! ->  | EV17: ='Производственная программа'!#REF! ->  | EW17: ='Производственная программа'!#REF! ->  | EX17: ='Производственная программа'!#REF! ->  | EY17: ='Производственная программа'!#REF! ->  | EZ17: ='Производственная программа'!#REF! ->  | FA17: ='Производственная программа'!#REF! ->  | FB17: ='Производственная программа'!#REF! ->  | FC17: ='Производственная программа'!#REF! ->  | FD17: ='Производственная программа'!#REF! ->  | FE17: ='Производственная программа'!#REF! ->  | FF17: ='Производственная программа'!#REF! ->  | FG17: ='Производственная программа'!#REF! ->  | FH17: ='Производственная программа'!#REF! ->  | FI17: ='Производственная программа'!#REF! ->  | FJ17: ='Производственная программа'!#REF! ->  | FK17: ='Производственная программа'!#REF! ->  | FL17: ='Производственная программа'!#REF! ->  | FM17: ='Производственная программа'!#REF! ->  | FN17: ='Производственная программа'!#REF! ->  | FO17: ='Производственная программа'!#REF! ->  | FP17: ='Производственная программа'!#REF! ->  | FQ17: ='Производственная программа'!#REF! ->  | FR17: ='Производственная программа'!#REF! ->  | FS17: ='Производственная программа'!#REF! ->  | FT17: ='Производственная программа'!#REF! ->  | FU17: ='Производственная программа'!#REF! ->  | FV17: ='Производственная программа'!#REF! ->  | FW17: ='Производственная программа'!#REF! ->  | FX17: ='Производственная программа'!#REF! ->  | FY17: дом | FZ17: 10
A18: 22 | B18: ='Производственная программа'!#REF! ->  | C18: ='Производственная программа'!#REF! ->  | D18: ='Производственная программа'!#REF! ->  | E18: ='Производственная программа'!#REF! ->  | F18: ='Производственная программа'!#REF! ->  | G18: ='Производственная программа'!#REF! ->  | H18: ='Производственная программа'!#REF! ->  | I18: ='Производственная программа'!#REF! ->  | J18: ='Производственная программа'!#REF! ->  | K18: ='Производственная программа'!#REF! ->  | L18: ='Производственная программа'!#REF! ->  | M18: ='Производственная программа'!#REF! ->  | N18: ='Производственная программа'!#REF! ->  | O18: ='Производственная программа'!#REF! ->  | P18: ='Производственная программа'!#REF! ->  | Q18: ='Производственная программа'!#REF! ->  | R18: ='Производственная программа'!#REF! ->  | S18: ='Производственная программа'!#REF! ->  | T18: ='Производственная программа'!#REF! ->  | U18: ='Производственная программа'!#REF! ->  | V18: ='Производственная программа'!#REF! ->  | W18: ='Производственная программа'!#REF! ->  | X18: ='Производственная программа'!#REF! ->  | Y18: ='Производственная программа'!#REF! ->  | Z18: ='Производственная программа'!#REF! ->  | AA18: ='Производственная программа'!#REF! ->  | AB18: ='Производственная программа'!#REF! ->  | AC18: ='Производственная программа'!#REF! ->  | AD18: ='Производственная программа'!#REF! ->  | AE18: ='Производственная программа'!#REF! ->  | AF18: ='Производственная программа'!#REF! ->  | AG18: ='Производственная программа'!#REF! ->  | AH18: ='Производственная программа'!#REF! ->  | AI18: ='Производственная программа'!#REF! ->  | AJ18: ='Производственная программа'!#REF! ->  | AK18: ='Производственная программа'!#REF! ->  | AL18: ='Производственная программа'!#REF! ->  | AM18: ='Производственная программа'!#REF! ->  | AN18: ='Производственная программа'!#REF! ->  | AO18: ='Производственная программа'!#REF! ->  | AP18: ='Производственная программа'!#REF! ->  | AQ18: ='Производственная программа'!#REF! ->  | AR18: ='Производственная программа'!#REF! ->  | AS18: ='Производственная программа'!#REF! ->  | AT18: ='Производственная программа'!#REF! ->  | AU18: ='Производственная программа'!#REF! ->  | AV18: ='Производственная программа'!#REF! ->  | AW18: ='Производственная программа'!#REF! ->  | AX18: ='Производственная программа'!#REF! ->  | AY18: ='Производственная программа'!#REF! ->  | AZ18: ='Производственная программа'!#REF! ->  | BA18: ='Производственная программа'!#REF! ->  | BB18: ='Производственная программа'!#REF! ->  | BC18: ='Производственная программа'!#REF! ->  | BD18: ='Производственная программа'!#REF! ->  | BE18: ='Производственная программа'!#REF! ->  | BF18: ='Производственная программа'!#REF! ->  | BG18: ='Производственная программа'!#REF! ->  | BH18: ='Производственная программа'!#REF! ->  | BI18: ='Производственная программа'!#REF! ->  | BJ18: ='Производственная программа'!#REF! ->  | BK18: ='Производственная программа'!#REF! ->  | BL18: ='Производственная программа'!#REF! ->  | BM18: ='Производственная программа'!#REF! ->  | BN18: ='Производственная программа'!#REF! ->  | BO18: ='Производственная программа'!#REF! ->  | BP18: ='Производственная программа'!#REF! ->  | BQ18: ='Производственная программа'!#REF! ->  | BR18: ='Производственная программа'!#REF! ->  | BS18: ='Производственная программа'!#REF! ->  | BT18: ='Производственная программа'!#REF! ->  | BU18: ='Производственная программа'!#REF! ->  | BV18: ='Производственная программа'!#REF! ->  | BW18: ='Производственная программа'!#REF! ->  | BX18: ='Производственная программа'!#REF! ->  | BY18: ='Производственная программа'!#REF! ->  | BZ18: ='Производственная программа'!#REF! ->  | CA18: ='Производственная программа'!#REF! ->  | CB18: ='Производственная программа'!#REF! ->  | CC18: ='Производственная программа'!#REF! ->  | CD18: ='Производственная программа'!#REF! ->  | CE18: ='Производственная программа'!#REF! ->  | CF18: ='Производственная программа'!#REF! ->  | CG18: ='Производственная программа'!#REF! ->  | CH18: ='Производственная программа'!#REF! ->  | CI18: ='Производственная программа'!#REF! ->  | CJ18: ='Производственная программа'!#REF! ->  | CK18: ='Производственная программа'!#REF! ->  | CL18: ='Производственная программа'!#REF! ->  | CM18: ='Производственная программа'!#REF! ->  | CN18: ='Производственная программа'!#REF! ->  | CO18: ='Производственная программа'!#REF! ->  | CP18: ='Производственная программа'!#REF! ->  | CQ18: ='Производственная программа'!#REF! ->  | CR18: ='Производственная программа'!#REF! ->  | CS18: ='Производственная программа'!#REF! ->  | CT18: ='Производственная программа'!#REF! ->  | CU18: ='Производственная программа'!#REF! ->  | CV18: ='Производственная программа'!#REF! ->  | CW18: ='Производственная программа'!#REF! ->  | CX18: ='Производственная программа'!#REF! ->  | CY18: ='Производственная программа'!#REF! ->  | CZ18: ='Производственная программа'!#REF! ->  | DA18: ='Производственная программа'!#REF! ->  | DB18: ='Производственная программа'!#REF! ->  | DC18: ='Производственная программа'!#REF! ->  | DD18: ='Производственная программа'!#REF! ->  | DE18: ='Производственная программа'!#REF! ->  | DF18: ='Производственная программа'!#REF! ->  | DG18: ='Производственная программа'!#REF! ->  | DH18: ='Производственная программа'!#REF! ->  | DI18: ='Производственная программа'!#REF! ->  | DJ18: ='Производственная программа'!#REF! ->  | DK18: ='Производственная программа'!#REF! ->  | DL18: ='Производственная программа'!#REF! ->  | DM18: ='Производственная программа'!#REF! ->  | DN18: ='Производственная программа'!#REF! ->  | DO18: ='Производственная программа'!#REF! ->  | DP18: ='Производственная программа'!#REF! ->  | DQ18: ='Производственная программа'!#REF! ->  | DR18: ='Производственная программа'!#REF! ->  | DS18: ='Производственная программа'!#REF! ->  | DT18: ='Производственная программа'!#REF! ->  | DU18: ='Производственная программа'!#REF! ->  | DV18: ='Производственная программа'!#REF! ->  | DW18: ='Производственная программа'!#REF! ->  | DX18: ='Производственная программа'!#REF! ->  | DY18: ='Производственная программа'!#REF! ->  | DZ18: ='Производственная программа'!#REF! ->  | EA18: ='Производственная программа'!#REF! ->  | EB18: ='Производственная программа'!#REF! ->  | EC18: ='Производственная программа'!#REF! ->  | ED18: ='Производственная программа'!#REF! ->  | EE18: ='Производственная программа'!#REF! ->  | EF18: ='Производственная программа'!#REF! ->  | EG18: ='Производственная программа'!#REF! ->  | EH18: ='Производственная программа'!#REF! ->  | EI18: ='Производственная программа'!#REF! ->  | EJ18: ='Производственная программа'!#REF! ->  | EK18: ='Производственная программа'!#REF! ->  | EL18: ='Производственная программа'!#REF! ->  | EM18: ='Производственная программа'!#REF! ->  | EN18: ='Производственная программа'!#REF! ->  | EO18: ='Производственная программа'!#REF! ->  | EP18: ='Производственная программа'!#REF! ->  | EQ18: ='Производственная программа'!#REF! ->  | ER18: ='Производственная программа'!#REF! ->  | ES18: ='Производственная программа'!#REF! ->  | ET18: ='Производственная программа'!#REF! ->  | EU18: ='Производственная программа'!#REF! ->  | EV18: ='Производственная программа'!#REF! ->  | EW18: ='Производственная программа'!#REF! ->  | EX18: ='Производственная программа'!#REF! ->  | EY18: ='Производственная программа'!#REF! ->  | EZ18: ='Производственная программа'!#REF! ->  | FA18: ='Производственная программа'!#REF! ->  | FB18: ='Производственная программа'!#REF! ->  | FC18: ='Производственная программа'!#REF! ->  | FD18: ='Производственная программа'!#REF! ->  | FE18: ='Производственная программа'!#REF! ->  | FF18: ='Производственная программа'!#REF! ->  | FG18: ='Производственная программа'!#REF! ->  | FH18: ='Производственная программа'!#REF! ->  | FI18: ='Производственная программа'!#REF! ->  | FJ18: ='Производственная программа'!#REF! ->  | FK18: ='Производственная программа'!#REF! ->  | FL18: ='Производственная программа'!#REF! ->  | FM18: ='Производственная программа'!#REF! ->  | FN18: ='Производственная программа'!#REF! ->  | FO18: ='Производственная программа'!#REF! ->  | FP18: ='Производственная программа'!#REF! ->  | FQ18: ='Производственная программа'!#REF! ->  | FR18: ='Производственная программа'!#REF! ->  | FS18: ='Производственная программа'!#REF! ->  | FT18: ='Производственная программа'!#REF! ->  | FU18: ='Производственная программа'!#REF! ->  | FV18: ='Производственная программа'!#REF! ->  | FW18: ='Производственная программа'!#REF! ->  | FX18: ='Производственная программа'!#REF! -> 
A19: 23 | B19: ='Производственная программа'!#REF! ->  | C19: ='Производственная программа'!#REF! ->  | D19: ='Производственная программа'!#REF! ->  | E19: ='Производственная программа'!#REF! ->  | F19: ='Производственная программа'!#REF! ->  | G19: ='Производственная программа'!#REF! ->  | H19: ='Производственная программа'!#REF! ->  | I19: ='Производственная программа'!#REF! ->  | J19: ='Производственная программа'!#REF! ->  | K19: ='Производственная программа'!#REF! ->  | L19: ='Производственная программа'!#REF! ->  | M19: ='Производственная программа'!#REF! ->  | N19: ='Производственная программа'!#REF! ->  | O19: ='Производственная программа'!#REF! ->  | P19: ='Производственная программа'!#REF! ->  | Q19: ='Производственная программа'!#REF! ->  | R19: ='Производственная программа'!#REF! ->  | S19: ='Производственная программа'!#REF! ->  | T19: ='Производственная программа'!#REF! ->  | U19: ='Производственная программа'!#REF! ->  | V19: ='Производственная программа'!#REF! ->  | W19: ='Производственная программа'!#REF! ->  | X19: ='Производственная программа'!#REF! ->  | Y19: ='Производственная программа'!#REF! ->  | Z19: ='Производственная программа'!#REF! ->  | AA19: ='Производственная программа'!#REF! ->  | AB19: ='Производственная программа'!#REF! ->  | AC19: ='Производственная программа'!#REF! ->  | AD19: ='Производственная программа'!#REF! ->  | AE19: ='Производственная программа'!#REF! ->  | AF19: ='Производственная программа'!#REF! ->  | AG19: ='Производственная программа'!#REF! ->  | AH19: ='Производственная программа'!#REF! ->  | AI19: ='Производственная программа'!#REF! ->  | AJ19: ='Производственная программа'!#REF! ->  | AK19: ='Производственная программа'!#REF! ->  | AL19: ='Производственная программа'!#REF! ->  | AM19: ='Производственная программа'!#REF! ->  | AN19: ='Производственная программа'!#REF! ->  | AO19: ='Производственная программа'!#REF! ->  | AP19: ='Производственная программа'!#REF! ->  | AQ19: ='Производственная программа'!#REF! ->  | AR19: ='Производственная программа'!#REF! ->  | AS19: ='Производственная программа'!#REF! ->  | AT19: ='Производственная программа'!#REF! ->  | AU19: ='Производственная программа'!#REF! ->  | AV19: ='Производственная программа'!#REF! ->  | AW19: ='Производственная программа'!#REF! ->  | AX19: ='Производственная программа'!#REF! ->  | AY19: ='Производственная программа'!#REF! ->  | AZ19: ='Производственная программа'!#REF! ->  | BA19: ='Производственная программа'!#REF! ->  | BB19: ='Производственная программа'!#REF! ->  | BC19: ='Производственная программа'!#REF! ->  | BD19: ='Производственная программа'!#REF! ->  | BE19: ='Производственная программа'!#REF! ->  | BF19: ='Производственная программа'!#REF! ->  | BG19: ='Производственная программа'!#REF! ->  | BH19: ='Производственная программа'!#REF! ->  | BI19: ='Производственная программа'!#REF! ->  | BJ19: ='Производственная программа'!#REF! ->  | BK19: ='Производственная программа'!#REF! ->  | BL19: ='Производственная программа'!#REF! ->  | BM19: ='Производственная программа'!#REF! ->  | BN19: ='Производственная программа'!#REF! ->  | BO19: ='Производственная программа'!#REF! ->  | BP19: ='Производственная программа'!#REF! ->  | BQ19: ='Производственная программа'!#REF! ->  | BR19: ='Производственная программа'!#REF! ->  | BS19: ='Производственная программа'!#REF! ->  | BT19: ='Производственная программа'!#REF! ->  | BU19: ='Производственная программа'!#REF! ->  | BV19: ='Производственная программа'!#REF! ->  | BW19: ='Производственная программа'!#REF! ->  | BX19: ='Производственная программа'!#REF! ->  | BY19: ='Производственная программа'!#REF! ->  | BZ19: ='Производственная программа'!#REF! ->  | CA19: ='Производственная программа'!#REF! ->  | CB19: ='Производственная программа'!#REF! ->  | CC19: ='Производственная программа'!#REF! ->  | CD19: ='Производственная программа'!#REF! ->  | CE19: ='Производственная программа'!#REF! ->  | CF19: ='Производственная программа'!#REF! ->  | CG19: ='Производственная программа'!#REF! ->  | CH19: ='Производственная программа'!#REF! ->  | CI19: ='Производственная программа'!#REF! ->  | CJ19: ='Производственная программа'!#REF! ->  | CK19: ='Производственная программа'!#REF! ->  | CL19: ='Производственная программа'!#REF! ->  | CM19: ='Производственная программа'!#REF! ->  | CN19: ='Производственная программа'!#REF! ->  | CO19: ='Производственная программа'!#REF! ->  | CP19: ='Производственная программа'!#REF! ->  | CQ19: ='Производственная программа'!#REF! ->  | CR19: ='Производственная программа'!#REF! ->  | CS19: ='Производственная программа'!#REF! ->  | CT19: ='Производственная программа'!#REF! ->  | CU19: ='Производственная программа'!#REF! ->  | CV19: ='Производственная программа'!#REF! ->  | CW19: ='Производственная программа'!#REF! ->  | CX19: ='Производственная программа'!#REF! ->  | CY19: ='Производственная программа'!#REF! ->  | CZ19: ='Производственная программа'!#REF! ->  | DA19: ='Производственная программа'!#REF! ->  | DB19: ='Производственная программа'!#REF! ->  | DC19: ='Производственная программа'!#REF! ->  | DD19: ='Производственная программа'!#REF! ->  | DE19: ='Производственная программа'!#REF! ->  | DF19: ='Производственная программа'!#REF! ->  | DG19: ='Производственная программа'!#REF! ->  | DH19: ='Производственная программа'!#REF! ->  | DI19: ='Производственная программа'!#REF! ->  | DJ19: ='Производственная программа'!#REF! ->  | DK19: ='Производственная программа'!#REF! ->  | DL19: ='Производственная программа'!#REF! ->  | DM19: ='Производственная программа'!#REF! ->  | DN19: ='Производственная программа'!#REF! ->  | DO19: ='Производственная программа'!#REF! ->  | DP19: ='Производственная программа'!#REF! ->  | DQ19: ='Производственная программа'!#REF! ->  | DR19: ='Производственная программа'!#REF! ->  | DS19: ='Производственная программа'!#REF! ->  | DT19: ='Производственная программа'!#REF! ->  | DU19: ='Производственная программа'!#REF! ->  | DV19: ='Производственная программа'!#REF! ->  | DW19: ='Производственная программа'!#REF! ->  | DX19: ='Производственная программа'!#REF! ->  | DY19: ='Производственная программа'!#REF! ->  | DZ19: ='Производственная программа'!#REF! ->  | EA19: ='Производственная программа'!#REF! ->  | EB19: ='Производственная программа'!#REF! ->  | EC19: ='Производственная программа'!#REF! ->  | ED19: ='Производственная программа'!#REF! ->  | EE19: ='Производственная программа'!#REF! ->  | EF19: ='Производственная программа'!#REF! ->  | EG19: ='Производственная программа'!#REF! ->  | EH19: ='Производственная программа'!#REF! ->  | EI19: ='Производственная программа'!#REF! ->  | EJ19: ='Производственная программа'!#REF! ->  | EK19: ='Производственная программа'!#REF! ->  | EL19: ='Производственная программа'!#REF! ->  | EM19: ='Производственная программа'!#REF! ->  | EN19: ='Производственная программа'!#REF! ->  | EO19: ='Производственная программа'!#REF! ->  | EP19: ='Производственная программа'!#REF! ->  | EQ19: ='Производственная программа'!#REF! ->  | ER19: ='Производственная программа'!#REF! ->  | ES19: ='Производственная программа'!#REF! ->  | ET19: ='Производственная программа'!#REF! ->  | EU19: ='Производственная программа'!#REF! ->  | EV19: ='Производственная программа'!#REF! ->  | EW19: ='Производственная программа'!#REF! ->  | EX19: ='Производственная программа'!#REF! ->  | EY19: ='Производственная программа'!#REF! ->  | EZ19: ='Производственная программа'!#REF! ->  | FA19: ='Производственная программа'!#REF! ->  | FB19: ='Производственная программа'!#REF! ->  | FC19: ='Производственная программа'!#REF! ->  | FD19: ='Производственная программа'!#REF! ->  | FE19: ='Производственная программа'!#REF! ->  | FF19: ='Производственная программа'!#REF! ->  | FG19: ='Производственная программа'!#REF! ->  | FH19: ='Производственная программа'!#REF! ->  | FI19: ='Производственная программа'!#REF! ->  | FJ19: ='Производственная программа'!#REF! ->  | FK19: ='Производственная программа'!#REF! ->  | FL19: ='Производственная программа'!#REF! ->  | FM19: ='Производственная программа'!#REF! ->  | FN19: ='Производственная программа'!#REF! ->  | FO19: ='Производственная программа'!#REF! ->  | FP19: ='Производственная программа'!#REF! ->  | FQ19: ='Производственная программа'!#REF! ->  | FR19: ='Производственная программа'!#REF! ->  | FS19: ='Производственная программа'!#REF! ->  | FT19: ='Производственная программа'!#REF! ->  | FU19: ='Производственная программа'!#REF! ->  | FV19: ='Производственная программа'!#REF! ->  | FW19: ='Производственная программа'!#REF! ->  | FX19: ='Производственная программа'!#REF! ->  | FY19: дом | FZ19: 11
A20: 24 | B20: ='Производственная программа'!#REF! ->  | C20: ='Производственная программа'!#REF! ->  | D20: ='Производственная программа'!#REF! ->  | E20: ='Производственная программа'!#REF! ->  | F20: ='Производственная программа'!#REF! ->  | G20: ='Производственная программа'!#REF! ->  | H20: ='Производственная программа'!#REF! ->  | I20: ='Производственная программа'!#REF! ->  | J20: ='Производственная программа'!#REF! ->  | K20: ='Производственная программа'!#REF! ->  | L20: ='Производственная программа'!#REF! ->  | M20: ='Производственная программа'!#REF! ->  | N20: ='Производственная программа'!#REF! ->  | O20: ='Производственная программа'!#REF! ->  | P20: ='Производственная программа'!#REF! ->  | Q20: ='Производственная программа'!#REF! ->  | R20: ='Производственная программа'!#REF! ->  | S20: ='Производственная программа'!#REF! ->  | T20: ='Производственная программа'!#REF! ->  | U20: ='Производственная программа'!#REF! ->  | V20: ='Производственная программа'!#REF! ->  | W20: ='Производственная программа'!#REF! ->  | X20: ='Производственная программа'!#REF! ->  | Y20: ='Производственная программа'!#REF! ->  | Z20: ='Производственная программа'!#REF! ->  | AA20: ='Производственная программа'!#REF! ->  | AB20: ='Производственная программа'!#REF! ->  | AC20: ='Производственная программа'!#REF! ->  | AD20: ='Производственная программа'!#REF! ->  | AE20: ='Производственная программа'!#REF! ->  | AF20: ='Производственная программа'!#REF! ->  | AG20: ='Производственная программа'!#REF! ->  | AH20: ='Производственная программа'!#REF! ->  | AI20: ='Производственная программа'!#REF! ->  | AJ20: ='Производственная программа'!#REF! ->  | AK20: ='Производственная программа'!#REF! ->  | AL20: ='Производственная программа'!#REF! ->  | AM20: ='Производственная программа'!#REF! ->  | AN20: ='Производственная программа'!#REF! ->  | AO20: ='Производственная программа'!#REF! ->  | AP20: ='Производственная программа'!#REF! ->  | AQ20: ='Производственная программа'!#REF! ->  | AR20: ='Производственная программа'!#REF! ->  | AS20: ='Производственная программа'!#REF! ->  | AT20: ='Производственная программа'!#REF! ->  | AU20: ='Производственная программа'!#REF! ->  | AV20: ='Производственная программа'!#REF! ->  | AW20: ='Производственная программа'!#REF! ->  | AX20: ='Производственная программа'!#REF! ->  | AY20: ='Производственная программа'!#REF! ->  | AZ20: ='Производственная программа'!#REF! ->  | BA20: ='Производственная программа'!#REF! ->  | BB20: ='Производственная программа'!#REF! ->  | BC20: ='Производственная программа'!#REF! ->  | BD20: ='Производственная программа'!#REF! ->  | BE20: ='Производственная программа'!#REF! ->  | BF20: ='Производственная программа'!#REF! ->  | BG20: ='Производственная программа'!#REF! ->  | BH20: ='Производственная программа'!#REF! ->  | BI20: ='Производственная программа'!#REF! ->  | BJ20: ='Производственная программа'!#REF! ->  | BK20: ='Производственная программа'!#REF! ->  | BL20: ='Производственная программа'!#REF! ->  | BM20: ='Производственная программа'!#REF! ->  | BN20: ='Производственная программа'!#REF! ->  | BO20: ='Производственная программа'!#REF! ->  | BP20: ='Производственная программа'!#REF! ->  | BQ20: ='Производственная программа'!#REF! ->  | BR20: ='Производственная программа'!#REF! ->  | BS20: ='Производственная программа'!#REF! ->  | BT20: ='Производственная программа'!#REF! ->  | BU20: ='Производственная программа'!#REF! ->  | BV20: ='Производственная программа'!#REF! ->  | BW20: ='Производственная программа'!#REF! ->  | BX20: ='Производственная программа'!#REF! ->  | BY20: ='Производственная программа'!#REF! ->  | BZ20: ='Производственная программа'!#REF! ->  | CA20: ='Производственная программа'!#REF! ->  | CB20: ='Производственная программа'!#REF! ->  | CC20: ='Производственная программа'!#REF! ->  | CD20: ='Производственная программа'!#REF! ->  | CE20: ='Производственная программа'!#REF! ->  | CF20: ='Производственная программа'!#REF! ->  | CG20: ='Производственная программа'!#REF! ->  | CH20: ='Производственная программа'!#REF! ->  | CI20: ='Производственная программа'!#REF! ->  | CJ20: ='Производственная программа'!#REF! ->  | CK20: ='Производственная программа'!#REF! ->  | CL20: ='Производственная программа'!#REF! ->  | CM20: ='Производственная программа'!#REF! ->  | CN20: ='Производственная программа'!#REF! ->  | CO20: ='Производственная программа'!#REF! ->  | CP20: ='Производственная программа'!#REF! ->  | CQ20: ='Производственная программа'!#REF! ->  | CR20: ='Производственная программа'!#REF! ->  | CS20: ='Производственная программа'!#REF! ->  | CT20: ='Производственная программа'!#REF! ->  | CU20: ='Производственная программа'!#REF! ->  | CV20: ='Производственная программа'!#REF! ->  | CW20: ='Производственная программа'!#REF! ->  | CX20: ='Производственная программа'!#REF! ->  | CY20: ='Производственная программа'!#REF! ->  | CZ20: ='Производственная программа'!#REF! ->  | DA20: ='Производственная программа'!#REF! ->  | DB20: ='Производственная программа'!#REF! ->  | DC20: ='Производственная программа'!#REF! ->  | DD20: ='Производственная программа'!#REF! ->  | DE20: ='Производственная программа'!#REF! ->  | DF20: ='Производственная программа'!#REF! ->  | DG20: ='Производственная программа'!#REF! ->  | DH20: ='Производственная программа'!#REF! ->  | DI20: ='Производственная программа'!#REF! ->  | DJ20: ='Производственная программа'!#REF! ->  | DK20: ='Производственная программа'!#REF! ->  | DL20: ='Производственная программа'!#REF! ->  | DM20: ='Производственная программа'!#REF! ->  | DN20: ='Производственная программа'!#REF! ->  | DO20: ='Производственная программа'!#REF! ->  | DP20: ='Производственная программа'!#REF! ->  | DQ20: ='Производственная программа'!#REF! ->  | DR20: ='Производственная программа'!#REF! ->  | DS20: ='Производственная программа'!#REF! ->  | DT20: ='Производственная программа'!#REF! ->  | DU20: ='Производственная программа'!#REF! ->  | DV20: ='Производственная программа'!#REF! ->  | DW20: ='Производственная программа'!#REF! ->  | DX20: ='Производственная программа'!#REF! ->  | DY20: ='Производственная программа'!#REF! ->  | DZ20: ='Производственная программа'!#REF! ->  | EA20: ='Производственная программа'!#REF! ->  | EB20: ='Производственная программа'!#REF! ->  | EC20: ='Производственная программа'!#REF! ->  | ED20: ='Производственная программа'!#REF! ->  | EE20: ='Производственная программа'!#REF! ->  | EF20: ='Производственная программа'!#REF! ->  | EG20: ='Производственная программа'!#REF! ->  | EH20: ='Производственная программа'!#REF! ->  | EI20: ='Производственная программа'!#REF! ->  | EJ20: ='Производственная программа'!#REF! ->  | EK20: ='Производственная программа'!#REF! ->  | EL20: ='Производственная программа'!#REF! ->  | EM20: ='Производственная программа'!#REF! ->  | EN20: ='Производственная программа'!#REF! ->  | EO20: ='Производственная программа'!#REF! ->  | EP20: ='Производственная программа'!#REF! ->  | EQ20: ='Производственная программа'!#REF! ->  | ER20: ='Производственная программа'!#REF! ->  | ES20: ='Производственная программа'!#REF! ->  | ET20: ='Производственная программа'!#REF! ->  | EU20: ='Производственная программа'!#REF! ->  | EV20: ='Производственная программа'!#REF! ->  | EW20: ='Производственная программа'!#REF! ->  | EX20: ='Производственная программа'!#REF! ->  | EY20: ='Производственная программа'!#REF! ->  | EZ20: ='Производственная программа'!#REF! ->  | FA20: ='Производственная программа'!#REF! ->  | FB20: ='Производственная программа'!#REF! ->  | FC20: ='Производственная программа'!#REF! ->  | FD20: ='Производственная программа'!#REF! ->  | FE20: ='Производственная программа'!#REF! ->  | FF20: ='Производственная программа'!#REF! ->  | FG20: ='Производственная программа'!#REF! ->  | FH20: ='Производственная программа'!#REF! ->  | FI20: ='Производственная программа'!#REF! ->  | FJ20: ='Производственная программа'!#REF! ->  | FK20: ='Производственная программа'!#REF! ->  | FL20: ='Производственная программа'!#REF! ->  | FM20: ='Производственная программа'!#REF! ->  | FN20: ='Производственная программа'!#REF! ->  | FO20: ='Производственная программа'!#REF! ->  | FP20: ='Производственная программа'!#REF! ->  | FQ20: ='Производственная программа'!#REF! ->  | FR20: ='Производственная программа'!#REF! ->  | FS20: ='Производственная программа'!#REF! ->  | FT20: ='Производственная программа'!#REF! ->  | FU20: ='Производственная программа'!#REF! ->  | FV20: ='Производственная программа'!#REF! ->  | FW20: ='Производственная программа'!#REF! ->  | FX20: ='Производственная программа'!#REF! ->  | FY20: дом | FZ20: 12
A21: 25 | B21: ='Производственная программа'!#REF! ->  | C21: ='Производственная программа'!#REF! ->  | D21: ='Производственная программа'!#REF! ->  | E21: ='Производственная программа'!#REF! ->  | F21: ='Производственная программа'!#REF! ->  | G21: ='Производственная программа'!#REF! ->  | H21: ='Производственная программа'!#REF! ->  | I21: ='Производственная программа'!#REF! ->  | J21: ='Производственная программа'!#REF! ->  | K21: ='Производственная программа'!#REF! ->  | L21: ='Производственная программа'!#REF! ->  | M21: ='Производственная программа'!#REF! ->  | N21: ='Производственная программа'!#REF! ->  | O21: ='Производственная программа'!#REF! ->  | P21: ='Производственная программа'!#REF! ->  | Q21: ='Производственная программа'!#REF! ->  | R21: ='Производственная программа'!#REF! ->  | S21: ='Производственная программа'!#REF! ->  | T21: ='Производственная программа'!#REF! ->  | U21: ='Производственная программа'!#REF! ->  | V21: ='Производственная программа'!#REF! ->  | W21: ='Производственная программа'!#REF! ->  | X21: ='Производственная программа'!#REF! ->  | Y21: ='Производственная программа'!#REF! ->  | Z21: ='Производственная программа'!#REF! ->  | AA21: ='Производственная программа'!#REF! ->  | AB21: ='Производственная программа'!#REF! ->  | AC21: ='Производственная программа'!#REF! ->  | AD21: ='Производственная программа'!#REF! ->  | AE21: ='Производственная программа'!#REF! ->  | AF21: ='Производственная программа'!#REF! ->  | AG21: ='Производственная программа'!#REF! ->  | AH21: ='Производственная программа'!#REF! ->  | AI21: ='Производственная программа'!#REF! ->  | AJ21: ='Производственная программа'!#REF! ->  | AK21: ='Производственная программа'!#REF! ->  | AL21: ='Производственная программа'!#REF! ->  | AM21: ='Производственная программа'!#REF! ->  | AN21: ='Производственная программа'!#REF! ->  | AO21: ='Производственная программа'!#REF! ->  | AP21: ='Производственная программа'!#REF! ->  | AQ21: ='Производственная программа'!#REF! ->  | AR21: ='Производственная программа'!#REF! ->  | AS21: ='Производственная программа'!#REF! ->  | AT21: ='Производственная программа'!#REF! ->  | AU21: ='Производственная программа'!#REF! ->  | AV21: ='Производственная программа'!#REF! ->  | AW21: ='Производственная программа'!#REF! ->  | AX21: ='Производственная программа'!#REF! ->  | AY21: ='Производственная программа'!#REF! ->  | AZ21: ='Производственная программа'!#REF! ->  | BA21: ='Производственная программа'!#REF! ->  | BB21: ='Производственная программа'!#REF! ->  | BC21: ='Производственная программа'!#REF! ->  | BD21: ='Производственная программа'!#REF! ->  | BE21: ='Производственная программа'!#REF! ->  | BF21: ='Производственная программа'!#REF! ->  | BG21: ='Производственная программа'!#REF! ->  | BH21: ='Производственная программа'!#REF! ->  | BI21: ='Производственная программа'!#REF! ->  | BJ21: ='Производственная программа'!#REF! ->  | BK21: ='Производственная программа'!#REF! ->  | BL21: ='Производственная программа'!#REF! ->  | BM21: ='Производственная программа'!#REF! ->  | BN21: ='Производственная программа'!#REF! ->  | BO21: ='Производственная программа'!#REF! ->  | BP21: ='Производственная программа'!#REF! ->  | BQ21: ='Производственная программа'!#REF! ->  | BR21: ='Производственная программа'!#REF! ->  | BS21: ='Производственная программа'!#REF! ->  | BT21: ='Производственная программа'!#REF! ->  | BU21: ='Производственная программа'!#REF! ->  | BV21: ='Производственная программа'!#REF! ->  | BW21: ='Производственная программа'!#REF! ->  | BX21: ='Производственная программа'!#REF! ->  | BY21: ='Производственная программа'!#REF! ->  | BZ21: ='Производственная программа'!#REF! ->  | CA21: ='Производственная программа'!#REF! ->  | CB21: ='Производственная программа'!#REF! ->  | CC21: ='Производственная программа'!#REF! ->  | CD21: ='Производственная программа'!#REF! ->  | CE21: ='Производственная программа'!#REF! ->  | CF21: ='Производственная программа'!#REF! ->  | CG21: ='Производственная программа'!#REF! ->  | CH21: ='Производственная программа'!#REF! ->  | CI21: ='Производственная программа'!#REF! ->  | CJ21: ='Производственная программа'!#REF! ->  | CK21: ='Производственная программа'!#REF! ->  | CL21: ='Производственная программа'!#REF! ->  | CM21: ='Производственная программа'!#REF! ->  | CN21: ='Производственная программа'!#REF! ->  | CO21: ='Производственная программа'!#REF! ->  | CP21: ='Производственная программа'!#REF! ->  | CQ21: ='Производственная программа'!#REF! ->  | CR21: ='Производственная программа'!#REF! ->  | CS21: ='Производственная программа'!#REF! ->  | CT21: ='Производственная программа'!#REF! ->  | CU21: ='Производственная программа'!#REF! ->  | CV21: ='Производственная программа'!#REF! ->  | CW21: ='Производственная программа'!#REF! ->  | CX21: ='Производственная программа'!#REF! ->  | CY21: ='Производственная программа'!#REF! ->  | CZ21: ='Производственная программа'!#REF! ->  | DA21: ='Производственная программа'!#REF! ->  | DB21: ='Производственная программа'!#REF! ->  | DC21: ='Производственная программа'!#REF! ->  | DD21: ='Производственная программа'!#REF! ->  | DE21: ='Производственная программа'!#REF! ->  | DF21: ='Производственная программа'!#REF! ->  | DG21: ='Производственная программа'!#REF! ->  | DH21: ='Производственная программа'!#REF! ->  | DI21: ='Производственная программа'!#REF! ->  | DJ21: ='Производственная программа'!#REF! ->  | DK21: ='Производственная программа'!#REF! ->  | DL21: ='Производственная программа'!#REF! ->  | DM21: ='Производственная программа'!#REF! ->  | DN21: ='Производственная программа'!#REF! ->  | DO21: ='Производственная программа'!#REF! ->  | DP21: ='Производственная программа'!#REF! ->  | DQ21: ='Производственная программа'!#REF! ->  | DR21: ='Производственная программа'!#REF! ->  | DS21: ='Производственная программа'!#REF! ->  | DT21: ='Производственная программа'!#REF! ->  | DU21: ='Производственная программа'!#REF! ->  | DV21: ='Производственная программа'!#REF! ->  | DW21: ='Производственная программа'!#REF! ->  | DX21: ='Производственная программа'!#REF! ->  | DY21: ='Производственная программа'!#REF! ->  | DZ21: ='Производственная программа'!#REF! ->  | EA21: ='Производственная программа'!#REF! ->  | EB21: ='Производственная программа'!#REF! ->  | EC21: ='Производственная программа'!#REF! ->  | ED21: ='Производственная программа'!#REF! ->  | EE21: ='Производственная программа'!#REF! ->  | EF21: ='Производственная программа'!#REF! ->  | EG21: ='Производственная программа'!#REF! ->  | EH21: ='Производственная программа'!#REF! ->  | EI21: ='Производственная программа'!#REF! ->  | EJ21: ='Производственная программа'!#REF! ->  | EK21: ='Производственная программа'!#REF! ->  | EL21: ='Производственная программа'!#REF! ->  | EM21: ='Производственная программа'!#REF! ->  | EN21: ='Производственная программа'!#REF! ->  | EO21: ='Производственная программа'!#REF! ->  | EP21: ='Производственная программа'!#REF! ->  | EQ21: ='Производственная программа'!#REF! ->  | ER21: ='Производственная программа'!#REF! ->  | ES21: ='Производственная программа'!#REF! ->  | ET21: ='Производственная программа'!#REF! ->  | EU21: ='Производственная программа'!#REF! ->  | EV21: ='Производственная программа'!#REF! ->  | EW21: ='Производственная программа'!#REF! ->  | EX21: ='Производственная программа'!#REF! ->  | EY21: ='Производственная программа'!#REF! ->  | EZ21: ='Производственная программа'!#REF! ->  | FA21: ='Производственная программа'!#REF! ->  | FB21: ='Производственная программа'!#REF! ->  | FC21: ='Производственная программа'!#REF! ->  | FD21: ='Производственная программа'!#REF! ->  | FE21: ='Производственная программа'!#REF! ->  | FF21: ='Производственная программа'!#REF! ->  | FG21: ='Производственная программа'!#REF! ->  | FH21: ='Производственная программа'!#REF! ->  | FI21: ='Производственная программа'!#REF! ->  | FJ21: ='Производственная программа'!#REF! ->  | FK21: ='Производственная программа'!#REF! ->  | FL21: ='Производственная программа'!#REF! ->  | FM21: ='Производственная программа'!#REF! ->  | FN21: ='Производственная программа'!#REF! ->  | FO21: ='Производственная программа'!#REF! ->  | FP21: ='Производственная программа'!#REF! ->  | FQ21: ='Производственная программа'!#REF! ->  | FR21: ='Производственная программа'!#REF! ->  | FS21: ='Производственная программа'!#REF! ->  | FT21: ='Производственная программа'!#REF! ->  | FU21: ='Производственная программа'!#REF! ->  | FV21: ='Производственная программа'!#REF! ->  | FW21: ='Производственная программа'!#REF! ->  | FX21: ='Производственная программа'!#REF! ->  | FY21: ПК | FZ21: 13
